Ref No,Fund Type,Dept,Cost Centre Description    ,Description    ,Creditor Name    ,GL Code Net Amount,Payment date        
2,Revenue,CAHD,18-25 Year Olds,Permanent Residential,1 St Georges House,13021.00, 18-Dec-2018
3,Revenue,CAHD,Supporting People Programme,Grants to Voluntary Bodies,1625 Independent People,9100.00, 28-Dec-2018
4,Revenue,CAHD,Supporting People Programme,Grants to Voluntary Bodies,1625 Independent People,9811.67, 04-Dec-2018
5,Revenue,CAHD,CSC - Care Leavers Independent Living,Independent Living,16Pluscare Support Solutions,6514.78, 11-Dec-2018
6,Revenue,CAHD,CSC - Asylum Seekers - Unaccompanied,Independent Living,16Pluscare Support Solutions,6514.78, 11-Dec-2018
7,Revenue,CAHD,CSC - Care Leavers Independent Living,Adults - Family Support,16Pluscare Support Solutions,2839.90, 11-Dec-2018
8,Revenue,CAHD,CSC - Care Leavers Independent Living,Adults - Family Support,16Pluscare Support Solutions,5965.03, 03-Dec-2018
9,Revenue,CAHD,CSC - Asylum Seekers - Unaccompanied,Independent Living,16Pluscare Support Solutions,5965.03, 03-Dec-2018
10,Revenue,CAHD,Bed Purchasing - North,Permanent Residential,1St Floor Lingfield House,2677.24, 18-Dec-2018
11,Revenue,CAHD,Homecare - Central,Day Care / Social Activities,3 Trees Community Support Ltd,380.80, 12-Dec-2018
12,Revenue,CAHD,Homecare - Central,Other Small Contracts,3 Trees Community Support Ltd,3097.94, 12-Dec-2018
13,Revenue,CAHD,Homecare - Central,Supported Living,3 Trees Community Support Ltd,5422.80, 12-Dec-2018
14,Revenue,CAHD,Home Care - Elderly - North,Day Care / Social Activities,3 Trees Community Support Ltd,666.40, 12-Dec-2018
15,Revenue,CAHD,Homecare - Central,Day Care / Social Activities,3 Trees Community Support Ltd,380.80, 12-Dec-2018
16,Revenue,CAHD,Homecare - Central,Other Small Contracts,3 Trees Community Support Ltd,3093.18, 12-Dec-2018
17,Revenue,CAHD,Homecare - Central,Supported Living,3 Trees Community Support Ltd,5449.67, 12-Dec-2018
18,Revenue,CAHD,Home Care - Elderly - South,Day Care / Social Activities,3 Trees Community Support Ltd,95.20, 12-Dec-2018
19,Revenue,CAHD,Home Care - Elderly - North,Day Care / Social Activities,3 Trees Community Support Ltd,661.64, 12-Dec-2018
20,Revenue,CAHD,Homecare - Central,Day Care / Social Activities,3 Trees Community Support Ltd,390.32, 14-Dec-2018
21,Revenue,CAHD,Homecare - Central,Other Small Contracts,3 Trees Community Support Ltd,3107.96, 14-Dec-2018
22,Revenue,CAHD,Homecare - Central,Supported Living,3 Trees Community Support Ltd,5519.36, 14-Dec-2018
23,Revenue,CAHD,Home Care - Elderly - North,Day Care / Social Activities,3 Trees Community Support Ltd,666.40, 14-Dec-2018
24,Revenue,CAHD,Homecare - Central,Day Care / Social Activities,3 Trees Community Support Ltd,380.80, 19-Dec-2018
25,Revenue,CAHD,Homecare - Central,Other Small Contracts,3 Trees Community Support Ltd,3101.28, 19-Dec-2018
26,Revenue,CAHD,Homecare - Central,Supported Living,3 Trees Community Support Ltd,5637.68, 19-Dec-2018
27,Revenue,CAHD,Home Care - Elderly - North,Day Care / Social Activities,3 Trees Community Support Ltd,637.84, 19-Dec-2018
28,Revenue,CAHD,Homecare - Central,Day Care / Social Activities,3 Trees Community Support Ltd,385.56, 27-Dec-2018
29,Revenue,CAHD,Homecare - Central,Other Small Contracts,3 Trees Community Support Ltd,2469.52, 27-Dec-2018
30,Revenue,CAHD,Homecare - Central,Supported Living,3 Trees Community Support Ltd,5639.04, 27-Dec-2018
31,Revenue,CAHD,Home Care - Elderly - North,Day Care / Social Activities,3 Trees Community Support Ltd,666.40, 27-Dec-2018
32,Revenue,CAHD,18-25 Year Olds,Permanent Residential,5Th Floor Harlech Court,14897.40, 18-Dec-2018
33,Revenue,CAHD,18-25 Year Olds,Permanent Residential,5Th Floor Harlech Court,17792.32, 18-Dec-2018
34,Revenue,CAHD,Bed Purchasing - North,Permanent Residential,5Th Floor Harlech Court,13492.04, 18-Dec-2018
35,Revenue,CAHD,18-25 Year Olds,Permanent Residential,5Th Floor Harlech Court,13505.44, 18-Dec-2018
36,Revenue,CAHD,Bed Purchasing - North,Permanent Residential,5Th Floor Harlech Court,14372.24, 18-Dec-2018
37,Revenue,CAHD,Jointly Funded H&SC Packages,Permanent Residential,5Th Floor Harlech Court,3556.48, 18-Dec-2018
38,Revenue,CAHD,Bed Purchasing - South,Permanent Residential,5Th Floor Harlech Court,16276.48, 18-Dec-2018
39,Revenue,CAHD,Bed Purchasing - South,Permanent Residential,5Th Floor Harlech Court,10175.32, 18-Dec-2018
40,Revenue,CAHD,Bed purchasing - S28A Under 65 - South,Permanent Residential,5Th Floor Harlech Court,10649.12, 18-Dec-2018
41,Revenue,CAHD,Bed Purchasing - South,Permanent Residential,5Th Floor Harlech Court,11168.36, 18-Dec-2018
42,Revenue,CAHD,Bed Purchasing - Elderly S117- North,Permanent Residential,5Th Floor Harlech Court,9034.16, 18-Dec-2018
43,Revenue,CAHD,Jointly Funded H&SC Packages,Permanent Residential,5Th Floor Harlech Court,2692.00, 18-Dec-2018
44,Revenue,CAHD,Bed Purchasing - North,Permanent Residential,5Th Floor Harlech Court,103747.94, 18-Dec-2018
45,Revenue,CAHD,Bed Purchasing - North,Permanent Residential,5Th Floor Harlech Court,12205.64, 18-Dec-2018
46,Revenue,CAHD,Bed Purchasing - North,Permanent Residential,5Th Floor Harlech Court,7700.19, 18-Dec-2018
47,Revenue,CAHD,Bed Purchasing - North,Fees & Charges Income - General,5Th Floor Harlech Court,3447.29, 18-Dec-2018
48,Revenue,CAHD,Bed Purchasing - North,Fees & Charges Income - General,5Th Floor Harlech Court,2733.96, 18-Dec-2018
49,Revenue,CAHD,Bed Purchasing - North,Fees & Charges Income - General,5Th Floor Harlech Court,3407.72, 18-Dec-2018
50,Revenue,CAHD,Bed Purchasing - North,Permanent Residential,5Th Floor Harlech Court,10290.28, 18-Dec-2018
51,Revenue,CAHD,Bed Purchasing - North,Permanent Residential,5Th Floor Harlech Court,30688.44, 18-Dec-2018
52,Revenue,CAHD,Bed Purchasing - North,Permanent Residential,5Th Floor Harlech Court,8858.52, 18-Dec-2018
53,Revenue,CAHD,Early Years Inclusion Fund,Other Public Bodies,Abacus Pre-School,2450.00, 28-Dec-2018
54,Revenue,CAHD,Early Years Inclusion Fund,Other Public Bodies,Abacus Pre-School,2650.00, 28-Dec-2018
55,Revenue,CAHD,Early Years Inclusion Fund,Other Public Bodies,Abacus Pre-School,1650.00, 28-Dec-2018
56,Revenue,CAHD,Bed Purchasing - North,Permanent Nursing,Abbots Leigh Nursing,8966.90, 18-Dec-2018
57,Revenue,CAHD,Home Care - Elderly - South,Day Care / Social Activities,About Me Care and Support Limited,1386.32, 05-Dec-2018
58,Revenue,CAHD,Home Care - Elderly - North,Day Care / Social Activities,About Me Care and Support Limited,626.08, 05-Dec-2018
59,Revenue,CAHD,Home Care - Elderly - North,Day Care / Social Activities,About Me Care and Support Limited,626.08, 03-Dec-2018
60,Revenue,CAHD,Home Care - Elderly - South,Day Care / Social Activities,About Me Care and Support Limited,1386.32, 05-Dec-2018
61,Revenue,CAHD,Section 117 Placements MH Younger,Permanent Residential,Acorn Care Providers,6453.32, 18-Dec-2018
62,Revenue,CAHD,MH Purchasing - Younger,Permanent Residential,Acorn Care Providers,6000.00, 18-Dec-2018
63,Revenue,CAHD,Training - Adult Services,Training Expenses,Acorn Health & Safety Limited,465.00, 06-Dec-2018
64,Revenue,CAHD,Training - Adult Services,Training Expenses,Acorn Health & Safety Limited,462.50, 06-Dec-2018
65,Revenue,CAHD,Training - Adult Services,Training Expenses,Acorn Health & Safety Limited,465.00, 20-Dec-2018
66,Revenue,CAHD,Training - Adult Services,Training Expenses,Acorn Health & Safety Limited,457.75, 27-Dec-2018
67,Revenue,CAHD,Older People's Commissioned Se,Grants to Voluntary Bodies,Action for Blind People,24975.00, 28-Dec-2018
68,Revenue,CAHD,Minor Adaptations Service,Grants to Voluntary Bodies,Action for Blind People,2500.00, 28-Dec-2018
69,Revenue,CAHD,CSC - Agency Fostering,Foster Parent Allowances,Action for Children,3244.20, 10-Dec-2018
70,Revenue,CAHD,CSC - Agency Fostering,Foster Parent Allowances,Action for Children,6750.00, 11-Dec-2018
71,Revenue,CAHD,CSC - Agency Fostering,Foster Parent Allowances,Action for Children,3660.17, 17-Dec-2018
72,Revenue,CAHD,CSC - Agency Fostering,Foster Parent Allowances,Action for Children,3660.17, 17-Dec-2018
73,Revenue,CAHD,CSC - Agency Fostering,Foster Parent Allowances,Action for Children,3852.68, 17-Dec-2018
74,Revenue,CAHD,Home Care - Elderly - South,Supported Living,Action on Hearing Loss,750.40, 27-Dec-2018
75,Revenue,CAHD,Home Care - Elderly - South,Other Small Contracts,Advantedge Commercial Finance Limited,930.00, 03-Dec-2018
76,Revenue,CAHD,Home Care - Elderly - North,Other Small Contracts,Advantedge Commercial Finance Limited,781.20, 06-Dec-2018
77,Revenue,CAHD,Home Care - Elderly - South,Other Small Contracts,Advantedge Commercial Finance Limited,520.80, 07-Dec-2018
78,Revenue,CAHD,Home Care - Elderly - South,Other Small Contracts,Advantedge Commercial Finance Limited,2343.60, 03-Dec-2018
79,Revenue,CAHD,Home Care - Elderly - South,Other Small Contracts,Advantedge Commercial Finance Limited,558.00, 05-Dec-2018
80,Revenue,CAHD,Home Care - Elderly - South,Other Small Contracts,Advantedge Commercial Finance Limited,534.75, 05-Dec-2018
81,Revenue,CAHD,Home Care - Elderly - North,Other Small Contracts,Advantedge Commercial Finance Limited,781.20, 04-Dec-2018
82,Revenue,CAHD,Home Care - Elderly - South,Other Small Contracts,Advantedge Commercial Finance Limited,2901.60, 06-Dec-2018
83,Revenue,CAHD,Home Care - Elderly - South,Other Small Contracts,Advantedge Commercial Finance Limited,2343.60, 05-Dec-2018
84,Revenue,CAHD,Home Care - Elderly - South,Other Small Contracts,Advantedge Commercial Finance Limited,2901.60, 06-Dec-2018
85,Revenue,CAHD,Home Care - Elderly - South,Other Small Contracts,Advantedge Commercial Finance Limited,2371.50, 04-Dec-2018
86,Revenue,CAHD,Home Care - Elderly - South,Other Small Contracts,Advantedge Commercial Finance Limited,520.80, 06-Dec-2018
87,Revenue,CAHD,CSC - Allowances,Membership Fees,After Adoption,4190.00, 28-Dec-2018
88,Revenue,CAHD,Mental Health and Emotional Wellbeing,Other Small Contracts,Age UK South Gloucestershire,13725.00, 28-Dec-2018
89,Revenue,CAHD,Homecare - Central,Other Small Contracts,Agincare UK Limited,471.70, 19-Dec-2018
90,Revenue,CAHD,Home Care - Elderly - South,Other Small Contracts,Agincare UK Limited,1121.40, 19-Dec-2018
91,Revenue,CAHD,Homecare - Central,Other Small Contracts,Agincare UK Limited,587.40, 19-Dec-2018
92,Revenue,CAHD,Home Care - Elderly - South,Other Small Contracts,Agincare UK Limited,947.85, 19-Dec-2018
93,Revenue,CAHD,Home Care - Elderly - North,Other Small Contracts,Agincare UK Limited,71.20, 19-Dec-2018
94,Revenue,CAHD,Homecare - Central,Other Small Contracts,Agincare UK Limited,436.10, 24-Dec-2018
95,Revenue,CAHD,Home Care - Elderly - South,Other Small Contracts,Agincare UK Limited,801.00, 24-Dec-2018
96,Revenue,CAHD,Home Care - Elderly - North,Other Small Contracts,Agincare UK Limited,75.65, 24-Dec-2018
97,Revenue,CAHD,Homecare - Central,Other Small Contracts,Agincare UK Limited,654.15, 24-Dec-2018
98,Revenue,CAHD,Home Care - Elderly - South,Other Small Contracts,Agincare UK Limited,654.15, 24-Dec-2018
99,Revenue,CAHD,Home Care - Elderly - North,Other Small Contracts,Agincare UK Limited,467.25, 24-Dec-2018
100,Revenue,CAHD,Extra Care Housing,Private & Voluntary Home Care,Agincare UK Limited,21920.39, 28-Dec-2018
101,Revenue,CAHD,Extra Care Housing,Private & Voluntary Home Care,Agincare UK Limited,10674.56, 28-Dec-2018
102,Revenue,CAHD,Extra Care Housing,Private & Voluntary Home Care,Agincare UK Limited,27590.00, 04-Dec-2018
103,Revenue,CAHD,Prison Assessments & Costs,Other Supplies & Services,Agincare UK Limited,2967.00, 28-Dec-2018
104,Revenue,CAHD,"Strategy, Advice and Public Protection",Other Small Contracts,Air Monitors Limited,1440.00, 28-Dec-2018
105,Revenue,CAHD,Home Care - Elderly - South,Other Small Contracts,AliMo Care Ltd,886.58, 06-Dec-2018
106,Revenue,CAHD,Home Care - Elderly - South,Other Small Contracts,AliMo Care Ltd,909.43, 06-Dec-2018
107,Revenue,CAHD,Home Care - Elderly - South,Other Small Contracts,AliMo Care Ltd,836.31, 06-Dec-2018
108,Revenue,CAHD,Home Care - Elderly - South,Other Small Contracts,AliMo Care Ltd,735.77, 06-Dec-2018
109,Revenue,CAHD,Home Care - Elderly - South,Other Small Contracts,AliMo Care Ltd,699.21, 06-Dec-2018
110,Revenue,CAHD,Home Care - Elderly - South,Other Small Contracts,AliMo Care Ltd,621.52, 14-Dec-2018
111,Revenue,CAHD,Home Care - Elderly - South,Other Small Contracts,AliMo Care Ltd,671.79, 21-Dec-2018
112,Revenue,CAHD,Home Care - Elderly - South,Other Small Contracts,AliMo Care Ltd,502.70, 28-Dec-2018
113,Revenue,CAHD,Home Care - Elderly - North,Other Small Contracts,AliMo Care Ltd,159.95, 28-Dec-2018
114,Revenue,CAHD,Bed Purchasing - North,Permanent Nursing,Allambie Court,2266.04, 18-Dec-2018
115,Revenue,CAHD,Bed Purchasing - North,Permanent Nursing,Allambie Court,2266.04, 18-Dec-2018
116,Revenue,CAHD,Mental Health and Emotional Wellbeing,Other Small Contracts,Alzheimers Society,11142.75, 28-Dec-2018
117,Revenue,CAHD,Bed Purchasing - North,Permanent Nursing,Amerind Grove Nursing Home,2642.88, 18-Dec-2018
118,Revenue,CAHD,A & CL - Flexible Learning 18/19,Computer Equipment - Purchase,Amey Computer Services,1058.20, 12-Dec-2018
119,Revenue,CAHD,A & CL - Flexible Learning 18/19,Computer Equipment - Purchase,Amey Computer Services,2240.00, 12-Dec-2018
120,Revenue,CAHD,CSC - Parent & Child Assessments,Foster Parent Allowances,Amicus Foster Care Ltd,7625.38, 03-Dec-2018
121,Revenue,CAHD,CSC - Agency Fostering,Foster Parent Allowances,Amicus Foster Care Ltd,5234.24, 04-Dec-2018
122,Revenue,CAHD,CSC - Agency Fostering,Foster Parent Allowances,Amicus Foster Care Ltd,7379.40, 04-Dec-2018
123,Revenue,CAHD,CSC - Agency Fostering,Foster Parent Allowances,Amicus Foster Care Ltd,4721.61, 04-Dec-2018
124,Revenue,CAHD,CSC - Agency Fostering,Foster Parent Allowances,Amicus Foster Care Ltd,3262.44, 28-Dec-2018
125,Revenue,CAHD,Supporting People Programme,Grants to Voluntary Bodies,Anchor Hanover Group,1015.00, 28-Dec-2018
126,Revenue,CAHD,Supporting People Programme,Grants to Voluntary Bodies,Anchor Hanover Group,827.00, 28-Dec-2018
127,Revenue,CAHD,CSC - Section 17 0-25,Preventative Assistance,Angel Care Support Limited,1260.00, 04-Dec-2018
128,Revenue,CAHD,Childrens - Safeguarding Board,Training Expenses,Anthony Domaille,900.00, 24-Dec-2018
129,Revenue,CAHD,Schools Specific Grant Income,Conference Expenses,Aquaterra Leisure,982.50, 24-Dec-2018
130,Revenue,CAHD,Independent Special Placements - Pre 16,Other Private Contractors,Arc Schools,18625.00, 19-Dec-2018
131,Revenue,CAHD,Jointly Funded H&SC Packages,Permanent Residential,Ash View House,1085.36, 18-Dec-2018
132,Revenue,CAHD,Bed Purchasing - South,Permanent Residential,Ash View House,5293.96, 18-Dec-2018
133,Revenue,CAHD,S117 Placements PCT,Permanent Residential,Ash View House,7379.20, 18-Dec-2018
134,Revenue,CAHD,18-25 Year Olds,Permanent Residential,Ash View House,6933.12, 18-Dec-2018
135,Revenue,CAHD,Section 117 Placements MH Younger,Permanent Residential,Ash View House,4808.72, 18-Dec-2018
136,Revenue,CAHD,Jointly Funded H&SC Packages,Permanent Residential,Ash View House,2060.92, 18-Dec-2018
137,Revenue,CAHD,Bed purchasing - Elderly S117 - South,Permanent Residential,Ash View House,6535.92, 18-Dec-2018
138,Revenue,CAHD,18-25 Year Olds,Permanent Residential,Ash View House,6460.48, 18-Dec-2018
139,Revenue,CAHD,CSC - Legal Fees,Legal Fees,Asha Groves,700.00, 05-Dec-2018
140,Revenue,CAHD,Drug and Alcohol Programme,Rent,Ashville Asset Management Limited,1204.38, 24-Dec-2018
141,Revenue,CAHD,Drug and Alcohol Programme,Rent,Ashville Asset Management Limited,4550.00, 24-Dec-2018
142,Revenue,CAHD,Bed Purchasing - North,Permanent Residential,Aspects 2 Limited,7062.40, 18-Dec-2018
143,Revenue,CAHD,Supporting People Programme,Grants to Voluntary Bodies,Aspects and Milestones Trust,3361.00, 28-Dec-2018
144,Revenue,CAHD,Supporting People Programme,Grants to Voluntary Bodies,Aspects and Milestones Trust,1685.00, 28-Dec-2018
145,Revenue,CAHD,CSC - Vinney Green Secure Unit,R & M by Departments,Assa Abloy Limited,5155.05, 27-Dec-2018
146,Revenue,CAHD,CSC - Vinney Green Secure Unit,R & M by Departments,Assa Abloy Limited,5155.05, 27-Dec-2018
147,Revenue,CAHD,Home Care - Elderly - South,Adults - Family Support,Ategi Limited,748.77, 28-Dec-2018
148,Revenue,CAHD,Bed Purchasing - South,Adults - Family Support,Ategi Limited,13031.12, 12-Dec-2018
149,Revenue,CAHD,Shared Lives,Other Supplies & Services,Ategi Limited,50430.75, 28-Dec-2018
150,Revenue,CAHD,CSC - Vinney Green Secure Unit,R & M by Departments,Atus Systems Limited,650.00, 28-Dec-2018
151,Revenue,CAHD,Independent Special Placements - Post 16,Other Private Contractors,Aurora Care & Education,62497.60, 06-Dec-2018
152,Revenue,CAHD,Independent Special Placements - Pre 16,Other Private Contractors,Aurora Hedgeway School,5972.01, 05-Dec-2018
153,Revenue,CAHD,Independent Special Placements - Pre 16,Other Private Contractors,Aurora Hedgeway School,5972.01, 05-Dec-2018
154,Revenue,CAHD,Independent Special Placements - Pre 16,Other Private Contractors,Aurora Hedgeway School,5972.01, 05-Dec-2018
155,Revenue,CAHD,Independent Special Placements - Pre 16,Other Private Contractors,Aurora Hedgeway School,7118.56, 05-Dec-2018
156,Revenue,CAHD,Independent Special Placements - Pre 16,Other Private Contractors,Aurora Hedgeway School,6429.83, 24-Dec-2018
157,Revenue,CAHD,Independent Special Placements - Pre 16,Other Private Contractors,Aurora Hedgeway School,20948.67, 07-Dec-2018
158,Revenue,CAHD,Independent Special Placements - Pre 16,Other Private Contractors,Aurora Hedgeway School,20948.67, 06-Dec-2018
159,Revenue,CAHD,Independent Special Placements - Pre 16,Other Private Contractors,Aurora Hedgeway School,15154.33, 14-Dec-2018
160,Revenue,CAHD,Independent Special Placements - Pre 16,Other Private Contractors,Aurora Hedgeway School,16984.00, 14-Dec-2018
161,Revenue,CAHD,Independent Special Placements - Pre 16,Other Private Contractors,Aurora Hedgeway School,15154.33, 14-Dec-2018
162,Revenue,CAHD,Independent Special Placements - Pre 16,Other Private Contractors,Aurora Hedgeway School,15154.33, 14-Dec-2018
163,Revenue,CAHD,Independent Special Placements - Pre 16,Other Private Contractors,Aurora Hedgeway School,15114.67, 14-Dec-2018
164,Revenue,CAHD,Independent Special Placements - Pre 16,Other Private Contractors,Aurora Hedgeway School,15154.33, 14-Dec-2018
165,Revenue,CAHD,Independent Special Placements - Pre 16,Other Private Contractors,Aurora Hedgeway School,15154.33, 14-Dec-2018
166,Revenue,CAHD,Independent Special Placements - Pre 16,Other Private Contractors,Aurora Hedgeway School,15154.33, 14-Dec-2018
167,Revenue,CAHD,Independent Special Placements - Pre 16,Other Private Contractors,Aurora Hedgeway School,20948.67, 14-Dec-2018
168,Revenue,CAHD,Independent Special Placements - Pre 16,Other Private Contractors,Aurora Hedgeway School,16984.00, 14-Dec-2018
169,Revenue,CAHD,Independent Special Placements - Pre 16,Other Private Contractors,Aurora Hedgeway School,22260.33, 14-Dec-2018
170,Revenue,CAHD,Independent Special Placements - Pre 16,Other Private Contractors,Aurora Hedgeway School,15154.33, 14-Dec-2018
171,Revenue,CAHD,Independent Special Placements - Pre 16,Other Private Contractors,Aurora Hedgeway School,15154.33, 14-Dec-2018
172,Revenue,CAHD,Independent Special Placements - Pre 16,Other Private Contractors,Aurora Hedgeway School,15154.33, 14-Dec-2018
173,Revenue,CAHD,Independent Special Placements - Pre 16,Other Private Contractors,Aurora Hedgeway School,15154.33, 14-Dec-2018
174,Revenue,CAHD,Independent Special Placements - Pre 16,Other Private Contractors,Aurora Hedgeway School,15154.33, 14-Dec-2018
175,Revenue,CAHD,Independent Special Placements - Pre 16,Other Private Contractors,Aurora Hedgeway School,15154.33, 14-Dec-2018
176,Revenue,CAHD,Independent Special Placements - Pre 16,Other Private Contractors,Aurora Hedgeway School,15154.33, 14-Dec-2018
177,Revenue,CAHD,Bed Purchasing - South,Permanent Residential,Autism Specialised Care Homes,6354.36, 18-Dec-2018
178,Revenue,CAHD,Bed Purchasing - North,Permanent Residential,Avery Homes Downend Limited,4200.00, 18-Dec-2018
179,Revenue,CAHD,Bed Purchasing - North,Fees & Charges Income - General,Avery Homes Downend Limited,672.17, 18-Dec-2018
180,Revenue,CAHD,Bed Purchasing - North,Fees & Charges Income - General,Avery Homes Downend Limited,907.51, 18-Dec-2018
181,Revenue,CAHD,Younger Adult Mental Health,Health Services (Third Party Payments),Avon & Wiltshire Mental Health,1693.33, 10-Dec-2018
182,Revenue,CAHD,CSC - LAC - Counselling & Therapy,Other Supplies & Services,Avon & Wiltshire Mental Health,30000.00, 06-Dec-2018
183,Revenue,CAHD,CSC - Vinney Green Secure Unit,Training Expenses,Avon & Wiltshire Mental Health,4700.00, 06-Dec-2018
184,Revenue,CAHD,School Improvement and Support,Other Supplies & Services,BAC Trading Limited,11711.10, 19-Dec-2018
185,Revenue,CAHD,Early Years High Needs Support,Other Private Contractors,Baker Street Nursery & Pre-School,910.13, 21-Dec-2018
186,Revenue,CAHD,Childrens - Safeguarding Board,Training Expenses,Barnardo Services Limited,425.00, 28-Dec-2018
187,Revenue,CAHD,Purchase of RAC places,Other L.A.'s - General,Bath & North East Somerset Council,1417.60, 10-Dec-2018
188,Revenue,CAHD,Purchase of RAC places,Other L.A.'s - General,Bath & North East Somerset Council,966.08, 10-Dec-2018
189,Revenue,CAHD,Pensions - Non DSG,Annual Pension,Bath & North East Somerset Council,109390.45, 14-Dec-2018
190,Revenue,CAHD,Independent Special Placements - Pre 16,Other Private Contractors,Bath Road Priory,77550.00, 24-Dec-2018
191,Revenue,CAHD,Research & Conferences,Conference Expenses,Bawa Healthcare & Leisure,1835.62, 24-Dec-2018
192,Revenue,CAHD,Pathway 3 - (Complex Beds),Permanent Nursing,Beaufort Care Ltd,10882.00, 03-Dec-2018
193,Revenue,CAHD,South Glos Users in South Glos Homes,Permanent Nursing,Beaufort Grange Care Home,632.64, 18-Dec-2018
194,Revenue,CAHD,South Glos Users in South Glos Homes,Permanent Nursing,Beaufort Grange Care Home,632.64, 18-Dec-2018
195,Revenue,CAHD,South Glos Users in South Glos Homes,Permanent Nursing,Beaufort Grange Care Home,632.64, 18-Dec-2018
196,Revenue,CAHD,South Glos Users in South Glos Homes,Permanent Nursing,Beaufort Grange Care Home,632.64, 18-Dec-2018
197,Revenue,CAHD,South Glos Users in South Glos Homes,Permanent Nursing,Beaufort Grange Care Home,632.64, 18-Dec-2018
198,Revenue,CAHD,South Glos Users in South Glos Homes,Permanent Nursing,Beaufort Grange Care Home,632.64, 18-Dec-2018
199,Revenue,CAHD,South Glos Users in South Glos Homes,Permanent Nursing,Beaufort Grange Care Home,632.64, 18-Dec-2018
200,Revenue,CAHD,South Glos Users in South Glos Homes,Permanent Nursing,Beaufort Grange Care Home,632.64, 18-Dec-2018
201,Revenue,CAHD,Bed Purchasing - Elderly S117- North,Permanent Nursing,Beaufort Grange Care Home,4762.72, 18-Dec-2018
202,Revenue,CAHD,South Glos Users in South Glos Homes,Permanent Nursing,Beaufort Grange Care Home,632.64, 18-Dec-2018
203,Revenue,CAHD,South Glos Users in South Glos Homes,Permanent Nursing,Beaufort Grange Care Home,632.64, 18-Dec-2018
204,Revenue,CAHD,South Glos Users in South Glos Homes,Permanent Nursing,Beaufort Grange Care Home,3253.58, 18-Dec-2018
205,Revenue,CAHD,South Glos Users in South Glos Homes,Permanent Nursing,Beaufort Grange Care Home,632.64, 18-Dec-2018
206,Revenue,CAHD,South Glos Users in South Glos Homes,Permanent Nursing,Beaufort Grange Care Home,632.64, 18-Dec-2018
207,Revenue,CAHD,South Glos Users in South Glos Homes,Permanent Nursing,Beaufort Grange Care Home,3773.25, 18-Dec-2018
208,Revenue,CAHD,South Glos Users in South Glos Homes,Permanent Nursing,Beaufort Grange Care Home,632.64, 18-Dec-2018
209,Revenue,CAHD,South Glos Users in South Glos Homes,Permanent Nursing,Beaufort Grange Care Home,632.64, 18-Dec-2018
210,Revenue,CAHD,South Glos Users in South Glos Homes,Permanent Nursing,Beaufort Grange Care Home,632.64, 18-Dec-2018
211,Revenue,CAHD,South Glos Users in South Glos Homes,Permanent Nursing,Beaufort Grange Care Home,632.64, 18-Dec-2018
212,Revenue,CAHD,South Glos Users in South Glos Homes,Permanent Nursing,Beaufort Grange Care Home,632.64, 18-Dec-2018
213,Revenue,CAHD,South Glos Users in South Glos Homes,Permanent Nursing,Beaufort Grange Care Home,632.64, 18-Dec-2018
214,Revenue,CAHD,South Glos Users in South Glos Homes,Permanent Nursing,Beaufort Grange Care Home,632.64, 18-Dec-2018
215,Revenue,CAHD,South Glos Users in South Glos Homes,Permanent Nursing,Beaufort Grange Care Home,3615.09, 18-Dec-2018
216,Revenue,CAHD,South Glos Users in South Glos Homes,Permanent Nursing,Beaufort Grange Care Home,632.64, 18-Dec-2018
217,Revenue,CAHD,South Glos Users in South Glos Homes,Permanent Nursing,Beaufort Grange Care Home,3230.98, 18-Dec-2018
218,Revenue,CAHD,South Glos Users in South Glos Homes,Permanent Nursing,Beaufort Grange Care Home,632.64, 18-Dec-2018
219,Revenue,CAHD,South Glos Users in South Glos Homes,Permanent Nursing,Beaufort Grange Care Home,3615.09, 18-Dec-2018
220,Revenue,CAHD,South Glos Users in South Glos Homes,Permanent Nursing,Beaufort Grange Care Home,632.64, 18-Dec-2018
221,Revenue,CAHD,South Glos Users in South Glos Homes,Permanent Nursing,Beaufort Grange Care Home,632.64, 18-Dec-2018
222,Revenue,CAHD,South Glos Users in South Glos Homes,Permanent Nursing,Beaufort Grange Care Home,632.64, 18-Dec-2018
223,Revenue,CAHD,South Glos Users in South Glos Homes,Permanent Nursing,Beaufort Grange Care Home,632.64, 18-Dec-2018
224,Revenue,CAHD,Bed Purchasing - North,Permanent Residential,Beaufort House,2489.80, 18-Dec-2018
225,Revenue,CAHD,Bed Purchasing - North,Respite Planned - Residential,Beaufort House,1714.29, 18-Dec-2018
226,Revenue,CAHD,Bed Purchasing - Central,Permanent Residential,Beaufort House,2800.00, 18-Dec-2018
227,Revenue,CAHD,Bed Purchasing - Central,Permanent Residential,Beaufort House,2710.56, 18-Dec-2018
228,Revenue,CAHD,Bed Purchasing - North,Permanent Residential,Beaufort House,2511.12, 18-Dec-2018
229,Revenue,CAHD,Bed Purchasing - South,Permanent Residential,Beaufort House,2477.40, 18-Dec-2018
230,Revenue,CAHD,Bed Purchasing - Central,Permanent Residential,Beaufort House,11200.00, 18-Dec-2018
231,Revenue,CAHD,Bed Purchasing - Central,Fees & Charges Income - General,Beaufort House,2189.87, 18-Dec-2018
232,Revenue,CAHD,Bed Purchasing - Central,Fees & Charges Income - General,Beaufort House,11100.00, 18-Dec-2018
233,Revenue,CAHD,Bed Purchasing - North,Respite Planned - Residential,Beaufort House,968.06, 18-Dec-2018
234,Revenue,CAHD,Bed Purchasing - North,Respite Planned - Residential,Beaufort House,2100.00, 18-Dec-2018
235,Revenue,CAHD,Bed Purchasing - Central,Permanent Residential,Beaufort House,2710.56, 18-Dec-2018
236,Revenue,CAHD,Bed Purchasing - North,Permanent Residential,Beaufort House,2636.64, 18-Dec-2018
237,Revenue,CAHD,Bed Purchasing - South,Permanent Residential,Beaufort House,2649.40, 18-Dec-2018
238,Revenue,CAHD,South Glos Users in South Glos Homes,Permanent Nursing,Beech House,632.64, 18-Dec-2018
239,Revenue,CAHD,Bed Purchasing - South,Permanent Residential,Beech House,2890.28, 18-Dec-2018
240,Revenue,CAHD,South Glos Users in South Glos Homes,Permanent Nursing,Beech House,632.64, 18-Dec-2018
241,Revenue,CAHD,Bed Purchasing - North,Permanent Residential,Beech House,4055.64, 18-Dec-2018
242,Revenue,CAHD,South Glos Users in South Glos Homes,Permanent Nursing,Beech House,632.64, 18-Dec-2018
243,Revenue,CAHD,South Glos Users in South Glos Homes,Permanent Nursing,Beech House,632.64, 18-Dec-2018
244,Revenue,CAHD,Bed Purchasing - North,Permanent Nursing,Beech House,2761.24, 18-Dec-2018
245,Revenue,CAHD,South Glos Users in South Glos Homes,Permanent Nursing,Beech House,632.64, 18-Dec-2018
246,Revenue,CAHD,South Glos Users in South Glos Homes,Permanent Nursing,Beech House,632.64, 18-Dec-2018
247,Revenue,CAHD,Bed Purchasing - North,Permanent Nursing,Beech House,3088.64, 18-Dec-2018
248,Revenue,CAHD,South Glos Users in South Glos Homes,Permanent Nursing,Beech House,632.64, 18-Dec-2018
249,Revenue,CAHD,Bed Purchasing - North,Permanent Nursing,Beech House,3464.60, 18-Dec-2018
250,Revenue,CAHD,South Glos Users in South Glos Homes,Permanent Nursing,Beech House,632.64, 18-Dec-2018
251,Revenue,CAHD,Bed Purchasing - North,Permanent Residential,Beech House,2890.28, 18-Dec-2018
252,Revenue,CAHD,South Glos Users in South Glos Homes,Permanent Nursing,Beech House,632.64, 18-Dec-2018
253,Revenue,CAHD,South Glos Users in South Glos Homes,Permanent Nursing,Beech House,632.64, 18-Dec-2018
254,Revenue,CAHD,South Glos Users in South Glos Homes,Permanent Nursing,Beech House,632.64, 18-Dec-2018
255,Revenue,CAHD,South Glos Users in South Glos Homes,Permanent Nursing,Beech House,632.64, 18-Dec-2018
256,Revenue,CAHD,Bed Purchasing - North,Permanent Nursing,Beech House,3900.00, 18-Dec-2018
257,Revenue,CAHD,South Glos Users in South Glos Homes,Permanent Nursing,Beech House,632.64, 18-Dec-2018
258,Revenue,CAHD,South Glos Users in South Glos Homes,Permanent Nursing,Beech House,632.64, 18-Dec-2018
259,Revenue,CAHD,Bed Purchasing - North,Permanent Residential,Beech House,3974.12, 18-Dec-2018
260,Revenue,CAHD,South Glos Users in South Glos Homes,Permanent Nursing,Beech House,632.64, 18-Dec-2018
261,Revenue,CAHD,Bed Purchasing - North,Permanent Residential,Beech House,3749.92, 18-Dec-2018
262,Revenue,CAHD,South Glos Users in South Glos Homes,Permanent Nursing,Beech House,632.64, 18-Dec-2018
263,Revenue,CAHD,South Glos Users in South Glos Homes,Permanent Nursing,Beech House,632.64, 18-Dec-2018
264,Revenue,CAHD,Bed Purchasing - North,Respite Emergency - Residential,Beech House,995.00, 18-Dec-2018
265,Revenue,CAHD,South Glos Users in South Glos Homes,Permanent Nursing,Beech House,632.64, 18-Dec-2018
266,Revenue,CAHD,South Glos Users in South Glos Homes,Permanent Nursing,Beech House,632.64, 18-Dec-2018
267,Revenue,CAHD,Bed Purchasing - North,Permanent Nursing,Beech House,3362.72, 18-Dec-2018
268,Revenue,CAHD,South Glos Users in South Glos Homes,Permanent Nursing,Beech House,632.64, 18-Dec-2018
269,Revenue,CAHD,Bed Purchasing - North,Permanent Nursing,Beech House,3229.92, 18-Dec-2018
270,Revenue,CAHD,South Glos Users in South Glos Homes,Permanent Nursing,Beech House,632.64, 18-Dec-2018
271,Revenue,CAHD,South Glos Users in South Glos Homes,Permanent Nursing,Beech House,632.64, 18-Dec-2018
272,Revenue,CAHD,South Glos Users in South Glos Homes,Permanent Nursing,Beech House,632.64, 18-Dec-2018
273,Revenue,CAHD,Statemented Support Payments to OLAs,Other L.A.'s - General,Beechen Cliff School,718.49, 21-Dec-2018
274,Revenue,CAHD,Independent Special Placements - Pre 16,Other Private Contractors,Belgrave School,4122.33, 07-Dec-2018
275,Revenue,CAHD,Independent Special Placements - Pre 16,Other Private Contractors,Belgrave School,4807.33, 07-Dec-2018
276,Revenue,CAHD,Independent Special Placements - Pre 16,Other Private Contractors,Belgrave School,5441.00, 06-Dec-2018
277,Revenue,CAHD,Independent Special Placements - Pre 16,Other Private Contractors,Belgrave School,7654.33, 06-Dec-2018
278,Revenue,CAHD,Bed purchasing - Elderly S117 - South,Permanent Residential,Bidna House,3606.08, 18-Dec-2018
279,Revenue,CAHD,CSC - Care Leavers Support Costs,"Provisions (Food, etc)",Big Yellow Self Storage Company Limited,1753.01, 28-Dec-2018
280,Revenue,CAHD,Bed Purchasing - North,Permanent Nursing,Bloomfield Care Centre,4367.36, 18-Dec-2018
281,Revenue,CAHD,South Glos Users in South Glos Homes,Permanent Nursing,Blossom Field,632.64, 18-Dec-2018
282,Revenue,CAHD,South Glos Users in South Glos Homes,Permanent Nursing,Blossom Field,632.64, 18-Dec-2018
283,Revenue,CAHD,Bed Purchasing - Elderly S117- North,Permanent Nursing,Blossom Field,3607.00, 18-Dec-2018
284,Revenue,CAHD,South Glos Users in South Glos Homes,Permanent Nursing,Blossom Field,632.64, 18-Dec-2018
285,Revenue,CAHD,South Glos Users in South Glos Homes,Permanent Nursing,Blossom Field,632.64, 18-Dec-2018
286,Revenue,CAHD,South Glos Users in South Glos Homes,Permanent Nursing,Blossom Field,632.64, 18-Dec-2018
287,Revenue,CAHD,Bed Purchasing - North,Permanent Nursing,Blossom Field,4167.36, 18-Dec-2018
288,Revenue,CAHD,South Glos Users in South Glos Homes,Permanent Nursing,Blossom Field,632.64, 18-Dec-2018
289,Revenue,CAHD,South Glos Users in South Glos Homes,Permanent Nursing,Blossom Field,632.64, 18-Dec-2018
290,Revenue,CAHD,South Glos Users in South Glos Homes,Permanent Nursing,Blossom Field,632.64, 18-Dec-2018
291,Revenue,CAHD,South Glos Users in South Glos Homes,Permanent Nursing,Blossom Field,632.64, 18-Dec-2018
292,Revenue,CAHD,Bed Purchasing - South,Permanent Nursing,Blossom Field,4309.64, 18-Dec-2018
293,Revenue,CAHD,South Glos Users in South Glos Homes,Permanent Nursing,Blossom Field,632.64, 18-Dec-2018
294,Revenue,CAHD,Bed Purchasing - North,Permanent Nursing,Blossom Field,3447.36, 18-Dec-2018
295,Revenue,CAHD,South Glos Users in South Glos Homes,Permanent Nursing,Blossom Field,632.64, 18-Dec-2018
296,Revenue,CAHD,South Glos Users in South Glos Homes,Permanent Nursing,Blossom Field,632.64, 18-Dec-2018
297,Revenue,CAHD,Bed Purchasing - North,Permanent Nursing,Blossom Field,4687.40, 18-Dec-2018
298,Revenue,CAHD,South Glos Users in South Glos Homes,Permanent Nursing,Blossom Field,632.64, 18-Dec-2018
299,Revenue,CAHD,South Glos Users in South Glos Homes,Permanent Nursing,Blossom Field,632.64, 18-Dec-2018
300,Revenue,CAHD,South Glos Users in South Glos Homes,Permanent Nursing,Blossom Field,632.64, 18-Dec-2018
301,Revenue,CAHD,South Glos Users in South Glos Homes,Permanent Nursing,Blossom Field,632.64, 18-Dec-2018
302,Revenue,CAHD,South Glos Users in South Glos Homes,Permanent Nursing,Blossom Field,564.86, 18-Dec-2018
303,Revenue,CAHD,South Glos Users in South Glos Homes,Permanent Nursing,Blossom Field,723.02, 18-Dec-2018
304,Revenue,CAHD,South Glos Users in South Glos Homes,Permanent Nursing,Blossom Field,632.64, 18-Dec-2018
305,Revenue,CAHD,South Glos Users in South Glos Homes,Permanent Nursing,Blossom Field,632.64, 18-Dec-2018
306,Revenue,CAHD,South Glos Users in South Glos Homes,Permanent Nursing,Blossom Field,632.64, 18-Dec-2018
307,Revenue,CAHD,Bed Purchasing - North,Permanent Nursing,Blossom Field,3549.76, 18-Dec-2018
308,Revenue,CAHD,South Glos Users in South Glos Homes,Permanent Nursing,Blossom Field,632.64, 18-Dec-2018
309,Revenue,CAHD,South Glos Users in South Glos Homes,Permanent Nursing,Blossom Field,632.64, 18-Dec-2018
310,Revenue,CAHD,South Glos Users in South Glos Homes,Permanent Nursing,Blossom Field,632.64, 18-Dec-2018
311,Revenue,CAHD,Bed Purchasing - North,Permanent Residential,Bluebells,3612.88, 18-Dec-2018
312,Revenue,CAHD,Homecare - Central,Other Small Contracts,Bluebird Care (South Gloucestershire),838.05, 04-Dec-2018
313,Revenue,CAHD,Home Care - Elderly - South,Other Small Contracts,Bluebird Care (South Gloucestershire),450.32, 04-Dec-2018
314,Revenue,CAHD,Home Care - Elderly - North,Other Small Contracts,Bluebird Care (South Gloucestershire),1361.66, 04-Dec-2018
315,Revenue,CAHD,Homecare - Central,Other Small Contracts,Bluebird Care (South Gloucestershire),875.80, 19-Dec-2018
316,Revenue,CAHD,Home Care - Elderly - South,Other Small Contracts,Bluebird Care (South Gloucestershire),475.26, 19-Dec-2018
317,Revenue,CAHD,Home Care - Elderly - North,Other Small Contracts,Bluebird Care (South Gloucestershire),1354.34, 19-Dec-2018
318,Revenue,CAHD,Homecare - Central,Other Small Contracts,Bluebird Care (South Gloucestershire),1252.10, 19-Dec-2018
319,Revenue,CAHD,Home Care - Elderly - South,Other Small Contracts,Bluebird Care (South Gloucestershire),454.97, 19-Dec-2018
320,Revenue,CAHD,Home Care - Elderly - North,Other Small Contracts,Bluebird Care (South Gloucestershire),1816.25, 19-Dec-2018
321,Revenue,CAHD,Pathway 1 - Re-Ablement Home Care,Other Small Contracts,Bluebird Care (South Gloucestershire),1434.50, 18-Dec-2018
322,Revenue,CAHD,Training - Adult Services,Training Expenses,Individual,975.00, 14-Dec-2018
323,Revenue,CAHD,Bed purchasing - S28A Under 65 - South,Permanent Residential,Bradbury House,4946.40, 18-Dec-2018
324,Revenue,CAHD,18-25 Year Olds,Permanent Residential,Bradbury House,9684.64, 18-Dec-2018
325,Revenue,CAHD,Bed Purchasing - North,Permanent Residential,Bradbury House,2751.32, 18-Dec-2018
326,Revenue,CAHD,CSC - Residential Placements,Permanent Residential,Branas ISAF Ltd,3214.29, 18-Dec-2018
327,Revenue,CAHD,CSC - Residential Placements,Permanent Residential,Branas ISAF Ltd,19285.71, 03-Dec-2018
328,Revenue,CAHD,Social Lettings Agency,Fees - General,Individual,8.15, 03-Dec-2018
329,Revenue,CAHD,Social Lettings Agency,Other Supplies & Services,Individual,766.10, 03-Dec-2018
330,Revenue,CAHD,Bed Purchasing - North,Permanent Residential,Bridge House Care Home,2469.12, 18-Dec-2018
331,Revenue,CAHD,Bed Purchasing - North,Permanent Residential,Bridge House Care Home,2427.40, 18-Dec-2018
332,Revenue,CAHD,Bed Purchasing - North,Permanent Residential,Bridge House Care Home,2564.00, 18-Dec-2018
333,Revenue,CAHD,Bed Purchasing - North,Permanent Residential,Bridgwater Court,10521.12, 18-Dec-2018
334,Revenue,CAHD,Early Years High Needs Support,Other Private Contractors,Bright Sparks Pre-School,819.11, 21-Dec-2018
335,Revenue,CAHD,Health Inequalities,Other Small Contracts,Bristol & Avon Chinese Womens Group,500.00, 28-Dec-2018
336,Revenue,CAHD,Statemented Support Academies,Schools Funding,Bristol & South Gloucestershire UTC,7298.24, 21-Dec-2018
337,Revenue,CAHD,Older People's Commissioned Se,Grants to Voluntary Bodies,Bristol Area Stroke Foundation,19052.75, 28-Dec-2018
338,Revenue,CAHD,Placements OLA Special Schools and RB,Other L.A.'s - General,Bristol City Council - Schools,2578.00, 28-Dec-2018
339,Revenue,CAHD,Placements OLA Special Schools and RB,Other L.A.'s - General,Bristol City Council - Schools,1350.17, 28-Dec-2018
340,Revenue,CAHD,Statemented Support Payments to OLAs,Other L.A.'s - General,Bristol City Council - Schools,1378.83, 21-Dec-2018
341,Revenue,CAHD,Placements OLA Special Schools and RB,Other L.A.'s - General,Bristol City Council - Schools,3657.32, 28-Dec-2018
342,Revenue,CAHD,Placements OLA Special Schools and RB,Other L.A.'s - General,Bristol City Council - Schools,2578.00, 28-Dec-2018
343,Revenue,CAHD,Placements OLA Special Schools and RB,Other L.A.'s - General,Bristol City Council - Schools,1305.58, 28-Dec-2018
344,Revenue,CAHD,Statemented Support Payments to OLAs,Other L.A.'s - General,Bristol City Council - Schools,3297.66, 21-Dec-2018
345,Revenue,CAHD,Placements OLA Special Schools and RB,Other L.A.'s - General,Bristol City Council - Schools,3356.33, 28-Dec-2018
346,Revenue,CAHD,Statemented Support Payments to OLAs,Other L.A.'s - General,Bristol City Council - Schools,907.16, 21-Dec-2018
347,Revenue,CAHD,Placements OLA Special Schools and RB,Other L.A.'s - General,Bristol City Council - Schools,2578.00, 28-Dec-2018
348,Revenue,CAHD,Placements OLA Special Schools and RB,Other L.A.'s - General,Bristol City Council - Schools,1381.00, 28-Dec-2018
349,Revenue,CAHD,Placements OLA Special Schools and RB,Other L.A.'s - General,Bristol City Council - Schools,2050.17, 28-Dec-2018
350,Revenue,CAHD,Placements OLA Special Schools and RB,Other L.A.'s - General,Bristol City Council - Schools,914.33, 28-Dec-2018
351,Revenue,CAHD,Placements OLA Special Schools and RB,Other L.A.'s - General,Bristol City Council - Schools,1381.00, 28-Dec-2018
352,Revenue,CAHD,Placements OLA Special Schools and RB,Other L.A.'s - General,Bristol City Council - Schools,2050.17, 28-Dec-2018
353,Revenue,CAHD,Placements OLA Special Schools and RB,Other L.A.'s - General,Bristol City Council - Schools,2578.00, 28-Dec-2018
354,Revenue,CAHD,Placements OLA Special Schools and RB,Other L.A.'s - General,Bristol City Council - Schools,809.00, 28-Dec-2018
355,Revenue,CAHD,Placements OLA Special Schools and RB,Other L.A.'s - General,Bristol City Council - Schools,883.50, 28-Dec-2018
356,Revenue,CAHD,Placements OLA Special Schools and RB,Other L.A.'s - General,Bristol City Council - Schools,4107.54, 28-Dec-2018
357,Revenue,CAHD,Placements OLA Special Schools and RB,Other L.A.'s - General,Bristol City Council - Schools,1031.20, 28-Dec-2018
358,Revenue,CAHD,Placements OLA Special Schools and RB,Other L.A.'s - General,Bristol City Council - Schools,2578.00, 28-Dec-2018
359,Revenue,CAHD,Placements OLA Special Schools and RB,Other L.A.'s - General,Bristol City Council - Schools,809.00, 28-Dec-2018
360,Revenue,CAHD,Placements OLA Special Schools and RB,Other L.A.'s - General,Bristol City Council - Schools,2578.00, 28-Dec-2018
361,Revenue,CAHD,Placements OLA Special Schools and RB,Other L.A.'s - General,Bristol City Council - Schools,883.50, 28-Dec-2018
362,Revenue,CAHD,Placements OLA Special Schools and RB,Other L.A.'s - General,Bristol City Council - Schools,2062.40, 28-Dec-2018
363,Revenue,CAHD,Placements OLA Special Schools and RB,Other L.A.'s - General,Bristol City Council - Schools,2578.00, 28-Dec-2018
364,Revenue,CAHD,Placements OLA Special Schools and RB,Other L.A.'s - General,Bristol City Council - Schools,883.50, 28-Dec-2018
365,Revenue,CAHD,CSC - LAC Placements,Personal Needs of Clients,Bristol Clifton & West of England Zoological,600.00, 28-Dec-2018
366,Revenue,CAHD,Home Care - Elderly - South,Day Care / Social Activities,Bristol Houses UK Limited,724.80, 05-Dec-2018
367,Revenue,CAHD,Home Care - Elderly - South,Day Care / Social Activities,Bristol Houses UK Limited,724.80, 05-Dec-2018
368,Revenue,CAHD,Home Care - Elderly - South,Day Care / Social Activities,Bristol Houses UK Limited,724.80, 07-Dec-2018
369,Revenue,CAHD,Future Bright,Fees - General,Bristol School of Beauty,849.00, 21-Dec-2018
370,Revenue,CAHD,Statemented Support Payments to OLAs,Other L.A.'s - General,Broadlands Academy,1331.66, 21-Dec-2018
371,Revenue,CAHD,Health Inequalities,Other Small Contracts,Individual,500.00, 28-Dec-2018
372,Revenue,CAHD,SLA Grants - Support Serv,Grants to Voluntary Bodies,Individual,500.00, 28-Dec-2018
373,Revenue,CAHD,South Glos Users in South Glos Homes,Permanent Nursing,Brunelcare,564.86, 21-Dec-2018
374,Revenue,CAHD,South Glos Users in South Glos Homes,Permanent Nursing,Brunelcare,677.83, 21-Dec-2018
375,Revenue,CAHD,South Glos Users in South Glos Homes,Permanent Nursing,Brunelcare,677.83, 21-Dec-2018
376,Revenue,CAHD,South Glos Users in South Glos Homes,Permanent Nursing,Brunelcare,677.83, 21-Dec-2018
377,Revenue,CAHD,South Glos Users in South Glos Homes,Permanent Nursing,Brunelcare,677.83, 21-Dec-2018
378,Revenue,CAHD,South Glos Users in South Glos Homes,Permanent Nursing,Brunelcare,677.83, 21-Dec-2018
379,Revenue,CAHD,South Glos Users in South Glos Homes,Permanent Nursing,Brunelcare,677.83, 21-Dec-2018
380,Revenue,CAHD,South Glos Users in South Glos Homes,Permanent Nursing,Brunelcare,677.83, 21-Dec-2018
381,Revenue,CAHD,South Glos Users in South Glos Homes,Permanent Nursing,Brunelcare,677.83, 21-Dec-2018
382,Revenue,CAHD,South Glos Users in South Glos Homes,Permanent Nursing,Brunelcare,677.83, 21-Dec-2018
383,Revenue,CAHD,South Glos Users in South Glos Homes,Permanent Nursing,Brunelcare,677.83, 21-Dec-2018
384,Revenue,CAHD,South Glos Users in South Glos Homes,Permanent Nursing,Brunelcare,677.83, 21-Dec-2018
385,Revenue,CAHD,South Glos Users in South Glos Homes,Permanent Nursing,Brunelcare,677.83, 21-Dec-2018
386,Revenue,CAHD,South Glos Users in South Glos Homes,Permanent Nursing,Brunelcare,677.83, 21-Dec-2018
387,Revenue,CAHD,South Glos Users in South Glos Homes,Permanent Nursing,Brunelcare,700.42, 21-Dec-2018
388,Revenue,CAHD,Bed purchasing - Elderly S117 - South,Permanent Nursing,Brunelcare,3467.53, 21-Dec-2018
389,Revenue,CAHD,Bed purchasing - Elderly S117 - South,Permanent Nursing,Brunelcare,3467.53, 21-Dec-2018
390,Revenue,CAHD,Bed purchasing - Elderly S117 - South,Permanent Nursing,Brunelcare,3467.53, 21-Dec-2018
391,Revenue,CAHD,Bed Purchasing - Elderly S117- North,Permanent Nursing,Brunelcare,3467.53, 21-Dec-2018
392,Revenue,CAHD,Bed Purchasing - Elderly S117- North,Permanent Nursing,Brunelcare,3467.53, 21-Dec-2018
393,Revenue,CAHD,Bed Purchasing - South,Permanent Nursing,Brunelcare,2700.51, 21-Dec-2018
394,Revenue,CAHD,Bed Purchasing - South,Permanent Nursing,Brunelcare,2531.49, 21-Dec-2018
395,Revenue,CAHD,Bed Purchasing - South,Permanent Nursing,Brunelcare,2679.86, 21-Dec-2018
396,Revenue,CAHD,Bed Purchasing - South,Permanent Nursing,Brunelcare,2905.67, 21-Dec-2018
397,Revenue,CAHD,Bed Purchasing - South,Permanent Nursing,Brunelcare,1387.01, 21-Dec-2018
398,Revenue,CAHD,Bed Purchasing - South,Permanent Nursing,Brunelcare,2875.67, 21-Dec-2018
399,Revenue,CAHD,Bed Purchasing - South,Permanent Nursing,Brunelcare,2532.34, 21-Dec-2018
400,Revenue,CAHD,Enhanced Dementia Beds,Respite Planned - Nursing,Brunelcare,4152.86, 21-Dec-2018
401,Revenue,CAHD,Bed Purchasing - South,Respite Planned - Nursing,Brunelcare,924.67, 21-Dec-2018
402,Revenue,CAHD,Bed Purchasing - South,Respite Planned - Nursing,Brunelcare,577.92, 21-Dec-2018
403,Revenue,CAHD,Bed Purchasing - North,Permanent Nursing,Brunelcare,2362.89, 21-Dec-2018
404,Revenue,CAHD,Bed Purchasing - North,Permanent Nursing,Brunelcare,2791.41, 21-Dec-2018
405,Revenue,CAHD,Bed Purchasing - North,Permanent Nursing,Brunelcare,2781.30, 21-Dec-2018
406,Revenue,CAHD,Bed Purchasing - North,Permanent Nursing,Brunelcare,1150.27, 21-Dec-2018
407,Revenue,CAHD,Bed Purchasing - North,Permanent Nursing,Brunelcare,829.07, 21-Dec-2018
408,Revenue,CAHD,Bed Purchasing - North,Permanent Nursing,Brunelcare,3467.53, 21-Dec-2018
409,Revenue,CAHD,Bed Purchasing - North,Respite Planned - Nursing,Brunelcare,809.09, 21-Dec-2018
410,Revenue,CAHD,Bed Purchasing - North,Respite Planned - Nursing,Brunelcare,924.67, 21-Dec-2018
411,Revenue,CAHD,Pathway 2 - (Interim Beds),Permanent Nursing,Brunelcare,17511.00, 24-Dec-2018
412,Revenue,CAHD,Home Care - Elderly - South,Other Small Contracts,Brunelcare,25846.80, 03-Dec-2018
413,Revenue,CAHD,Home Care - Elderly - North,Other Small Contracts,Brunelcare,914.55, 03-Dec-2018
414,Revenue,CAHD,Home Care - Elderly - South,Other Small Contracts,Brunelcare,24511.88, 03-Dec-2018
415,Revenue,CAHD,Home Care - Elderly - North,Other Small Contracts,Brunelcare,923.65, 03-Dec-2018
416,Revenue,CAHD,Home Care - Elderly - South,Other Small Contracts,Brunelcare,24688.30, 10-Dec-2018
417,Revenue,CAHD,Home Care - Elderly - North,Other Small Contracts,Brunelcare,841.75, 10-Dec-2018
418,Revenue,CAHD,Pathway 1 - Re-Ablement Home Care,Other Small Contracts,Brunelcare,1274.00, 03-Dec-2018
419,Revenue,CAHD,Pathway 1 - Re-Ablement Home Care,Other Small Contracts,Brunelcare,950.95, 03-Dec-2018
420,Revenue,CAHD,Pathway 1 - Re-Ablement Home Care,Other Small Contracts,Brunelcare,1087.45, 03-Dec-2018
421,Revenue,CAHD,Pathway 1 - Re-Ablement Home Care,Other Small Contracts,Brunelcare,1005.55, 03-Dec-2018
422,Revenue,CAHD,Pathway 1 - Re-Ablement Home Care,Other Small Contracts,Brunelcare,914.55, 03-Dec-2018
423,Revenue,CAHD,Pathway 1 - Re-Ablement Home Care,Other Small Contracts,Brunelcare,1073.80, 03-Dec-2018
424,Revenue,CAHD,Pathway 1 - Re-Ablement Home Care,Other Small Contracts,Brunelcare,1337.70, 03-Dec-2018
425,Revenue,CAHD,Pathway 1 - Re-Ablement Home Care,Other Small Contracts,Brunelcare,2156.70, 03-Dec-2018
426,Revenue,CAHD,CSC - Vinney Green Secure Unit,R & M by Departments,BWS Standfast Fire & Security Systems,3422.00, 28-Dec-2018
427,Revenue,CAHD,Social Lettings Agency,Fees - General,Individual,16.16, 24-Dec-2018
428,Revenue,CAHD,Social Lettings Agency,Other Supplies & Services,Individual,710.96, 24-Dec-2018
429,Revenue,CAHD,CSC - Special Guardianship Orders,Special Payments,Individual,575.00, 21-Dec-2018
430,Revenue,CAHD,Academy Resource Base Funding,Other Public Bodies,Cabot Learning Federation,1175.88, 27-Dec-2018
431,Revenue,CAHD,Academy Resource Base Funding,Other Public Bodies,Cabot Learning Federation,1175.88, 27-Dec-2018
432,Revenue,CAHD,Academy Resource Base Funding,Other Public Bodies,Cabot Learning Federation,1702.96, 27-Dec-2018
433,Revenue,CAHD,Academy Resource Base Funding,Other Public Bodies,Cabot Learning Federation,1540.83, 27-Dec-2018
434,Revenue,CAHD,Academy Resource Base Funding,Other Public Bodies,Cabot Learning Federation,1540.83, 27-Dec-2018
435,Revenue,CAHD,Academy Resource Base Funding,Other Public Bodies,Cabot Learning Federation,1175.88, 27-Dec-2018
436,Revenue,CAHD,Academy Resource Base Funding,Other Public Bodies,Cabot Learning Federation,1175.88, 27-Dec-2018
437,Revenue,CAHD,Academy Resource Base Funding,Other Public Bodies,Cabot Learning Federation,1702.96, 27-Dec-2018
438,Revenue,CAHD,Academy Resource Base Funding,Other Public Bodies,Cabot Learning Federation,1702.96, 27-Dec-2018
439,Revenue,CAHD,Academy Resource Base Funding,Other Public Bodies,Cabot Learning Federation,1540.83, 27-Dec-2018
440,Revenue,CAHD,Academy Resource Base Funding,Other Public Bodies,Cabot Learning Federation,892.04, 27-Dec-2018
441,Revenue,CAHD,Statemented Support Payments to OLAs,Other L.A.'s - General,Cabot Learning Federation,518.03, 21-Dec-2018
442,Revenue,CAHD,Statemented Support Academies,Schools Funding,Cabot Learning Federation,706.70, 21-Dec-2018
443,Revenue,CAHD,Statemented Support Academies,Schools Funding,Cabot Learning Federation,753.87, 21-Dec-2018
444,Revenue,CAHD,Statemented Support Academies,Schools Funding,Cabot Learning Federation,659.53, 21-Dec-2018
445,Revenue,CAHD,Statemented Support Academies,Schools Funding,Cabot Learning Federation,706.70, 21-Dec-2018
446,Revenue,CAHD,Statemented Support Payments to OLAs,Other L.A.'s - General,Cabot Learning Federation,1013.28, 21-Dec-2018
447,Revenue,CAHD,Statemented Support Academies,Schools Funding,Cabot Learning Federation,518.03, 21-Dec-2018
448,Revenue,CAHD,Statemented Support Academies,Schools Funding,Cabot Learning Federation,836.41, 21-Dec-2018
449,Revenue,CAHD,Statemented Support Academies,Schools Funding,Cabot Learning Federation,576.99, 21-Dec-2018
450,Revenue,CAHD,Statemented Support Academies,Schools Funding,Cabot Learning Federation,753.87, 21-Dec-2018
451,Revenue,CAHD,Statemented Support Academies,Schools Funding,Cabot Learning Federation,954.33, 21-Dec-2018
452,Revenue,CAHD,Statemented Support Academies,Schools Funding,Cabot Learning Federation,706.70, 21-Dec-2018
453,Revenue,CAHD,Statemented Support Academies,Schools Funding,Cabot Learning Federation,553.41, 21-Dec-2018
454,Revenue,CAHD,Statemented Support Academies,Schools Funding,Cabot Learning Federation,694.91, 21-Dec-2018
455,Revenue,CAHD,Statemented Support Academies,Schools Funding,Cabot Learning Federation,883.58, 21-Dec-2018
456,Revenue,CAHD,Statemented Support Academies,Schools Funding,Cabot Learning Federation,1084.03, 21-Dec-2018
457,Revenue,CAHD,Statemented Support Academies,Schools Funding,Cabot Learning Federation,954.33, 21-Dec-2018
458,Revenue,CAHD,Statemented Support Payments to OLAs,Other L.A.'s - General,Cabot Learning Federation,600.58, 21-Dec-2018
459,Revenue,CAHD,Statemented Support Academies,Schools Funding,Cabot Learning Federation,859.99, 21-Dec-2018
460,Revenue,CAHD,Statemented Support Academies,Schools Funding,Cabot Learning Federation,600.58, 21-Dec-2018
461,Revenue,CAHD,Statemented Support Academies,Schools Funding,Cabot Learning Federation,871.78, 21-Dec-2018
462,Revenue,CAHD,Statemented Support Academies,Schools Funding,Cabot Learning Federation,1048.66, 21-Dec-2018
463,Revenue,CAHD,Statemented Support Academies,Schools Funding,Cabot Learning Federation,529.83, 21-Dec-2018
464,Revenue,CAHD,Statemented Support Academies,Schools Funding,Cabot Learning Federation,506.24, 21-Dec-2018
465,Revenue,CAHD,Statemented Support Academies,Schools Funding,Cabot Learning Federation,1048.66, 21-Dec-2018
466,Revenue,CAHD,Statemented Support Payments to OLAs,Other L.A.'s - General,Cabot Learning Federation,600.58, 21-Dec-2018
467,Revenue,CAHD,Statemented Support Payments to OLAs,Other L.A.'s - General,Cabot Learning Federation,1072.24, 21-Dec-2018
468,Revenue,CAHD,Statemented Support Payments to OLAs,Other L.A.'s - General,Cabot Learning Federation,588.78, 21-Dec-2018
469,Revenue,CAHD,Statemented Support Academies,Schools Funding,Cabot Learning Federation,918.95, 21-Dec-2018
470,Revenue,CAHD,NHS Health Checks,Other Small Contracts,Cadbury Heath Healthcare,2369.00, 07-Dec-2018
471,Revenue,CAHD,Sexual Health,Other Small Contracts,Cadbury Heath Healthcare,1207.50, 07-Dec-2018
472,Revenue,CAHD,Early Years High Needs Support,Other Private Contractors,Caerleon Childcare,515.74, 21-Dec-2018
473,Revenue,CAHD,Post 16 High Needs Placements,Other Private Contractors,Cambian Whinfell School Limited,48238.15, 06-Dec-2018
474,Revenue,CAHD,Post 16 High Needs Placements,Other Private Contractors,Cambian Whinfell School Limited,24166.67, 06-Dec-2018
475,Revenue,CAHD,Post 16 High Needs Placements,Other Private Contractors,Cambian Whinfell School Limited,24166.67, 24-Dec-2018
476,Revenue,CAHD,Post 16 High Needs Placements,Other Private Contractors,Cambian Whinfell School Limited,48238.15, 24-Dec-2018
477,Revenue,CAHD,Cambrian Green Day Service,Catering - Client Meals/Pupil Sch. Meals,Cambrian Court Dining,561.00, 11-Dec-2018
478,Revenue,CAHD,Cambrian Green Day Service,Catering - Client Meals/Pupil Sch. Meals,Cambrian Court Dining,561.00, 07-Dec-2018
479,Revenue,CAHD,Cambrian Green Day Service,Catering - Client Meals/Pupil Sch. Meals,Cambrian Court Dining,561.00, 18-Dec-2018
480,Revenue,CAHD,Cambrian Green Day Service,Catering - Client Meals/Pupil Sch. Meals,Cambrian Court Dining,555.50, 07-Dec-2018
481,Revenue,CAHD,Cambrian Green Day Service,Catering - Client Meals/Pupil Sch. Meals,Cambrian Court Dining,588.50, 24-Dec-2018
482,Revenue,CAHD,Cambrian Green Day Service,Catering - Client Meals/Pupil Sch. Meals,Cambrian Court Dining,556.50, 07-Dec-2018
483,Revenue,CAHD,Home Care - Elderly - North,Day Care / Social Activities,Camphill Communities Thornbury Limited,1135.00, 07-Dec-2018
484,Revenue,CAHD,Home Care - Elderly - North,Other Small Contracts,Camphill Communities Thornbury Limited,163.44, 07-Dec-2018
485,Revenue,CAHD,Home Care - Elderly - North,Supported Living,Camphill Communities Thornbury Limited,735.48, 07-Dec-2018
486,Revenue,CAHD,Home Care - Elderly - North,Day Care / Social Activities,Camphill Communities Thornbury Limited,1121.38, 14-Dec-2018
487,Revenue,CAHD,Home Care - Elderly - North,Other Small Contracts,Camphill Communities Thornbury Limited,163.44, 14-Dec-2018
488,Revenue,CAHD,Home Care - Elderly - North,Supported Living,Camphill Communities Thornbury Limited,830.82, 14-Dec-2018
489,Revenue,CAHD,Home Care - Elderly - North,Day Care / Social Activities,Camphill Communities Thornbury Limited,1139.54, 20-Dec-2018
490,Revenue,CAHD,Home Care - Elderly - North,Other Small Contracts,Camphill Communities Thornbury Limited,163.44, 20-Dec-2018
491,Revenue,CAHD,Home Care - Elderly - North,Supported Living,Camphill Communities Thornbury Limited,998.80, 20-Dec-2018
492,Revenue,CAHD,Home Care - Elderly - North,Day Care / Social Activities,Camphill Communities Thornbury Limited,885.30, 28-Dec-2018
493,Revenue,CAHD,Home Care - Elderly - North,Other Small Contracts,Camphill Communities Thornbury Limited,108.96, 28-Dec-2018
494,Revenue,CAHD,Home Care - Elderly - North,Supported Living,Camphill Communities Thornbury Limited,844.44, 28-Dec-2018
495,Revenue,CAHD,Bed Purchasing - Elderly S117- North,Permanent Residential,Canjayor,2468.44, 18-Dec-2018
496,Revenue,CAHD,CSC - Agency Fostering,Foster Parent Allowances,Capstone Foster Care (South West) Limited,820.72, 28-Dec-2018
497,Revenue,CAHD,CSC - Agency Fostering,Foster Parent Allowances,Capstone Foster Care (South West) Limited,790.02, 28-Dec-2018
498,Revenue,CAHD,CSC - Agency Fostering,Foster Parent Allowances,Capstone Foster Care (South West) Limited,790.02, 28-Dec-2018
499,Revenue,CAHD,Homecare - Central,Other Small Contracts,Care 1st Homecare,2760.48, 10-Dec-2018
500,Revenue,CAHD,Home Care - Elderly - North,Other Small Contracts,Care 1st Homecare,102.24, 10-Dec-2018
501,Revenue,CAHD,Homecare - Central,Other Small Contracts,Care 1st Homecare,2862.72, 10-Dec-2018
502,Revenue,CAHD,Homecare - Central,Other Small Contracts,Care 1st Homecare,2215.20, 19-Dec-2018
503,Revenue,CAHD,Homecare - Central,Other Small Contracts,Care 1st Homecare,2879.76, 19-Dec-2018
504,Revenue,CAHD,Home Care - Elderly - South,Supported Living,Care Futures,1345.10, 03-Dec-2018
505,Revenue,CAHD,Homecare - Central,Other Small Contracts,Care Horizons Limited,471.00, 12-Dec-2018
506,Revenue,CAHD,Home Care - Elderly - South,Other Small Contracts,Care Horizons Limited,390.93, 12-Dec-2018
507,Revenue,CAHD,Home Care - Elderly - North,Day Care / Social Activities,Care Horizons Limited,372.09, 12-Dec-2018
508,Revenue,CAHD,Home Care - Elderly - North,Other Small Contracts,Care Horizons Limited,75.36, 12-Dec-2018
509,Revenue,CAHD,Younger MH non-res purchasing,Other Small Contracts,Care Horizons Limited,226.08, 12-Dec-2018
510,Revenue,CAHD,Homecare - Central,Other Small Contracts,Care Horizons Limited,471.00, 12-Dec-2018
511,Revenue,CAHD,Home Care - Elderly - South,Other Small Contracts,Care Horizons Limited,442.74, 12-Dec-2018
512,Revenue,CAHD,Home Care - Elderly - North,Day Care / Social Activities,Care Horizons Limited,259.05, 12-Dec-2018
513,Revenue,CAHD,Home Care - Elderly - North,Other Small Contracts,Care Horizons Limited,75.36, 12-Dec-2018
514,Revenue,CAHD,Younger MH non-res purchasing,Other Small Contracts,Care Horizons Limited,188.40, 12-Dec-2018
515,Revenue,CAHD,Homecare - Central,Other Small Contracts,Care Horizons Limited,471.00, 19-Dec-2018
516,Revenue,CAHD,Home Care - Elderly - South,Other Small Contracts,Care Horizons Limited,376.80, 19-Dec-2018
517,Revenue,CAHD,Home Care - Elderly - North,Other Small Contracts,Care Horizons Limited,131.88, 19-Dec-2018
518,Revenue,CAHD,Younger MH non-res purchasing,Other Small Contracts,Care Horizons Limited,113.04, 19-Dec-2018
519,Revenue,CAHD,Homecare - Central,Other Small Contracts,Care Horizons Limited,485.13, 27-Dec-2018
520,Revenue,CAHD,Home Care - Elderly - South,Other Small Contracts,Care Horizons Limited,334.41, 27-Dec-2018
521,Revenue,CAHD,Home Care - Elderly - North,Other Small Contracts,Care Horizons Limited,75.36, 27-Dec-2018
522,Revenue,CAHD,Younger MH non-res purchasing,Other Small Contracts,Care Horizons Limited,197.82, 27-Dec-2018
523,Revenue,CAHD,Home Care Monitoring (CM2000),Other Small Contracts,Care Horizons Limited,2393.60, 24-Dec-2018
524,Revenue,CAHD,SLA Grants - Support Serv,Grants to Voluntary Bodies,Carers Support Centre,12275.00, 28-Dec-2018
525,Revenue,CAHD,SLA Grants - Support Serv,Grants to Voluntary Bodies,Carers Support Centre,25275.00, 28-Dec-2018
526,Revenue,CAHD,Health Inequalities,Other Small Contracts,Carers Support Centre,60477.00, 28-Dec-2018
527,Revenue,CAHD,Home Care - Elderly - South,Other Small Contracts,Caring Comes 1st Ltd,727.05, 03-Dec-2018
528,Revenue,CAHD,Home Care - Elderly - South,Other Small Contracts,Caring Comes 1st Ltd,1587.30, 14-Dec-2018
529,Revenue,CAHD,Home Care - Elderly - South,Other Small Contracts,Caring Comes 1st Ltd,538.35, 13-Dec-2018
530,Revenue,CAHD,Home Care - Elderly - South,Other Small Contracts,Caring Comes 1st Ltd,3152.40, 14-Dec-2018
531,Revenue,CAHD,Home Care - Elderly - South,Other Small Contracts,Caring Comes 1st Ltd,921.30, 14-Dec-2018
532,Revenue,CAHD,Home Care - Elderly - South,Other Small Contracts,Caring Comes 1st Ltd,1387.50, 07-Dec-2018
533,Revenue,CAHD,Home Care - Elderly - South,Other Small Contracts,Caring Comes 1st Ltd,2479.62, 03-Dec-2018
534,Revenue,CAHD,Home Care - Elderly - South,Other Small Contracts,Caring Comes 1st Ltd,1368.84, 18-Dec-2018
535,Revenue,CAHD,Home Care - Elderly - South,Other Small Contracts,Caring Comes 1st Ltd,2468.40, 05-Dec-2018
536,Revenue,CAHD,Home Care - Elderly - South,Other Small Contracts,Caring Comes 1st Ltd,942.48, 07-Dec-2018
537,Revenue,CAHD,Home Care - Elderly - South,Other Small Contracts,Caring Comes 1st Ltd,1155.66, 10-Dec-2018
538,Revenue,CAHD,Home Care - Elderly - South,Other Small Contracts,Caring Comes 1st Ltd,757.31, 03-Dec-2018
539,Revenue,CAHD,Home Care - Elderly - South,Other Small Contracts,Caring Comes 1st Ltd,1368.84, 24-Dec-2018
540,Revenue,CAHD,Home Care - Elderly - South,Other Small Contracts,Caring Comes 1st Ltd,976.14, 10-Dec-2018
541,Revenue,CAHD,Home Care - Elderly - South,Other Small Contracts,Caring Comes 1st Ltd,1043.46, 03-Dec-2018
542,Revenue,CAHD,Home Care - Elderly - South,Other Small Contracts,Caring Comes 1st Ltd,1122.00, 18-Dec-2018
543,Revenue,CAHD,Home Care - Elderly - South,Other Small Contracts,Caring Comes 1st Ltd,673.20, 14-Dec-2018
544,Revenue,CAHD,Home Care - Elderly - South,Other Small Contracts,Caring Comes 1st Ltd,942.48, 11-Dec-2018
545,Revenue,CAHD,Home Care - Elderly - South,Other Small Contracts,Caring Comes 1st Ltd,942.48, 18-Dec-2018
546,Revenue,CAHD,Home Care - Elderly - South,Other Small Contracts,Caring Comes 1st Ltd,1537.14, 03-Dec-2018
547,Revenue,CAHD,Home Care - Elderly - South,Other Small Contracts,Caring Comes 1st Ltd,1391.28, 14-Dec-2018
548,Revenue,CAHD,Home Care - Elderly - South,Other Small Contracts,Caring Comes 1st Ltd,2098.14, 20-Dec-2018
549,Revenue,CAHD,Home Care - Elderly - South,Other Small Contracts,Caring Comes 1st Ltd,1150.05, 14-Dec-2018
550,Revenue,CAHD,Home Care - Elderly - South,Other Small Contracts,Caring Comes 1st Ltd,2013.99, 10-Dec-2018
551,Revenue,CAHD,Home Care - Elderly - South,Other Small Contracts,Caring Comes 1st Ltd,3472.59, 20-Dec-2018
552,Revenue,CAHD,Home Care - Elderly - South,Other Small Contracts,Caring Comes 1st Ltd,627.20, 20-Dec-2018
553,Revenue,CAHD,Home Care - Elderly - South,Other Small Contracts,Caring Comes 1st Ltd,672.00, 14-Dec-2018
554,Revenue,CAHD,Home Care - Elderly - South,Other Small Contracts,Caring Comes 1st Ltd,2827.44, 10-Dec-2018
555,Revenue,CAHD,Home Care - Elderly - South,Other Small Contracts,Caring Comes 1st Ltd,942.48, 14-Dec-2018
556,Revenue,CAHD,Home Care - Elderly - South,Other Small Contracts,Caring Comes 1st Ltd,1795.20, 14-Dec-2018
557,Revenue,CAHD,Home Care - Elderly - South,Other Small Contracts,Caring Comes 1st Ltd,2131.80, 13-Dec-2018
558,Revenue,CAHD,Home Care - Elderly - South,Other Small Contracts,Caring Comes 1st Ltd,1245.42, 10-Dec-2018
559,Revenue,CAHD,Home Care - Elderly - South,Other Small Contracts,Caring Comes 1st Ltd,1391.28, 20-Dec-2018
560,Revenue,CAHD,Home Care - Elderly - South,Other Small Contracts,Caring Comes 1st Ltd,1166.88, 20-Dec-2018
561,Revenue,CAHD,Home Care - Elderly - South,Other Small Contracts,Caring Comes 1st Ltd,1795.20, 20-Dec-2018
562,Revenue,CAHD,Home Care - Elderly - South,Other Small Contracts,Caring Comes 1st Ltd,1391.28, 20-Dec-2018
563,Revenue,CAHD,Home Care - Elderly - North,Supported Living,Cartrefi Cymru Co-operative Ltd,7015.68, 03-Dec-2018
564,Revenue,CAHD,Home Care - Elderly - North,Supported Living,Cartrefi Cymru Co-operative Ltd,7015.68, 06-Dec-2018
565,Revenue,CAHD,Statemented Support Academies,Schools Funding,Castle School Education Trust,506.24, 21-Dec-2018
566,Revenue,CAHD,Statemented Support Academies,Schools Funding,Castle School Education Trust,659.53, 21-Dec-2018
567,Revenue,CAHD,Statemented Support Academies,Schools Funding,Castle School Education Trust,635.95, 21-Dec-2018
568,Revenue,CAHD,Statemented Support Academies,Schools Funding,Castle School Education Trust,706.70, 21-Dec-2018
569,Revenue,CAHD,Statemented Support Academies,Schools Funding,Castle School Education Trust,918.95, 21-Dec-2018
570,Revenue,CAHD,Statemented Support Academies,Schools Funding,Castle School Education Trust,1072.24, 21-Dec-2018
571,Revenue,CAHD,Statemented Support Academies,Schools Funding,Castle School Education Trust,683.12, 21-Dec-2018
572,Revenue,CAHD,Statemented Support Academies,Schools Funding,Castle School Education Trust,1001.49, 21-Dec-2018
573,Revenue,CAHD,Statemented Support Academies,Schools Funding,Castle School Education Trust,1602.87, 21-Dec-2018
574,Revenue,CAHD,Statemented Support Academies,Schools Funding,Castle School Education Trust,1001.49, 21-Dec-2018
575,Revenue,CAHD,Statemented Support Academies,Schools Funding,Castle School Education Trust,1142.99, 21-Dec-2018
576,Revenue,CAHD,Statemented Support Academies,Schools Funding,Castle School Education Trust,1260.91, 21-Dec-2018
577,Revenue,CAHD,Statemented Support Academies,Schools Funding,Castle School Education Trust,647.74, 21-Dec-2018
578,Revenue,CAHD,Statemented Support Academies,Schools Funding,Castle School Education Trust,730.28, 21-Dec-2018
579,Revenue,CAHD,Statemented Support Academies,Schools Funding,Castle School Education Trust,541.62, 21-Dec-2018
580,Revenue,CAHD,Statemented Support Academies,Schools Funding,Castle School Education Trust,1095.83, 21-Dec-2018
581,Revenue,CAHD,Statemented Support Academies,Schools Funding,Castle School Education Trust,718.49, 21-Dec-2018
582,Revenue,CAHD,Statemented Support Academies,Schools Funding,Castle School Education Trust,765.66, 21-Dec-2018
583,Revenue,CAHD,Statemented Support Academies,Schools Funding,Castle School Education Trust,966.12, 21-Dec-2018
584,Revenue,CAHD,Statemented Support Academies,Schools Funding,Castle School Education Trust,848.20, 21-Dec-2018
585,Revenue,CAHD,Statemented Support Academies,Schools Funding,Castle School Education Trust,989.70, 21-Dec-2018
586,Revenue,CAHD,Statemented Support Academies,Schools Funding,Castle School Education Trust,1378.83, 21-Dec-2018
587,Revenue,CAHD,Statemented Support Academies,Schools Funding,Castle School Education Trust,1201.95, 21-Dec-2018
588,Revenue,CAHD,Statemented Support Academies,Schools Funding,Castle School Education Trust,659.53, 21-Dec-2018
589,Revenue,CAHD,Statemented Support Academies,Schools Funding,Castle School Education Trust,718.49, 21-Dec-2018
590,Revenue,CAHD,Statemented Support Academies,Schools Funding,Castle School Education Trust,1284.49, 21-Dec-2018
591,Revenue,CAHD,Academy Resource Base Funding,Other Public Bodies,Castle School Education Trust,1175.88, 27-Dec-2018
592,Revenue,CAHD,Academy Resource Base Funding,Other Public Bodies,Castle School Education Trust,1702.96, 27-Dec-2018
593,Revenue,CAHD,Academy Resource Base Funding,Other Public Bodies,Castle School Education Trust,2189.53, 27-Dec-2018
594,Revenue,CAHD,Academy Resource Base Funding,Other Public Bodies,Castle School Education Trust,1702.96, 27-Dec-2018
595,Revenue,CAHD,Academy Resource Base Funding,Other Public Bodies,Castle School Education Trust,1702.96, 27-Dec-2018
596,Revenue,CAHD,Academy Resource Base Funding,Other Public Bodies,Castle School Education Trust,1702.96, 27-Dec-2018
597,Revenue,CAHD,Academy Resource Base Funding,Other Public Bodies,Castle School Education Trust,1702.96, 27-Dec-2018
598,Revenue,CAHD,Statemented Support Academies,Schools Funding,Castle School Education Trust,612.37, 21-Dec-2018
599,Revenue,CAHD,Statemented Support Academies,Schools Funding,Castle School Education Trust,1626.45, 21-Dec-2018
600,Revenue,CAHD,Schools in Financial Difficulties,Other Public Bodies,Castle School Education Trust,44448.17, 27-Dec-2018
601,Revenue,CAHD,Statemented Support Academies,Schools Funding,Castle School Education Trust,812.83, 21-Dec-2018
602,Revenue,CAHD,Statemented Support Academies,Schools Funding,Castle School Education Trust,1013.28, 21-Dec-2018
603,Revenue,CAHD,Statemented Support Academies,Schools Funding,Castle School Education Trust,989.70, 21-Dec-2018
604,Revenue,CAHD,Statemented Support Academies,Schools Funding,Castle School Education Trust,1048.66, 21-Dec-2018
605,Revenue,CAHD,Statemented Support Academies,Schools Funding,Castle School Education Trust,1331.66, 21-Dec-2018
606,Revenue,CAHD,Statemented Support Academies,Schools Funding,Castle School Education Trust,1697.20, 21-Dec-2018
607,Revenue,CAHD,Statemented Support Academies,Schools Funding,Castle School Education Trust,1166.58, 21-Dec-2018
608,Revenue,CAHD,Statemented Support Academies,Schools Funding,Castle School Education Trust,1614.66, 21-Dec-2018
609,Revenue,CAHD,Statemented Support Academies,Schools Funding,Castle School Education Trust,918.95, 21-Dec-2018
610,Revenue,CAHD,Social Lettings Agency,Fees - General,Individual,10.53, 28-Dec-2018
611,Revenue,CAHD,Social Lettings Agency,Fees & Charges Income - General,Individual,595.11, 28-Dec-2018
612,Revenue,CAHD,Home Care - Elderly - North,Day Care / Social Activities,Causeway House,1389.44, 18-Dec-2018
613,Revenue,CAHD,Homecare - Central,Day Care / Social Activities,Causeway House,1110.24, 18-Dec-2018
614,Revenue,CAHD,Home Care - Elderly - South,Day Care / Social Activities,Causeway House,5130.52, 18-Dec-2018
615,Revenue,CAHD,18-25 Year Olds,Day Care / Social Activities,Causeway House,4311.60, 18-Dec-2018
616,Revenue,CAHD,Homecare - Central,Day Care / Social Activities,Causeway House,2775.60, 18-Dec-2018
617,Revenue,CAHD,Homecare - Central,Day Care / Social Activities,Causeway House,1665.36, 18-Dec-2018
618,Revenue,CAHD,Home Care - Elderly - North,Day Care / Social Activities,Causeway House,3150.88, 18-Dec-2018
619,Revenue,CAHD,Home Care - Elderly - North,Day Care / Social Activities,Causeway House,4694.24, 18-Dec-2018
620,Revenue,CAHD,Homecare - Central,Day Care / Social Activities,Causeway House,2775.60, 18-Dec-2018
621,Revenue,CAHD,Home Care - Elderly - North,Day Care / Social Activities,Causeway House,3075.56, 18-Dec-2018
622,Revenue,CAHD,Home Care - Elderly - North,Day Care / Social Activities,Causeway House,555.12, 18-Dec-2018
623,Revenue,CAHD,CSC - Adoption Support Fund,Post Adoption,CCS Adoption,2260.00, 13-Dec-2018
624,Revenue,CAHD,Bed Purchasing - Elderly S117- North,Permanent Nursing,Cedar Care Homes Limited,8869.36, 18-Dec-2018
625,Revenue,CAHD,Childrens - Safeguarding Board,Training Expenses,Certain Curtain Theatre Company,1200.00, 10-Dec-2018
626,Revenue,CAHD,Bed Purchasing - Elderly S117- North,Permanent Residential,Challenge House,2511.12, 18-Dec-2018
627,Revenue,CAHD,Bed Purchasing - South,Respite Emergency - Residential,Challenge House,2315.16, 18-Dec-2018
628,Revenue,CAHD,Bed Purchasing - North,Permanent Residential,Challenge House,2180.68, 18-Dec-2018
629,Revenue,CAHD,Bed Purchasing - North,Permanent Residential,Challenge House,2315.16, 18-Dec-2018
630,Revenue,CAHD,Bed Purchasing - North,Permanent Residential,Challenge House,2039.72, 18-Dec-2018
631,Revenue,CAHD,Bed Purchasing - North,Permanent Nursing,Challenge House,3057.00, 18-Dec-2018
632,Revenue,CAHD,Bed Purchasing - Elderly S117- North,Permanent Nursing,Challenge House,2339.64, 18-Dec-2018
633,Revenue,CAHD,Bed Purchasing - North,Permanent Residential,Challenge House,2343.72, 18-Dec-2018
634,Revenue,CAHD,Bed Purchasing - North,Permanent Residential,Challenge House,2683.84, 18-Dec-2018
635,Revenue,CAHD,Bed Purchasing - North,Permanent Nursing,Challenge House,2511.12, 18-Dec-2018
636,Revenue,CAHD,Bed Purchasing - North,Permanent Nursing,Challenge House,2339.64, 18-Dec-2018
637,Revenue,CAHD,Bed Purchasing - North,Permanent Nursing,Challenge House,3057.00, 18-Dec-2018
638,Revenue,CAHD,Bed Purchasing - Central,Permanent Residential,Challenge House,3000.00, 18-Dec-2018
639,Revenue,CAHD,CSC - Vinney Green Secure Unit,"Provisions (Food, etc)",Charles Saunders Limited,546.51, 28-Dec-2018
640,Revenue,CAHD,Bed Purchasing - South,Permanent Nursing,Charnwood House Nursing Home,9835.60, 18-Dec-2018
641,Revenue,CAHD,Sexual Health,Other Small Contracts,Chelsea and Westminster Hospital,560.04, 27-Dec-2018
642,Revenue,CAHD,Homecare - Central,Other Small Contracts,Cherish Able Care Limited,2233.59, 12-Dec-2018
643,Revenue,CAHD,Home Care - Elderly - South,Other Small Contracts,Cherish Able Care Limited,5043.37, 12-Dec-2018
644,Revenue,CAHD,Homecare - Central,Other Small Contracts,Cherish Able Care Limited,2214.79, 12-Dec-2018
645,Revenue,CAHD,Home Care - Elderly - South,Other Small Contracts,Cherish Able Care Limited,5066.22, 12-Dec-2018
646,Revenue,CAHD,Homecare - Central,Other Small Contracts,Cherish Able Care Limited,1988.89, 19-Dec-2018
647,Revenue,CAHD,Home Care - Elderly - South,Other Small Contracts,Cherish Able Care Limited,5331.28, 19-Dec-2018
648,Revenue,CAHD,Bed purchasing - S28A Under 65 - South,Permanent Residential,Chescombe Lodge,9535.60, 18-Dec-2018
649,Revenue,CAHD,CSC - Agency Fostering,Foster Parent Allowances,Child Care Bureau Limited,3801.30, 03-Dec-2018
650,Revenue,CAHD,CSC - Agency Fostering,Foster Parent Allowances,Child Care Bureau Limited,3928.01, 27-Dec-2018
651,Revenue,CAHD,Future Bright,Fees - General,CILEx Law School,612.50, 11-Dec-2018
652,Revenue,CAHD,18-25 Year Olds,Other Small Contracts,Cintre,104.72, 12-Dec-2018
653,Revenue,CAHD,Homecare - Central,Other Small Contracts,Cintre,190.40, 12-Dec-2018
654,Revenue,CAHD,Home Care - Elderly - South,Other Small Contracts,Cintre,894.88, 12-Dec-2018
655,Revenue,CAHD,18-25 Year Olds,Other Small Contracts,Cintre,57.12, 12-Dec-2018
656,Revenue,CAHD,Homecare - Central,Other Small Contracts,Cintre,456.96, 12-Dec-2018
657,Revenue,CAHD,Home Care - Elderly - South,Other Small Contracts,Cintre,752.08, 12-Dec-2018
658,Revenue,CAHD,18-25 Year Olds,Other Small Contracts,Cintre,104.72, 27-Dec-2018
659,Revenue,CAHD,Homecare - Central,Other Small Contracts,Cintre,304.64, 27-Dec-2018
660,Revenue,CAHD,Home Care - Elderly - South,Other Small Contracts,Cintre,909.16, 27-Dec-2018
661,Revenue,CAHD,Learning Difficulties,Premises Hire,Circadian Trust,910.00, 14-Dec-2018
662,Revenue,CAHD,Home Care - Elderly - North,Other Small Contracts,City of Bradford District Council,840.00, 07-Dec-2018
663,Revenue,CAHD,MH Purchasing - Younger,Permanent Residential,Claro Homes,2803.60, 18-Dec-2018
664,Revenue,CAHD,Section 117 Placements MH Younger,Permanent Residential,Claro Homes,3471.28, 18-Dec-2018
665,Revenue,CAHD,Bed Purchasing - North,Respite Planned - Nursing,Claro Homes,3240.44, 18-Dec-2018
666,Revenue,CAHD,Bed Purchasing - South,Permanent Residential,Cleeve Lodge,3600.00, 18-Dec-2018
667,Revenue,CAHD,Bed Purchasing - South,Permanent Residential,Cleeve Lodge,3085.71, 18-Dec-2018
668,Revenue,CAHD,Bed Purchasing - South,Permanent Residential,Cleeve Lodge,3600.00, 18-Dec-2018
669,Revenue,CAHD,Bed Purchasing - South,Permanent Residential,Cleeve Lodge,1277.76, 18-Dec-2018
670,Revenue,CAHD,Bed Purchasing - South,Permanent Residential,Cleeve Lodge,2853.20, 18-Dec-2018
671,Revenue,CAHD,Bed Purchasing - South,Permanent Residential,Cleeve Lodge,3014.16, 18-Dec-2018
672,Revenue,CAHD,Bed Purchasing - South,Permanent Residential,Cleeve Lodge,3220.04, 18-Dec-2018
673,Revenue,CAHD,Bed Purchasing - South,Permanent Residential,Cleeve Lodge,2787.08, 18-Dec-2018
674,Revenue,CAHD,Bed Purchasing - South,Permanent Residential,Cleeve Lodge,2573.84, 18-Dec-2018
675,Revenue,CAHD,Homecare - Central,Other Small Contracts,Clover Health and Home Care Ltd,1331.26, 14-Dec-2018
676,Revenue,CAHD,Home Care - Elderly - North,Other Small Contracts,Clover Health and Home Care Ltd,1450.40, 05-Dec-2018
677,Revenue,CAHD,Home Care - Elderly - North,Other Small Contracts,Clover Health and Home Care Ltd,1771.56, 27-Dec-2018
678,Revenue,CAHD,Home Care - Elderly - North,Other Small Contracts,Clover Health and Home Care Ltd,2320.64, 18-Dec-2018
679,Revenue,CAHD,Home Care - Elderly - North,Other Small Contracts,Clover Health and Home Care Ltd,1595.44, 07-Dec-2018
680,Revenue,CAHD,Home Care - Elderly - North,Other Small Contracts,Clover Health and Home Care Ltd,1554.00, 27-Dec-2018
681,Revenue,CAHD,Bed Purchasing - South,Permanent Residential,Collingwood Residential Home,2760.00, 18-Dec-2018
682,Revenue,CAHD,Bed Purchasing - South,Permanent Residential,Collingwood Residential Home,2188.76, 18-Dec-2018
683,Revenue,CAHD,Bed Purchasing - South,Permanent Residential,Collingwood Residential Home,2364.08, 18-Dec-2018
684,Revenue,CAHD,Bed Purchasing - South,Permanent Residential,Collingwood Residential Home,2547.52, 18-Dec-2018
685,Revenue,CAHD,Bed Purchasing - South,Permanent Residential,Collingwood Residential Home,2445.60, 18-Dec-2018
686,Revenue,CAHD,Bed Purchasing - South,Respite Planned - Residential,Collingwood Residential Home,938.57, 18-Dec-2018
687,Revenue,CAHD,Homecare - Central,Other Small Contracts,Complimenting Care and Training Services (CCTS) Lt,1613.50, 05-Dec-2018
688,Revenue,CAHD,Home Care - Elderly - North,Other Small Contracts,Complimenting Care and Training Services (CCTS) Lt,10432.43, 05-Dec-2018
689,Revenue,CAHD,Homecare - Central,Other Small Contracts,Complimenting Care and Training Services (CCTS) Lt,1793.29, 14-Dec-2018
690,Revenue,CAHD,Home Care - Elderly - North,Day Care / Social Activities,Complimenting Care and Training Services (CCTS) Lt,55.32, 14-Dec-2018
691,Revenue,CAHD,Home Care - Elderly - North,Other Small Contracts,Complimenting Care and Training Services (CCTS) Lt,10483.14, 14-Dec-2018
692,Revenue,CAHD,Homecare - Central,Other Small Contracts,Complimenting Care and Training Services (CCTS) Lt,1765.63, 28-Dec-2018
693,Revenue,CAHD,Home Care - Elderly - North,Day Care / Social Activities,Complimenting Care and Training Services (CCTS) Lt,92.20, 28-Dec-2018
694,Revenue,CAHD,Home Care - Elderly - North,Other Small Contracts,Complimenting Care and Training Services (CCTS) Lt,10344.84, 28-Dec-2018
695,Revenue,CAHD,Homecare - Central,Other Small Contracts,Complimenting Care and Training Services (CCTS) Lt,1383.00, 28-Dec-2018
696,Revenue,CAHD,Home Care - Elderly - South,Other Small Contracts,Complimenting Care and Training Services (CCTS) Lt,36.88, 28-Dec-2018
697,Revenue,CAHD,Home Care - Elderly - North,Day Care / Social Activities,Complimenting Care and Training Services (CCTS) Lt,96.81, 28-Dec-2018
698,Revenue,CAHD,Home Care - Elderly - North,Other Small Contracts,Complimenting Care and Training Services (CCTS) Lt,10520.02, 28-Dec-2018
699,Revenue,CAHD,Pathway 1 - Re-Ablement Home Care,Other Small Contracts,Complimenting Care and Training Services (CCTS) Lt,5665.69, 28-Dec-2018
700,Revenue,CAHD,Bed and Breakfast,Bed & Breakfast,Connolly & Callaghan Limited,455.00, 05-Dec-2018
701,Revenue,CAHD,Bed and Breakfast,Bed & Breakfast,Connolly & Callaghan Limited,497.00, 03-Dec-2018
702,Revenue,CAHD,CSC - Section 17 - NORTH,Bed & Breakfast,Connolly & Callaghan Limited,497.00, 03-Dec-2018
703,Revenue,CAHD,Bed and Breakfast,Bed & Breakfast,Connolly & Callaghan Limited,623.00, 04-Dec-2018
704,Revenue,CAHD,Bed and Breakfast,Bed & Breakfast,Connolly & Callaghan Limited,455.00, 05-Dec-2018
705,Revenue,CAHD,Bed and Breakfast,Bed & Breakfast,Connolly & Callaghan Limited,497.00, 04-Dec-2018
706,Revenue,CAHD,Bed and Breakfast,Bed & Breakfast,Connolly & Callaghan Limited,532.00, 04-Dec-2018
707,Revenue,CAHD,Bed and Breakfast,Bed & Breakfast,Connolly & Callaghan Limited,805.00, 04-Dec-2018
708,Revenue,CAHD,Bed and Breakfast,Bed & Breakfast,Connolly & Callaghan Limited,490.00, 04-Dec-2018
709,Revenue,CAHD,Bed and Breakfast,Bed & Breakfast,Connolly & Callaghan Limited,448.00, 04-Dec-2018
710,Revenue,CAHD,Bed and Breakfast,Bed & Breakfast,Connolly & Callaghan Limited,574.00, 04-Dec-2018
711,Revenue,CAHD,Bed and Breakfast,Bed & Breakfast,Connolly & Callaghan Limited,581.00, 05-Dec-2018
712,Revenue,CAHD,Bed and Breakfast,Bed & Breakfast,Connolly & Callaghan Limited,455.00, 04-Dec-2018
713,Revenue,CAHD,Bed and Breakfast,Bed & Breakfast,Connolly & Callaghan Limited,448.00, 04-Dec-2018
714,Revenue,CAHD,Bed and Breakfast,Bed & Breakfast,Connolly & Callaghan Limited,840.00, 04-Dec-2018
715,Revenue,CAHD,Bed and Breakfast,Bed & Breakfast,Connolly & Callaghan Limited,455.00, 04-Dec-2018
716,Revenue,CAHD,Bed and Breakfast,Bed & Breakfast,Connolly & Callaghan Limited,497.00, 05-Dec-2018
717,Revenue,CAHD,Bed and Breakfast,Bed & Breakfast,Connolly & Callaghan Limited,581.00, 04-Dec-2018
718,Revenue,CAHD,Bed and Breakfast,Bed & Breakfast,Connolly & Callaghan Limited,455.00, 05-Dec-2018
719,Revenue,CAHD,Bed and Breakfast,Bed & Breakfast,Connolly & Callaghan Limited,504.00, 05-Dec-2018
720,Revenue,CAHD,Bed and Breakfast,Bed & Breakfast,Connolly & Callaghan Limited,588.00, 05-Dec-2018
721,Revenue,CAHD,CSC - Section 17 - NORTH,Bed & Breakfast,Connolly & Callaghan Limited,497.00, 24-Dec-2018
722,Revenue,CAHD,Bed and Breakfast,Bed & Breakfast,Connolly & Callaghan Limited,623.00, 11-Dec-2018
723,Revenue,CAHD,Bed and Breakfast,Bed & Breakfast,Connolly & Callaghan Limited,455.00, 13-Dec-2018
724,Revenue,CAHD,Bed and Breakfast,Bed & Breakfast,Connolly & Callaghan Limited,497.00, 11-Dec-2018
725,Revenue,CAHD,Bed and Breakfast,Bed & Breakfast,Connolly & Callaghan Limited,532.00, 11-Dec-2018
726,Revenue,CAHD,Bed and Breakfast,Bed & Breakfast,Connolly & Callaghan Limited,805.00, 11-Dec-2018
727,Revenue,CAHD,Bed and Breakfast,Bed & Breakfast,Connolly & Callaghan Limited,490.00, 11-Dec-2018
728,Revenue,CAHD,Bed and Breakfast,Bed & Breakfast,Connolly & Callaghan Limited,448.00, 14-Dec-2018
729,Revenue,CAHD,Bed and Breakfast,Bed & Breakfast,Connolly & Callaghan Limited,581.00, 11-Dec-2018
730,Revenue,CAHD,Bed and Breakfast,Bed & Breakfast,Connolly & Callaghan Limited,455.00, 11-Dec-2018
731,Revenue,CAHD,Bed and Breakfast,Bed & Breakfast,Connolly & Callaghan Limited,448.00, 11-Dec-2018
732,Revenue,CAHD,Bed and Breakfast,Bed & Breakfast,Connolly & Callaghan Limited,840.00, 11-Dec-2018
733,Revenue,CAHD,Bed and Breakfast,Bed & Breakfast,Connolly & Callaghan Limited,455.00, 11-Dec-2018
734,Revenue,CAHD,Bed and Breakfast,Bed & Breakfast,Connolly & Callaghan Limited,497.00, 11-Dec-2018
735,Revenue,CAHD,Bed and Breakfast,Bed & Breakfast,Connolly & Callaghan Limited,581.00, 11-Dec-2018
736,Revenue,CAHD,Bed and Breakfast,Bed & Breakfast,Connolly & Callaghan Limited,504.00, 11-Dec-2018
737,Revenue,CAHD,Bed and Breakfast,Bed & Breakfast,Connolly & Callaghan Limited,588.00, 11-Dec-2018
738,Revenue,CAHD,Bed and Breakfast,Bed & Breakfast,Connolly & Callaghan Limited,798.00, 11-Dec-2018
739,Revenue,CAHD,CSC - Section 17 - NORTH,Bed & Breakfast,Connolly & Callaghan Limited,497.00, 24-Dec-2018
740,Revenue,CAHD,Bed and Breakfast,Bed & Breakfast,Connolly & Callaghan Limited,623.00, 21-Dec-2018
741,Revenue,CAHD,Bed and Breakfast,Bed & Breakfast,Connolly & Callaghan Limited,455.00, 27-Dec-2018
742,Revenue,CAHD,Bed and Breakfast,Bed & Breakfast,Connolly & Callaghan Limited,497.00, 21-Dec-2018
743,Revenue,CAHD,Bed and Breakfast,Bed & Breakfast,Connolly & Callaghan Limited,532.00, 21-Dec-2018
744,Revenue,CAHD,Bed and Breakfast,Bed & Breakfast,Connolly & Callaghan Limited,805.00, 21-Dec-2018
745,Revenue,CAHD,Bed and Breakfast,Bed & Breakfast,Connolly & Callaghan Limited,490.00, 21-Dec-2018
746,Revenue,CAHD,Bed and Breakfast,Bed & Breakfast,Connolly & Callaghan Limited,497.00, 21-Dec-2018
747,Revenue,CAHD,Bed and Breakfast,Bed & Breakfast,Connolly & Callaghan Limited,448.00, 21-Dec-2018
748,Revenue,CAHD,Bed and Breakfast,Bed & Breakfast,Connolly & Callaghan Limited,574.00, 21-Dec-2018
749,Revenue,CAHD,Bed and Breakfast,Bed & Breakfast,Connolly & Callaghan Limited,581.00, 21-Dec-2018
750,Revenue,CAHD,Bed and Breakfast,Bed & Breakfast,Connolly & Callaghan Limited,455.00, 21-Dec-2018
751,Revenue,CAHD,Bed and Breakfast,Bed & Breakfast,Connolly & Callaghan Limited,497.00, 21-Dec-2018
752,Revenue,CAHD,Bed and Breakfast,Bed & Breakfast,Connolly & Callaghan Limited,581.00, 28-Dec-2018
753,Revenue,CAHD,Bed and Breakfast,Bed & Breakfast,Connolly & Callaghan Limited,455.00, 27-Dec-2018
754,Revenue,CAHD,Bed and Breakfast,Bed & Breakfast,Connolly & Callaghan Limited,504.00, 21-Dec-2018
755,Revenue,CAHD,Bed and Breakfast,Bed & Breakfast,Connolly & Callaghan Limited,588.00, 21-Dec-2018
756,Revenue,CAHD,Bed and Breakfast,Bed & Breakfast,Connolly & Callaghan Limited,798.00, 27-Dec-2018
757,Revenue,CAHD,Bed and Breakfast,Bed & Breakfast,Connolly & Callaghan Limited,588.00, 28-Dec-2018
758,Revenue,CAHD,Bed and Breakfast,Bed & Breakfast,Connolly & Callaghan Limited,798.00, 28-Dec-2018
759,Revenue,CAHD,CSC - Vinney Green Secure Unit,R & M by Departments,Cool-Rite Limited,664.00, 27-Dec-2018
760,Revenue,CAHD,CSC - Allowances,Other Supplies & Services,Coram Children`s Legal Centre,2591.00, 12-Dec-2018
761,Revenue,CAHD,CSC - Vinney Green Secure Unit,Other Supplies & Services,Coram Voice,1948.50, 21-Dec-2018
762,Revenue,CAHD,CSC - Fostering Carer Support,Care Mgt/Asesmnt Staff Pay,Core Assets Expert Services Ltd T/A Carter Brown,2400.00, 18-Dec-2018
763,Revenue,CAHD,CSC - Fostering Carer Support,Care Mgt/Asesmnt Staff Pay,Core Assets Expert Services Ltd T/A Carter Brown,720.00, 18-Dec-2018
764,Revenue,CAHD,CSC - Fostering Carer Support,Care Mgt/Asesmnt Staff Pay,Core Assets Expert Services Ltd T/A Carter Brown,2500.00, 28-Dec-2018
765,Revenue,CAHD,Leadership and Business Support,Training Expenses,Corporate Coach Group,1950.00, 24-Dec-2018
766,Revenue,CAHD,Community Support - MH < 65,Preventative Assistance,Cottage Kennels and Cattery,421.67, 17-Dec-2018
767,Revenue,CAHD,Home Care - Elderly - South,Supported Living,Craegmoor SYI Bristol & Wiltshire Priory,701.22, 07-Dec-2018
768,Revenue,CAHD,Home Care - Elderly - South,Supported Living,Craegmoor SYI Bristol & Wiltshire Priory,677.04, 07-Dec-2018
769,Revenue,CAHD,Home Care - Elderly - South,Supported Living,Craegmoor SYI Bristol & Wiltshire Priory,677.04, 07-Dec-2018
770,Revenue,CAHD,Home Care - Elderly - South,Supported Living,Craegmoor SYI Bristol & Wiltshire Priory,769.73, 07-Dec-2018
771,Revenue,CAHD,Home Care - Elderly - South,Supported Living,Craegmoor SYI Bristol & Wiltshire Priory,789.88, 07-Dec-2018
772,Revenue,CAHD,Home Care - Elderly - South,Supported Living,Craegmoor SYI Bristol & Wiltshire Priory,887.04, 05-Dec-2018
773,Revenue,CAHD,Bed Purchasing - North,Permanent Residential,Cream Iii Ltd,8441.40, 18-Dec-2018
774,Revenue,CAHD,Bed purchasing - S28A Under 65 - South,Permanent Residential,Creedy Court,10349.56, 18-Dec-2018
775,Revenue,CAHD,Bed purchasing - S28A Under 65 - South,Permanent Residential,Creedy Court,8696.20, 18-Dec-2018
776,Revenue,CAHD,Bed Purchasing - North,Permanent Residential,Creedy Court,13724.60, 18-Dec-2018
777,Revenue,CAHD,Brokerage and Information Service,Grants to Voluntary Bodies,Curo Care & Support,32098.75, 28-Dec-2018
778,Revenue,CAHD,Bed Purchasing - South,Permanent Residential,Daneswood,11981.24, 18-Dec-2018
779,Revenue,CAHD,Home Care - Elderly - South,Day Care / Social Activities,Daneswood,1380.32, 18-Dec-2018
780,Revenue,CAHD,Bed Purchasing - North,Permanent Residential,Daneswood,10023.44, 18-Dec-2018
781,Revenue,CAHD,Learning Difficulties Development Fund,Other Supplies & Services,Daniel Wood Associates,1625.00, 12-Dec-2018
782,Revenue,CAHD,Bed Purchasing - Elderly S117- North,Permanent Nursing,Danshell Healthcare Group,10617.44, 18-Dec-2018
783,Revenue,CAHD,Jointly Funded H&SC Packages,Permanent Nursing,Danshell Healthcare Group,1575.48, 18-Dec-2018
784,Revenue,CAHD,Learning Difficulties PSL,Other Supplies & Services,Individual,2267.91, 21-Dec-2018
785,Revenue,CAHD,Adult Safeguarding Board,Complaints External Expenses,Individual,500.00, 14-Dec-2018
786,Revenue,CAHD,South Glos Users in South Glos Homes,Permanent Nursing,Deerhurst Nursing Home,632.64, 18-Dec-2018
787,Revenue,CAHD,Bed Purchasing - South,Permanent Nursing,Deerhurst Nursing Home,3716.08, 18-Dec-2018
788,Revenue,CAHD,South Glos Users in South Glos Homes,Permanent Nursing,Deerhurst Nursing Home,632.64, 18-Dec-2018
789,Revenue,CAHD,Bed Purchasing - South,Permanent Nursing,Deerhurst Nursing Home,3417.64, 18-Dec-2018
790,Revenue,CAHD,South Glos Users in South Glos Homes,Permanent Nursing,Deerhurst Nursing Home,632.64, 18-Dec-2018
791,Revenue,CAHD,South Glos Users in South Glos Homes,Permanent Nursing,Deerhurst Nursing Home,632.64, 18-Dec-2018
792,Revenue,CAHD,South Glos Users in South Glos Homes,Permanent Nursing,Deerhurst Nursing Home,632.64, 18-Dec-2018
793,Revenue,CAHD,Bed Purchasing - South,Permanent Nursing,Deerhurst Nursing Home,2963.08, 18-Dec-2018
794,Revenue,CAHD,South Glos Users in South Glos Homes,Permanent Nursing,Deerhurst Nursing Home,632.64, 18-Dec-2018
795,Revenue,CAHD,South Glos Users in South Glos Homes,Permanent Nursing,Deerhurst Nursing Home,632.64, 18-Dec-2018
796,Revenue,CAHD,South Glos Users in South Glos Homes,Permanent Nursing,Deerhurst Nursing Home,632.64, 18-Dec-2018
797,Revenue,CAHD,South Glos Users in South Glos Homes,Permanent Nursing,Deerhurst Nursing Home,632.64, 18-Dec-2018
798,Revenue,CAHD,South Glos Users in South Glos Homes,Permanent Nursing,Deerhurst Nursing Home,632.64, 18-Dec-2018
799,Revenue,CAHD,Bed Purchasing - South,Permanent Nursing,Deerhurst Nursing Home,3924.00, 18-Dec-2018
800,Revenue,CAHD,South Glos Users in South Glos Homes,Permanent Nursing,Deerhurst Nursing Home,632.64, 18-Dec-2018
801,Revenue,CAHD,South Glos Users in South Glos Homes,Permanent Nursing,Deerhurst Nursing Home,632.64, 18-Dec-2018
802,Revenue,CAHD,Bed Purchasing - Southmead Hospital,Permanent Nursing,Deerhurst Nursing Home,3800.00, 18-Dec-2018
803,Revenue,CAHD,Bed Purchasing - South,Permanent Nursing,Deerhurst Nursing Home,3872.20, 18-Dec-2018
804,Revenue,CAHD,Bed Purchasing - Southmead Hospital,Permanent Nursing,Deerhurst Nursing Home,3800.00, 18-Dec-2018
805,Revenue,CAHD,South Glos Users in South Glos Homes,Permanent Nursing,Deerhurst Nursing Home,632.64, 18-Dec-2018
806,Revenue,CAHD,Homecare - Central,Day Care / Social Activities,Deerhurst Nursing Home,544.00, 18-Dec-2018
807,Revenue,CAHD,Bed Purchasing - Elderly S117- North,Permanent Nursing,Deerhurst Nursing Home,3872.20, 18-Dec-2018
808,Revenue,CAHD,South Glos Users in South Glos Homes,Permanent Nursing,Deerhurst Nursing Home,632.64, 18-Dec-2018
809,Revenue,CAHD,South Glos Users in South Glos Homes,Permanent Nursing,Deerhurst Nursing Home,632.64, 18-Dec-2018
810,Revenue,CAHD,South Glos Users in South Glos Homes,Permanent Nursing,Deerhurst Nursing Home,632.64, 18-Dec-2018
811,Revenue,CAHD,South Glos Users in South Glos Homes,Permanent Nursing,Deerhurst Nursing Home,632.64, 18-Dec-2018
812,Revenue,CAHD,Bed Purchasing - South,Permanent Nursing,Deerhurst Nursing Home,3872.20, 18-Dec-2018
813,Revenue,CAHD,South Glos Users in South Glos Homes,Permanent Nursing,Deerhurst Nursing Home,632.64, 18-Dec-2018
814,Revenue,CAHD,Bed Purchasing - South,Permanent Nursing,Deerhurst Nursing Home,3800.00, 18-Dec-2018
815,Revenue,CAHD,South Glos Users in South Glos Homes,Permanent Nursing,Deerhurst Nursing Home,632.64, 18-Dec-2018
816,Revenue,CAHD,South Glos Users in South Glos Homes,Permanent Nursing,Deerhurst Nursing Home,632.64, 18-Dec-2018
817,Revenue,CAHD,South Glos Users in South Glos Homes,Permanent Nursing,Deerhurst Nursing Home,632.64, 18-Dec-2018
818,Revenue,CAHD,South Glos Users in South Glos Homes,Permanent Nursing,Deerhurst Nursing Home,632.64, 18-Dec-2018
819,Revenue,CAHD,South Glos Users in South Glos Homes,Permanent Nursing,Deerhurst Nursing Home,632.64, 18-Dec-2018
820,Revenue,CAHD,South Glos Users in South Glos Homes,Permanent Nursing,Deerhurst Nursing Home,632.64, 18-Dec-2018
821,Revenue,CAHD,South Glos Users in South Glos Homes,Permanent Nursing,Deerhurst Nursing Home,632.64, 18-Dec-2018
822,Revenue,CAHD,South Glos Users in South Glos Homes,Permanent Nursing,Deerhurst Nursing Home,632.64, 18-Dec-2018
823,Revenue,CAHD,Bed Purchasing - South,Permanent Residential,Deerhurst Nursing Home,3800.00, 18-Dec-2018
824,Revenue,CAHD,South Glos Users in South Glos Homes,Permanent Nursing,Deerhurst Nursing Home,1694.57, 18-Dec-2018
825,Revenue,CAHD,Bed Purchasing - South,Fees & Charges Income - General,Deerhurst Nursing Home,997.12, 18-Dec-2018
826,Revenue,CAHD,Bed Purchasing - South,Permanent Nursing,Deerhurst Nursing Home,3872.20, 18-Dec-2018
827,Revenue,CAHD,South Glos Users in South Glos Homes,Permanent Nursing,Deerhurst Nursing Home,632.64, 18-Dec-2018
828,Revenue,CAHD,South Glos Users in South Glos Homes,Permanent Nursing,Deerhurst Nursing Home,908.15, 18-Dec-2018
829,Revenue,CAHD,South Glos Users in South Glos Homes,Permanent Nursing,Deerhurst Nursing Home,564.86, 18-Dec-2018
830,Revenue,CAHD,Bed Purchasing - North,Permanent Nursing,Deerhurst Nursing Home,2963.08, 18-Dec-2018
831,Revenue,CAHD,South Glos Users in South Glos Homes,Permanent Nursing,Deerhurst Nursing Home,632.64, 18-Dec-2018
832,Revenue,CAHD,Bed Purchasing - North,Permanent Nursing,Deerhurst Nursing Home,2769.00, 18-Dec-2018
833,Revenue,CAHD,Bed Purchasing - South,Permanent Nursing,Deerhurst Nursing Home,2963.76, 18-Dec-2018
834,Revenue,CAHD,South Glos Users in South Glos Homes,Permanent Nursing,Deerhurst Nursing Home,632.64, 18-Dec-2018
835,Revenue,CAHD,Bed Purchasing - South,Permanent Nursing,Deerhurst Nursing Home,3915.20, 18-Dec-2018
836,Revenue,CAHD,South Glos Users in South Glos Homes,Permanent Nursing,Deerhurst Nursing Home,632.64, 18-Dec-2018
837,Revenue,CAHD,South Glos Users in South Glos Homes,Permanent Nursing,Deerhurst Nursing Home,632.64, 18-Dec-2018
838,Revenue,CAHD,South Glos Users in South Glos Homes,Permanent Nursing,Deerhurst Nursing Home,632.64, 18-Dec-2018
839,Revenue,CAHD,Home Care - Elderly - South,Supported Living,Design House,2599.08, 18-Dec-2018
840,Revenue,CAHD,Home Care - Elderly - South,Supported Living,Design House,2991.52, 18-Dec-2018
841,Revenue,CAHD,Home Care - Elderly - South,Supported Living,Design House,3059.64, 18-Dec-2018
842,Revenue,CAHD,Home Care - Elderly - South,Supported Living,Design House,2923.40, 18-Dec-2018
843,Revenue,CAHD,Home Care - Elderly - South,Day Care / Social Activities,Design House,501.92, 18-Dec-2018
844,Revenue,CAHD,Homecare - Central,Day Care / Social Activities,Design House,2383.88, 18-Dec-2018
845,Revenue,CAHD,Home Care - Elderly - South,Day Care / Social Activities,Design House,752.88, 18-Dec-2018
846,Revenue,CAHD,Home Care - Elderly - South,Supported Living,Design House,2577.00, 18-Dec-2018
847,Revenue,CAHD,Home Care - Elderly - South,Supported Living,Design House,2577.00, 18-Dec-2018
848,Revenue,CAHD,Home Care - Elderly - South,Supported Living,Design House,2099.16, 18-Dec-2018
849,Revenue,CAHD,Home Care - Elderly - South,Day Care / Social Activities,Design House,501.92, 18-Dec-2018
850,Revenue,CAHD,Home Care - Elderly - South,Supported Living,Design House,1852.24, 18-Dec-2018
851,Revenue,CAHD,Home Care - Elderly - South,Supported Living,Design House,2457.84, 18-Dec-2018
852,Revenue,CAHD,Home Care - Elderly - South,Supported Living,Design House,4206.60, 18-Dec-2018
853,Revenue,CAHD,Home Care - Elderly - South,Supported Living,Design House,2982.96, 18-Dec-2018
854,Revenue,CAHD,Home Care - Elderly - South,Day Care / Social Activities,Design House,1470.80, 18-Dec-2018
855,Revenue,CAHD,Home Care - Elderly - South,Supported Living,Design House,2856.40, 18-Dec-2018
856,Revenue,CAHD,Home Care - Elderly - South,Supported Living,Design House,510.07, 18-Dec-2018
857,Revenue,CAHD,Home Care - Elderly - South,Supported Living,Design House,2483.44, 18-Dec-2018
858,Revenue,CAHD,Home Care - Elderly - South,Supported Living,Design House,2204.80, 18-Dec-2018
859,Revenue,CAHD,Home Care - Elderly - South,Supported Living,Design House,2204.80, 18-Dec-2018
860,Revenue,CAHD,Home Care - Elderly - South,Supported Living,Dimensions  Suite 2,1858.68, 18-Dec-2018
861,Revenue,CAHD,Home Care - Elderly - South,Supported Living,Dimensions  Suite 2,1857.88, 18-Dec-2018
862,Revenue,CAHD,Home Care - Elderly - South,Supported Living,Dimensions  Suite 2,1857.88, 18-Dec-2018
863,Revenue,CAHD,Home Care - Elderly - South,Supported Living,Dimensions  Suite 2,1857.88, 18-Dec-2018
864,Revenue,CAHD,Supported Living (S28a) South,Supported Living,Dimensions  Suite 2,1857.88, 18-Dec-2018
865,Revenue,CAHD,Bed Purchasing - South,Permanent Residential,Dimensions  Suite 2,5498.80, 18-Dec-2018
866,Revenue,CAHD,Bed Purchasing - South,Permanent Residential,Dimensions  Suite 2,2740.36, 18-Dec-2018
867,Revenue,CAHD,Homecare - Central,Other Small Contracts,DoCare Limited,3162.23, 12-Dec-2018
868,Revenue,CAHD,Home Care - Elderly - South,Day Care / Social Activities,DoCare Limited,73.78, 12-Dec-2018
869,Revenue,CAHD,Home Care - Elderly - South,Other Small Contracts,DoCare Limited,761.63, 12-Dec-2018
870,Revenue,CAHD,Home Care - Elderly - North,Other Small Contracts,DoCare Limited,2981.02, 12-Dec-2018
871,Revenue,CAHD,Homecare - Central,Other Small Contracts,DoCare Limited,3246.05, 19-Dec-2018
872,Revenue,CAHD,Home Care - Elderly - South,Day Care / Social Activities,DoCare Limited,73.78, 19-Dec-2018
873,Revenue,CAHD,Home Care - Elderly - South,Other Small Contracts,DoCare Limited,793.55, 19-Dec-2018
874,Revenue,CAHD,Home Care - Elderly - North,Other Small Contracts,DoCare Limited,2775.32, 19-Dec-2018
875,Revenue,CAHD,Homecare - Central,Other Small Contracts,DoCare Limited,3220.57, 19-Dec-2018
876,Revenue,CAHD,Home Care - Elderly - South,Day Care / Social Activities,DoCare Limited,73.78, 19-Dec-2018
877,Revenue,CAHD,Home Care - Elderly - South,Other Small Contracts,DoCare Limited,734.00, 19-Dec-2018
878,Revenue,CAHD,Home Care - Elderly - North,Other Small Contracts,DoCare Limited,2786.84, 19-Dec-2018
879,Revenue,CAHD,Homecare - Central,Other Small Contracts,DoCare Limited,14066.86, 21-Dec-2018
880,Revenue,CAHD,Home Care - Elderly - South,Day Care / Social Activities,DoCare Limited,73.78, 21-Dec-2018
881,Revenue,CAHD,Home Care - Elderly - South,Other Small Contracts,DoCare Limited,772.69, 21-Dec-2018
882,Revenue,CAHD,Home Care - Elderly - North,Day Care / Social Activities,DoCare Limited,277.95, 21-Dec-2018
883,Revenue,CAHD,Home Care - Elderly - North,Other Small Contracts,DoCare Limited,5098.72, 21-Dec-2018
884,Revenue,CAHD,Homecare - Central,Other Small Contracts,DoCare Limited,46303.20, 20-Dec-2018
885,Revenue,CAHD,Homecare - Central,Other Small Contracts,DoCare Limited,8830.32, 24-Dec-2018
886,Revenue,CAHD,CSC - Vinney Green Secure Unit,Membership Fees,Dods Parliamentary Communications Limited,634.50, 10-Dec-2018
887,Revenue,CAHD,CSC - OT Equipment - Children,Daily Living Equipment,Dolphin Lifts (Western) Ltd,450.00, 21-Dec-2018
888,Revenue,CAHD,Bed Purchasing - North,Permanent Residential,Dorset Limited,6640.44, 18-Dec-2018
889,Revenue,CAHD,Sexual Health,External Lecturers Expenses,Downend School,704.00, 13-Dec-2018
890,Revenue,CAHD,Statemented Support Academies,Schools Funding,Downend School,1119.41, 21-Dec-2018
891,Revenue,CAHD,Statemented Support Academies,Schools Funding,Downend School,541.62, 21-Dec-2018
892,Revenue,CAHD,Statemented Support Academies,Schools Funding,Downend School,1166.58, 21-Dec-2018
893,Revenue,CAHD,Statemented Support Academies,Schools Funding,Downend School,565.20, 21-Dec-2018
894,Revenue,CAHD,Statemented Support Academies,Schools Funding,Downend School,1154.78, 21-Dec-2018
895,Revenue,CAHD,Statemented Support Academies,Schools Funding,Downend School,942.53, 21-Dec-2018
896,Revenue,CAHD,Statemented Support Academies,Schools Funding,Downend School,671.33, 21-Dec-2018
897,Revenue,CAHD,Statemented Support Academies,Schools Funding,Downend School,612.37, 21-Dec-2018
898,Revenue,CAHD,Statemented Support Academies,Schools Funding,Downend School,26198.85, 21-Dec-2018
899,Revenue,CAHD,Statemented Support Academies,Schools Funding,Downend School,694.91, 21-Dec-2018
900,Revenue,CAHD,Statemented Support Academies,Schools Funding,Downend School,600.58, 21-Dec-2018
901,Revenue,CAHD,Statemented Support Academies,Schools Funding,Downend School,553.41, 21-Dec-2018
902,Revenue,CAHD,Statemented Support Academies,Schools Funding,Downend School,1850.49, 21-Dec-2018
903,Revenue,CAHD,Statemented Support Academies,Schools Funding,Downend School,553.41, 21-Dec-2018
904,Revenue,CAHD,Social Lettings Agency,Other Supplies & Services,Individual,605.64, 24-Dec-2018
905,Revenue,CAHD,Bed Purchasing - Central,Permanent Nursing,Drakes Court,2832.84, 18-Dec-2018
906,Revenue,CAHD,South Glos Users in South Glos Homes,Permanent Nursing,Drakes Court,632.64, 18-Dec-2018
907,Revenue,CAHD,South Glos Users in South Glos Homes,Permanent Nursing,Drakes Court,1468.63, 18-Dec-2018
908,Revenue,CAHD,South Glos Users in South Glos Homes,Permanent Nursing,Drakes Court,632.64, 18-Dec-2018
909,Revenue,CAHD,Bed Purchasing - Central,Permanent Nursing,Drakes Court,2017.24, 18-Dec-2018
910,Revenue,CAHD,South Glos Users in South Glos Homes,Permanent Nursing,Drakes Court,632.64, 18-Dec-2018
911,Revenue,CAHD,Bed Purchasing - South,Permanent Nursing,Drakes Court,2832.84, 18-Dec-2018
912,Revenue,CAHD,South Glos Users in South Glos Homes,Permanent Nursing,Drakes Court,632.64, 18-Dec-2018
913,Revenue,CAHD,South Glos Users in South Glos Homes,Permanent Nursing,Drakes Court,632.64, 18-Dec-2018
914,Revenue,CAHD,Bed Purchasing - Central,Permanent Nursing,Drakes Court,2832.84, 18-Dec-2018
915,Revenue,CAHD,South Glos Users in South Glos Homes,Permanent Nursing,Drakes Court,632.64, 18-Dec-2018
916,Revenue,CAHD,South Glos Users in South Glos Homes,Permanent Nursing,Drakes Court,632.64, 18-Dec-2018
917,Revenue,CAHD,Bed Purchasing - North,Permanent Nursing,Drakes Court,2017.24, 18-Dec-2018
918,Revenue,CAHD,Bed Purchasing - Central,Permanent Nursing,Drakes Court,2017.24, 18-Dec-2018
919,Revenue,CAHD,South Glos Users in South Glos Homes,Permanent Nursing,Drakes Court,632.64, 18-Dec-2018
920,Revenue,CAHD,South Glos Users in South Glos Homes,Permanent Nursing,Drakes Court,632.64, 18-Dec-2018
921,Revenue,CAHD,South Glos Users in South Glos Homes,Permanent Nursing,Drakes Court,632.64, 18-Dec-2018
922,Revenue,CAHD,South Glos Users in South Glos Homes,Permanent Nursing,Drakes Court,632.64, 18-Dec-2018
923,Revenue,CAHD,South Glos Users in South Glos Homes,Permanent Nursing,Drakes Court,632.64, 18-Dec-2018
924,Revenue,CAHD,Bed Purchasing - North,Permanent Residential,Drakes Court,1956.04, 18-Dec-2018
925,Revenue,CAHD,Bed Purchasing - South,Permanent Nursing,Drakes Court,6950.00, 18-Dec-2018
926,Revenue,CAHD,Bed Purchasing - South,Permanent Nursing,Drakes Court,2780.00, 18-Dec-2018
927,Revenue,CAHD,South Glos Users in South Glos Homes,Permanent Nursing,Drakes Court,632.64, 18-Dec-2018
928,Revenue,CAHD,Bed Purchasing - South,Fees & Charges Income - General,Drakes Court,1242.90, 18-Dec-2018
929,Revenue,CAHD,Bed Purchasing - Central,Permanent Residential,Drakes Court,2780.00, 18-Dec-2018
930,Revenue,CAHD,South Glos Users in South Glos Homes,Permanent Nursing,Drakes Court,632.64, 18-Dec-2018
931,Revenue,CAHD,South Glos Users in South Glos Homes,Permanent Nursing,Drakes Court,632.64, 18-Dec-2018
932,Revenue,CAHD,CSC - Vinney Green Secure Unit,Educational Materials,Duke of Edinburgh`s Award,640.00, 10-Dec-2018
933,Revenue,CAHD,Bed and Breakfast,Bed & Breakfast,Individual,567.00, 03-Dec-2018
934,Revenue,CAHD,Bed and Breakfast,Bed & Breakfast,Individual,567.00, 04-Dec-2018
935,Revenue,CAHD,Bed and Breakfast,Bed & Breakfast,Individual,567.00, 11-Dec-2018
936,Revenue,CAHD,Bed and Breakfast,Bed & Breakfast,Individual,638.00, 11-Dec-2018
937,Revenue,CAHD,Bed and Breakfast,Bed & Breakfast,Individual,567.00, 17-Dec-2018
938,Revenue,CAHD,Bed and Breakfast,Bed & Breakfast,Individual,864.00, 17-Dec-2018
939,Revenue,CAHD,Bed and Breakfast,Bed & Breakfast,Individual,672.00, 27-Dec-2018
940,Revenue,CAHD,Bed and Breakfast,Bed & Breakfast,Individual,567.00, 24-Dec-2018
941,Revenue,CAHD,Bed Purchasing - North,Permanent Residential,East Court,2698.80, 18-Dec-2018
942,Revenue,CAHD,Training - Adult Services,Training Expenses,Edge Training & Consultancy Limited,925.00, 07-Dec-2018
943,Revenue,CAHD,Bed Purchasing - South,Permanent Residential,Edgecumbe Lodge,1392.86, 18-Dec-2018
944,Revenue,CAHD,Bed Purchasing - South,Permanent Residential,Edgecumbe Lodge,1392.86, 18-Dec-2018
945,Revenue,CAHD,Bed Purchasing - South,Permanent Residential,Edgecumbe Lodge,1207.14, 18-Dec-2018
946,Revenue,CAHD,Bed Purchasing - South,Permanent Residential,Edgecumbe Lodge,2600.00, 18-Dec-2018
947,Revenue,CAHD,Bed Purchasing - South,Permanent Residential,Edgecumbe Lodge,2148.68, 18-Dec-2018
948,Revenue,CAHD,Bed Purchasing - Elderly S117- North,Permanent Residential,Edgecumbe Lodge,2656.00, 18-Dec-2018
949,Revenue,CAHD,Bed Purchasing - South,Permanent Residential,Edgecumbe Lodge,2220.00, 18-Dec-2018
950,Revenue,CAHD,Bed Purchasing - South,Permanent Residential,Edgecumbe Lodge,3714.29, 18-Dec-2018
951,Revenue,CAHD,Bed Purchasing - South,Permanent Residential,Edgecumbe Lodge,2600.00, 18-Dec-2018
952,Revenue,CAHD,Bed Purchasing - South,Permanent Residential,Edgecumbe Lodge,2220.00, 18-Dec-2018
953,Revenue,CAHD,Bed Purchasing - South,Permanent Residential,Edgecumbe Lodge,2445.60, 18-Dec-2018
954,Revenue,CAHD,Bed Purchasing - South,Permanent Residential,Edgecumbe Lodge,2477.40, 18-Dec-2018
955,Revenue,CAHD,Bed Purchasing - North,Permanent Residential,Edgecumbe Lodge,2197.20, 18-Dec-2018
956,Revenue,CAHD,Bed Purchasing - South,Permanent Residential,Edgemont House Ltd,2600.00, 18-Dec-2018
957,Revenue,CAHD,Bed Purchasing - South,Permanent Residential,Edgemont House Ltd,1948.72, 18-Dec-2018
958,Revenue,CAHD,Bed Purchasing - North,Respite Planned - Residential,Edgemont House Ltd,750.00, 18-Dec-2018
959,Revenue,CAHD,Bed Purchasing - North,Respite Planned - Residential,Edgemont House Ltd,750.00, 18-Dec-2018
960,Revenue,CAHD,Bed Purchasing - North,Respite Planned - Residential,Edgemont House Ltd,642.86, 18-Dec-2018
961,Revenue,CAHD,South Glos Users in South Glos Homes,Permanent Nursing,Edgemont View Nursing Home,632.64, 18-Dec-2018
962,Revenue,CAHD,Bed Purchasing - South,Permanent Nursing,Edgemont View Nursing Home,3464.60, 18-Dec-2018
963,Revenue,CAHD,South Glos Users in South Glos Homes,Permanent Nursing,Edgemont View Nursing Home,632.64, 18-Dec-2018
964,Revenue,CAHD,South Glos Users in South Glos Homes,Permanent Nursing,Edgemont View Nursing Home,632.64, 18-Dec-2018
965,Revenue,CAHD,South Glos Users in South Glos Homes,Permanent Nursing,Edgemont View Nursing Home,632.64, 18-Dec-2018
966,Revenue,CAHD,Bed Purchasing - South,Permanent Nursing,Edgemont View Nursing Home,2500.00, 18-Dec-2018
967,Revenue,CAHD,Bed Purchasing - Southmead Hospital,Permanent Nursing,Edgemont View Nursing Home,3744.59, 18-Dec-2018
968,Revenue,CAHD,South Glos Users in South Glos Homes,Permanent Nursing,Edgemont View Nursing Home,632.64, 18-Dec-2018
969,Revenue,CAHD,South Glos Users in South Glos Homes,Permanent Nursing,Edgemont View Nursing Home,632.64, 18-Dec-2018
970,Revenue,CAHD,South Glos Users in South Glos Homes,Permanent Nursing,Edgemont View Nursing Home,632.64, 18-Dec-2018
971,Revenue,CAHD,South Glos Users in South Glos Homes,Permanent Nursing,Edgemont View Nursing Home,632.64, 18-Dec-2018
972,Revenue,CAHD,Bed Purchasing - South,Permanent Nursing,Edgemont View Nursing Home,7085.71, 18-Dec-2018
973,Revenue,CAHD,Bed Purchasing - South,Permanent Nursing,Edgemont View Nursing Home,3200.00, 18-Dec-2018
974,Revenue,CAHD,Bed Purchasing - South,Permanent Nursing,Edgemont View Nursing Home,2934.72, 18-Dec-2018
975,Revenue,CAHD,South Glos Users in South Glos Homes,Permanent Nursing,Edgemont View Nursing Home,632.64, 18-Dec-2018
976,Revenue,CAHD,South Glos Users in South Glos Homes,Permanent Nursing,Edgemont View Nursing Home,632.64, 18-Dec-2018
977,Revenue,CAHD,South Glos Users in South Glos Homes,Permanent Nursing,Edgemont View Nursing Home,632.64, 18-Dec-2018
978,Revenue,CAHD,South Glos Users in South Glos Homes,Permanent Nursing,Edgemont View Nursing Home,632.64, 18-Dec-2018
979,Revenue,CAHD,Bed Purchasing - South,Permanent Nursing,Edgemont View Nursing Home,2934.72, 18-Dec-2018
980,Revenue,CAHD,South Glos Users in South Glos Homes,Permanent Nursing,Edgemont View Nursing Home,632.64, 18-Dec-2018
981,Revenue,CAHD,Bed Purchasing - South,Permanent Nursing,Edgemont View Nursing Home,2310.44, 18-Dec-2018
982,Revenue,CAHD,South Glos Users in South Glos Homes,Permanent Nursing,Edgemont View Nursing Home,632.64, 18-Dec-2018
983,Revenue,CAHD,South Glos Users in South Glos Homes,Permanent Nursing,Edgemont View Nursing Home,632.64, 18-Dec-2018
984,Revenue,CAHD,South Glos Users in South Glos Homes,Permanent Nursing,Edgemont View Nursing Home,632.64, 18-Dec-2018
985,Revenue,CAHD,Planning and Partnerships Procurement,Other Supplies & Services,Eldercare,3034.14, 21-Dec-2018
986,Revenue,CAHD,Planning and Partnerships Procurement,Other Supplies & Services,Eldercare,3052.44, 28-Dec-2018
987,Revenue,CAHD,Planning and Partnerships Procurement,Other Supplies & Services,Eldercare,2251.32, 21-Dec-2018
988,Revenue,CAHD,Planning and Partnerships Procurement,Other Supplies & Services,Eldercare,2217.23, 28-Dec-2018
989,Revenue,CAHD,Bed and Breakfast,Bed & Breakfast,Elim Housing Association Limited,595.00, 10-Dec-2018
990,Revenue,CAHD,Bed and Breakfast,Bed & Breakfast,Elim Housing Association Limited,1470.00, 10-Dec-2018
991,Revenue,CAHD,Bed and Breakfast,Bed & Breakfast,Elim Housing Association Limited,1170.00, 27-Dec-2018
992,Revenue,CAHD,Bed and Breakfast,Bed & Breakfast,Elim Housing Association Limited,640.00, 27-Dec-2018
993,Revenue,CAHD,Supporting People Programme,Grants to Voluntary Bodies,Elim Housing Association Limited,5236.00, 28-Dec-2018
994,Revenue,CAHD,Pathway 1 - Re-Ablement Home Care,Other Small Contracts,Elite Home Care Ltd,550.97, 24-Dec-2018
995,Revenue,CAHD,Pathway 1 - Re-Ablement Home Care,Other Small Contracts,Elite Home Care Ltd,569.49, 24-Dec-2018
996,Revenue,CAHD,Home Care - Elderly - South,Day Care / Social Activities,Elite Home Care Ltd,185.20, 12-Dec-2018
997,Revenue,CAHD,Home Care - Elderly - South,Other Small Contracts,Elite Home Care Ltd,5583.78, 12-Dec-2018
998,Revenue,CAHD,Home Care - Elderly - North,Other Small Contracts,Elite Home Care Ltd,768.58, 12-Dec-2018
999,Revenue,CAHD,Home Care - Elderly - South,Day Care / Social Activities,Elite Home Care Ltd,185.20, 12-Dec-2018
1000,Revenue,CAHD,Home Care - Elderly - South,Other Small Contracts,Elite Home Care Ltd,5556.00, 12-Dec-2018
1001,Revenue,CAHD,Home Care - Elderly - North,Other Small Contracts,Elite Home Care Ltd,1078.79, 12-Dec-2018
1002,Revenue,CAHD,Home Care - Elderly - South,Day Care / Social Activities,Elite Home Care Ltd,189.83, 19-Dec-2018
1003,Revenue,CAHD,Home Care - Elderly - South,Other Small Contracts,Elite Home Care Ltd,5893.99, 19-Dec-2018
1004,Revenue,CAHD,Home Care - Elderly - North,Other Small Contracts,Elite Home Care Ltd,675.98, 19-Dec-2018
1005,Revenue,CAHD,Home Care - Elderly - South,Day Care / Social Activities,Elite Home Care Ltd,180.57, 27-Dec-2018
1006,Revenue,CAHD,Home Care - Elderly - South,Other Small Contracts,Elite Home Care Ltd,5912.51, 27-Dec-2018
1007,Revenue,CAHD,Home Care - Elderly - North,Other Small Contracts,Elite Home Care Ltd,708.39, 27-Dec-2018
1008,Revenue,CAHD,Bed Purchasing - South,Permanent Nursing,Ellenborough House,835.43, 18-Dec-2018
1009,Revenue,CAHD,Special ISB,Other Public Bodies,Enable Trust,1540.83, 27-Dec-2018
1010,Revenue,CAHD,Special ISB,Other Public Bodies,Enable Trust,892.04, 27-Dec-2018
1011,Revenue,CAHD,Special ISB,Other Public Bodies,Enable Trust,892.04, 27-Dec-2018
1012,Revenue,CAHD,Special ISB,Other Public Bodies,Enable Trust,1540.83, 27-Dec-2018
1013,Revenue,CAHD,Special ISB,Other Public Bodies,Enable Trust,1175.88, 27-Dec-2018
1014,Revenue,CAHD,Special ISB,Other Public Bodies,Enable Trust,1175.88, 27-Dec-2018
1015,Revenue,CAHD,Special ISB,Other Public Bodies,Enable Trust,1175.88, 27-Dec-2018
1016,Revenue,CAHD,Special ISB,Other Public Bodies,Enable Trust,1540.83, 27-Dec-2018
1017,Revenue,CAHD,Special ISB,Other Public Bodies,Enable Trust,892.04, 27-Dec-2018
1018,Revenue,CAHD,Special ISB,Other Public Bodies,Enable Trust,1175.88, 27-Dec-2018
1019,Revenue,CAHD,Special ISB,Other Public Bodies,Enable Trust,1175.88, 27-Dec-2018
1020,Revenue,CAHD,Special ISB,Other Public Bodies,Enable Trust,1175.88, 27-Dec-2018
1021,Revenue,CAHD,Special ISB,Other Public Bodies,Enable Trust,648.71, 27-Dec-2018
1022,Revenue,CAHD,Special ISB,Other Public Bodies,Enable Trust,1540.83, 27-Dec-2018
1023,Revenue,CAHD,Special ISB,Other Public Bodies,Enable Trust,648.71, 27-Dec-2018
1024,Revenue,CAHD,Special ISB,Other Public Bodies,Enable Trust,1013.74, 27-Dec-2018
1025,Revenue,CAHD,Special ISB,Other Public Bodies,Enable Trust,892.04, 27-Dec-2018
1026,Revenue,CAHD,Special ISB,Other Public Bodies,Enable Trust,1175.88, 27-Dec-2018
1027,Revenue,CAHD,Special ISB,Other Public Bodies,Enable Trust,1175.88, 27-Dec-2018
1028,Revenue,CAHD,Special ISB,Other Public Bodies,Enable Trust,1013.74, 27-Dec-2018
1029,Revenue,CAHD,Special ISB,Other Public Bodies,Enable Trust,892.04, 27-Dec-2018
1030,Revenue,CAHD,Special ISB,Other Public Bodies,Enable Trust,1175.88, 27-Dec-2018
1031,Revenue,CAHD,Special ISB,Other Public Bodies,Enable Trust,1540.83, 27-Dec-2018
1032,Revenue,CAHD,Special ISB,Other Public Bodies,Enable Trust,648.71, 27-Dec-2018
1033,Revenue,CAHD,Special ISB,Other Public Bodies,Enable Trust,892.04, 27-Dec-2018
1034,Revenue,CAHD,Special ISB,Other Public Bodies,Enable Trust,1540.83, 27-Dec-2018
1035,Revenue,CAHD,Special ISB,Other Public Bodies,Enable Trust,1175.88, 27-Dec-2018
1036,Revenue,CAHD,Special ISB,Other Public Bodies,Enable Trust,892.04, 27-Dec-2018
1037,Revenue,CAHD,Special ISB,Other Public Bodies,Enable Trust,1175.88, 27-Dec-2018
1038,Revenue,CAHD,Special ISB,Other Public Bodies,Enable Trust,892.04, 27-Dec-2018
1039,Revenue,CAHD,Special ISB,Other Public Bodies,Enable Trust,1175.88, 27-Dec-2018
1040,Revenue,CAHD,Special ISB,Other Public Bodies,Enable Trust,2189.53, 27-Dec-2018
1041,Revenue,CAHD,Special ISB,Other Public Bodies,Enable Trust,1175.88, 27-Dec-2018
1042,Revenue,CAHD,Special ISB,Other Public Bodies,Enable Trust,1175.88, 27-Dec-2018
1043,Revenue,CAHD,Special ISB,Other Public Bodies,Enable Trust,1175.88, 27-Dec-2018
1044,Revenue,CAHD,Special ISB,Other Public Bodies,Enable Trust,1175.88, 27-Dec-2018
1045,Revenue,CAHD,Special ISB,Other Public Bodies,Enable Trust,1175.88, 27-Dec-2018
1046,Revenue,CAHD,Special ISB,Other Public Bodies,Enable Trust,1540.83, 27-Dec-2018
1047,Revenue,CAHD,Special ISB,Other Public Bodies,Enable Trust,1175.88, 27-Dec-2018
1048,Revenue,CAHD,Special ISB,Other Public Bodies,Enable Trust,1540.83, 27-Dec-2018
1049,Revenue,CAHD,Special ISB,Other Public Bodies,Enable Trust,1175.88, 27-Dec-2018
1050,Revenue,CAHD,Special ISB,Other Public Bodies,Enable Trust,892.04, 27-Dec-2018
1051,Revenue,CAHD,Special ISB,Other Public Bodies,Enable Trust,1540.83, 27-Dec-2018
1052,Revenue,CAHD,Special ISB,Other Public Bodies,Enable Trust,1175.88, 27-Dec-2018
1053,Revenue,CAHD,Special ISB,Other Public Bodies,Enable Trust,1540.83, 27-Dec-2018
1054,Revenue,CAHD,Special ISB,Other Public Bodies,Enable Trust,1175.88, 27-Dec-2018
1055,Revenue,CAHD,Special ISB,Other Public Bodies,Enable Trust,892.04, 27-Dec-2018
1056,Revenue,CAHD,Special ISB,Other Public Bodies,Enable Trust,1175.88, 27-Dec-2018
1057,Revenue,CAHD,Special ISB,Other Public Bodies,Enable Trust,1175.88, 27-Dec-2018
1058,Revenue,CAHD,Special ISB,Other Public Bodies,Enable Trust,1175.88, 27-Dec-2018
1059,Revenue,CAHD,Special ISB,Other Public Bodies,Enable Trust,1540.83, 27-Dec-2018
1060,Revenue,CAHD,Special ISB,Other Public Bodies,Enable Trust,892.04, 27-Dec-2018
1061,Revenue,CAHD,Special ISB,Other Public Bodies,Enable Trust,1175.88, 27-Dec-2018
1062,Revenue,CAHD,Special ISB,Other Public Bodies,Enable Trust,892.04, 27-Dec-2018
1063,Revenue,CAHD,Special ISB,Other Public Bodies,Enable Trust,1175.88, 27-Dec-2018
1064,Revenue,CAHD,Special ISB,Other Public Bodies,Enable Trust,1540.83, 27-Dec-2018
1065,Revenue,CAHD,Special ISB,Other Public Bodies,Enable Trust,892.04, 27-Dec-2018
1066,Revenue,CAHD,Special ISB,Other Public Bodies,Enable Trust,892.04, 27-Dec-2018
1067,Revenue,CAHD,Special ISB,Other Public Bodies,Enable Trust,892.04, 27-Dec-2018
1068,Revenue,CAHD,Special ISB,Other Public Bodies,Enable Trust,1540.83, 27-Dec-2018
1069,Revenue,CAHD,Special ISB,Other Public Bodies,Enable Trust,1540.83, 27-Dec-2018
1070,Revenue,CAHD,Special ISB,Other Public Bodies,Enable Trust,648.71, 27-Dec-2018
1071,Revenue,CAHD,Special ISB,Other Public Bodies,Enable Trust,1175.88, 27-Dec-2018
1072,Revenue,CAHD,Special ISB,Other Public Bodies,Enable Trust,1540.83, 27-Dec-2018
1073,Revenue,CAHD,Special ISB,Other Public Bodies,Enable Trust,892.04, 27-Dec-2018
1074,Revenue,CAHD,Special ISB,Other Public Bodies,Enable Trust,1702.96, 27-Dec-2018
1075,Revenue,CAHD,Special ISB,Other Public Bodies,Enable Trust,1508.33, 27-Dec-2018
1076,Revenue,CAHD,Special ISB,Other Public Bodies,Enable Trust,1175.88, 27-Dec-2018
1077,Revenue,CAHD,Special ISB,Other Public Bodies,Enable Trust,1175.88, 27-Dec-2018
1078,Revenue,CAHD,Special ISB,Other Public Bodies,Enable Trust,892.04, 27-Dec-2018
1079,Revenue,CAHD,Special ISB,Other Public Bodies,Enable Trust,1175.88, 27-Dec-2018
1080,Revenue,CAHD,Special ISB,Other Public Bodies,Enable Trust,1175.88, 27-Dec-2018
1081,Revenue,CAHD,Special ISB,Other Public Bodies,Enable Trust,1175.88, 27-Dec-2018
1082,Revenue,CAHD,Special ISB,Other Public Bodies,Enable Trust,1175.88, 27-Dec-2018
1083,Revenue,CAHD,Special ISB,Other Public Bodies,Enable Trust,1175.88, 27-Dec-2018
1084,Revenue,CAHD,Special ISB,Other Public Bodies,Enable Trust,892.04, 27-Dec-2018
1085,Revenue,CAHD,Special ISB,Other Public Bodies,Enable Trust,1175.88, 27-Dec-2018
1086,Revenue,CAHD,Special ISB,Other Public Bodies,Enable Trust,1175.88, 27-Dec-2018
1087,Revenue,CAHD,Special ISB,Other Public Bodies,Enable Trust,1702.96, 27-Dec-2018
1088,Revenue,CAHD,Special ISB,Other Public Bodies,Enable Trust,1702.96, 27-Dec-2018
1089,Revenue,CAHD,Special ISB,Other Public Bodies,Enable Trust,1540.83, 27-Dec-2018
1090,Revenue,CAHD,Special ISB,Other Public Bodies,Enable Trust,1702.96, 27-Dec-2018
1091,Revenue,CAHD,Special ISB,Other Public Bodies,Enable Trust,892.04, 27-Dec-2018
1092,Revenue,CAHD,Special ISB,Other Public Bodies,Enable Trust,2513.89, 27-Dec-2018
1093,Revenue,CAHD,Special ISB,Other Public Bodies,Enable Trust,892.04, 27-Dec-2018
1094,Revenue,CAHD,Special ISB,Other Public Bodies,Enable Trust,1702.96, 27-Dec-2018
1095,Revenue,CAHD,Special ISB,Other Public Bodies,Enable Trust,1508.33, 27-Dec-2018
1096,Revenue,CAHD,Special ISB,Other Public Bodies,Enable Trust,1175.88, 27-Dec-2018
1097,Revenue,CAHD,Special ISB,Other Public Bodies,Enable Trust,1702.96, 27-Dec-2018
1098,Revenue,CAHD,Special ISB,Other Public Bodies,Enable Trust,1175.88, 27-Dec-2018
1099,Revenue,CAHD,Special ISB,Other Public Bodies,Enable Trust,2189.53, 27-Dec-2018
1100,Revenue,CAHD,Special ISB,Other Public Bodies,Enable Trust,1175.88, 27-Dec-2018
1101,Revenue,CAHD,Special ISB,Other Public Bodies,Enable Trust,1702.96, 27-Dec-2018
1102,Revenue,CAHD,Special ISB,Other Public Bodies,Enable Trust,1702.96, 27-Dec-2018
1103,Revenue,CAHD,Special ISB,Other Public Bodies,Enable Trust,1175.88, 27-Dec-2018
1104,Revenue,CAHD,Special ISB,Other Public Bodies,Enable Trust,892.04, 27-Dec-2018
1105,Revenue,CAHD,Special ISB,Other Public Bodies,Enable Trust,892.04, 27-Dec-2018
1106,Revenue,CAHD,Special ISB,Other Public Bodies,Enable Trust,1702.96, 27-Dec-2018
1107,Revenue,CAHD,Special ISB,Other Public Bodies,Enable Trust,892.04, 27-Dec-2018
1108,Revenue,CAHD,Special ISB,Other Public Bodies,Enable Trust,1175.88, 27-Dec-2018
1109,Revenue,CAHD,Special ISB,Other Public Bodies,Enable Trust,1175.88, 27-Dec-2018
1110,Revenue,CAHD,Special ISB,Other Public Bodies,Enable Trust,892.04, 27-Dec-2018
1111,Revenue,CAHD,Special ISB,Other Public Bodies,Enable Trust,1702.96, 27-Dec-2018
1112,Revenue,CAHD,Special ISB,Other Public Bodies,Enable Trust,892.04, 27-Dec-2018
1113,Revenue,CAHD,Special ISB,Other Public Bodies,Enable Trust,1175.88, 27-Dec-2018
1114,Revenue,CAHD,Special ISB,Other Public Bodies,Enable Trust,1175.88, 27-Dec-2018
1115,Revenue,CAHD,Special ISB,Other Public Bodies,Enable Trust,1702.96, 27-Dec-2018
1116,Revenue,CAHD,Special ISB,Other Public Bodies,Enable Trust,2189.53, 27-Dec-2018
1117,Revenue,CAHD,Special ISB,Other Public Bodies,Enable Trust,2189.53, 27-Dec-2018
1118,Revenue,CAHD,Special ISB,Other Public Bodies,Enable Trust,892.04, 27-Dec-2018
1119,Revenue,CAHD,Special ISB,Other Public Bodies,Enable Trust,1702.96, 27-Dec-2018
1120,Revenue,CAHD,Special ISB,Other Public Bodies,Enable Trust,892.04, 27-Dec-2018
1121,Revenue,CAHD,Special ISB,Other Public Bodies,Enable Trust,892.04, 27-Dec-2018
1122,Revenue,CAHD,Special ISB,Other Public Bodies,Enable Trust,892.04, 27-Dec-2018
1123,Revenue,CAHD,Special ISB,Other Public Bodies,Enable Trust,2189.53, 27-Dec-2018
1124,Revenue,CAHD,Special ISB,Other Public Bodies,Enable Trust,1175.88, 27-Dec-2018
1125,Revenue,CAHD,Special ISB,Other Public Bodies,Enable Trust,2189.53, 27-Dec-2018
1126,Revenue,CAHD,Special ISB,Other Public Bodies,Enable Trust,1175.88, 27-Dec-2018
1127,Revenue,CAHD,Special ISB,Other Public Bodies,Enable Trust,1175.88, 27-Dec-2018
1128,Revenue,CAHD,Special ISB,Other Public Bodies,Enable Trust,1175.88, 27-Dec-2018
1129,Revenue,CAHD,Special ISB,Other Public Bodies,Enable Trust,892.04, 27-Dec-2018
1130,Revenue,CAHD,Special ISB,Other Public Bodies,Enable Trust,1175.88, 27-Dec-2018
1131,Revenue,CAHD,Special ISB,Other Public Bodies,Enable Trust,1175.88, 27-Dec-2018
1132,Revenue,CAHD,Special ISB,Other Public Bodies,Enable Trust,892.04, 27-Dec-2018
1133,Revenue,CAHD,Special ISB,Other Public Bodies,Enable Trust,892.04, 27-Dec-2018
1134,Revenue,CAHD,Special ISB,Other Public Bodies,Enable Trust,892.04, 27-Dec-2018
1135,Revenue,CAHD,Special ISB,Other Public Bodies,Enable Trust,1175.88, 27-Dec-2018
1136,Revenue,CAHD,Special ISB,Other Public Bodies,Enable Trust,1175.88, 27-Dec-2018
1137,Revenue,CAHD,Special ISB,Other Public Bodies,Enable Trust,1175.88, 27-Dec-2018
1138,Revenue,CAHD,Special ISB,Other Public Bodies,Enable Trust,1175.88, 27-Dec-2018
1139,Revenue,CAHD,Special ISB,Other Public Bodies,Enable Trust,1508.33, 27-Dec-2018
1140,Revenue,CAHD,Special ISB,Other Public Bodies,Enable Trust,1175.88, 27-Dec-2018
1141,Revenue,CAHD,Special ISB,Other Public Bodies,Enable Trust,1702.96, 27-Dec-2018
1142,Revenue,CAHD,Special ISB,Other Public Bodies,Enable Trust,1175.88, 27-Dec-2018
1143,Revenue,CAHD,Special ISB,Other Public Bodies,Enable Trust,892.04, 27-Dec-2018
1144,Revenue,CAHD,Special ISB,Other Public Bodies,Enable Trust,1702.96, 27-Dec-2018
1145,Revenue,CAHD,Special ISB,Other Public Bodies,Enable Trust,1702.96, 27-Dec-2018
1146,Revenue,CAHD,Special ISB,Other Public Bodies,Enable Trust,2189.53, 27-Dec-2018
1147,Revenue,CAHD,Special ISB,Other Public Bodies,Enable Trust,1702.96, 27-Dec-2018
1148,Revenue,CAHD,Special ISB,Other Public Bodies,Enable Trust,2513.89, 27-Dec-2018
1149,Revenue,CAHD,Special ISB,Other Public Bodies,Enable Trust,1175.88, 27-Dec-2018
1150,Revenue,CAHD,Special ISB,Other Public Bodies,Enable Trust,892.04, 27-Dec-2018
1151,Revenue,CAHD,Special ISB,Other Public Bodies,Enable Trust,1175.88, 27-Dec-2018
1152,Revenue,CAHD,Special ISB,Other Public Bodies,Enable Trust,1175.88, 27-Dec-2018
1153,Revenue,CAHD,Special ISB,Other Public Bodies,Enable Trust,892.04, 27-Dec-2018
1154,Revenue,CAHD,Special ISB,Other Public Bodies,Enable Trust,892.04, 27-Dec-2018
1155,Revenue,CAHD,Special ISB,Other Public Bodies,Enable Trust,892.04, 27-Dec-2018
1156,Revenue,CAHD,Special ISB,Other Public Bodies,Enable Trust,1175.88, 27-Dec-2018
1157,Revenue,CAHD,Special ISB,Other Public Bodies,Enable Trust,892.04, 27-Dec-2018
1158,Revenue,CAHD,Special ISB,Other Public Bodies,Enable Trust,1702.96, 27-Dec-2018
1159,Revenue,CAHD,Schools Block Growth Contingency,Other Public Bodies,Enable Trust,6739.68, 27-Dec-2018
1160,Revenue,CAHD,Special ISB,Other Public Bodies,Enable Trust,50000.00, 27-Dec-2018
1161,Revenue,CAHD,Placements OLA Special Schools and RB,Other L.A.'s - General,Excalibur Academies Trust T/A,4052.67, 28-Dec-2018
1162,Revenue,CAHD,Independent Special Placements - Pre 16,Other Private Contractors,Exeter Royal Academy For Deaf Education,15858.00, 28-Dec-2018
1163,Revenue,CAHD,Independent Special Placements - Post 16,Other Private Contractors,Exeter Royal Academy For Deaf Education,26145.00, 28-Dec-2018
1164,Revenue,CAHD,Homeless - Private Sector Leasing,Prop.Serv. General Repairs,Express Property Services Limited,2833.65, 27-Dec-2018
1165,Revenue,CAHD,Extra Care Housing,Private & Voluntary Home Care,Extra Care Charitable Trust,19777.34, 10-Dec-2018
1166,Revenue,CAHD,Bed Purchasing - North,Permanent Residential,Eyre Court,3632.00, 18-Dec-2018
1167,Revenue,CAHD,South Glos Users in South Glos Homes,Permanent Nursing,Fairview Court,632.64, 18-Dec-2018
1168,Revenue,CAHD,South Glos Users in South Glos Homes,Permanent Nursing,Fairview Court,632.64, 18-Dec-2018
1169,Revenue,CAHD,South Glos Users in South Glos Homes,Permanent Nursing,Fairview Court,632.64, 18-Dec-2018
1170,Revenue,CAHD,Bed Purchasing - Southmead Hospital,Permanent Nursing,Fairview Court,3721.24, 18-Dec-2018
1171,Revenue,CAHD,South Glos Users in South Glos Homes,Permanent Nursing,Fairview Court,632.64, 18-Dec-2018
1172,Revenue,CAHD,Bed Purchasing - Southmead Hospital,Permanent Nursing,Fairview Court,3721.08, 18-Dec-2018
1173,Revenue,CAHD,Bed Purchasing - South,Permanent Nursing,Fairview Court,3464.60, 18-Dec-2018
1174,Revenue,CAHD,South Glos Users in South Glos Homes,Permanent Nursing,Fairview Court,632.64, 18-Dec-2018
1175,Revenue,CAHD,Bed Purchasing - South,Permanent Nursing,Fairview Court,3721.24, 18-Dec-2018
1176,Revenue,CAHD,Bed Purchasing - South,Permanent Nursing,Fairview Court,3721.24, 18-Dec-2018
1177,Revenue,CAHD,Bed Purchasing - South,Permanent Nursing,Fairview Court,3423.84, 18-Dec-2018
1178,Revenue,CAHD,South Glos Users in South Glos Homes,Permanent Nursing,Fairview Court,632.64, 18-Dec-2018
1179,Revenue,CAHD,South Glos Users in South Glos Homes,Permanent Nursing,Fairview Court,632.64, 18-Dec-2018
1180,Revenue,CAHD,Bed purchasing - Elderly S117 - South,Permanent Nursing,Fairview Court,4076.00, 18-Dec-2018
1181,Revenue,CAHD,South Glos Users in South Glos Homes,Permanent Nursing,Fairview Court,632.64, 18-Dec-2018
1182,Revenue,CAHD,South Glos Users in South Glos Homes,Permanent Nursing,Fairview Court,632.64, 18-Dec-2018
1183,Revenue,CAHD,Bed Purchasing - South,Permanent Nursing,Fairview Court,3303.20, 18-Dec-2018
1184,Revenue,CAHD,South Glos Users in South Glos Homes,Permanent Nursing,Fairview Court,632.64, 18-Dec-2018
1185,Revenue,CAHD,Bed Purchasing - South,Permanent Nursing,Fairview Court,3721.08, 18-Dec-2018
1186,Revenue,CAHD,South Glos Users in South Glos Homes,Permanent Nursing,Fairview Court,632.64, 18-Dec-2018
1187,Revenue,CAHD,South Glos Users in South Glos Homes,Permanent Nursing,Fairview Court,632.64, 18-Dec-2018
1188,Revenue,CAHD,South Glos Users in South Glos Homes,Permanent Nursing,Fairview Court,632.64, 18-Dec-2018
1189,Revenue,CAHD,Bed Purchasing - South,Permanent Nursing,Fairview Court,4385.75, 18-Dec-2018
1190,Revenue,CAHD,Bed Purchasing - South,Permanent Nursing,Fairview Court,3721.24, 18-Dec-2018
1191,Revenue,CAHD,South Glos Users in South Glos Homes,Permanent Nursing,Fairview Court,632.64, 18-Dec-2018
1192,Revenue,CAHD,Bed Purchasing - South,Permanent Nursing,Fairview Court,3464.60, 18-Dec-2018
1193,Revenue,CAHD,South Glos Users in South Glos Homes,Permanent Nursing,Fairview Court,632.64, 18-Dec-2018
1194,Revenue,CAHD,South Glos Users in South Glos Homes,Permanent Nursing,Fairview Court,632.64, 18-Dec-2018
1195,Revenue,CAHD,South Glos Users in South Glos Homes,Permanent Nursing,Fairview Court,632.64, 18-Dec-2018
1196,Revenue,CAHD,South Glos Users in South Glos Homes,Permanent Nursing,Fairview Court,632.64, 18-Dec-2018
1197,Revenue,CAHD,Bed Purchasing - South,Permanent Nursing,Fairview Court,3721.24, 18-Dec-2018
1198,Revenue,CAHD,South Glos Users in South Glos Homes,Permanent Nursing,Fairview Court,632.64, 18-Dec-2018
1199,Revenue,CAHD,South Glos Users in South Glos Homes,Permanent Nursing,Fairview Court,632.64, 18-Dec-2018
1200,Revenue,CAHD,South Glos Users in South Glos Homes,Permanent Nursing,Fairview Court,3321.36, 18-Dec-2018
1201,Revenue,CAHD,Bed Purchasing - South,Permanent Nursing,Fairview Court,3400.00, 18-Dec-2018
1202,Revenue,CAHD,South Glos Users in South Glos Homes,Permanent Nursing,Fairview Court,632.64, 18-Dec-2018
1203,Revenue,CAHD,South Glos Users in South Glos Homes,Permanent Nursing,Fairview Court,632.64, 18-Dec-2018
1204,Revenue,CAHD,South Glos Users in South Glos Homes,Permanent Nursing,Fairview Court,632.64, 18-Dec-2018
1205,Revenue,CAHD,South Glos Users in South Glos Homes,Permanent Nursing,Fairview Court,632.64, 18-Dec-2018
1206,Revenue,CAHD,Bed Purchasing - North,Permanent Nursing,Fairview Court,3464.60, 18-Dec-2018
1207,Revenue,CAHD,South Glos Users in South Glos Homes,Permanent Nursing,Fairview Court,632.64, 18-Dec-2018
1208,Revenue,CAHD,South Glos Users in South Glos Homes,Permanent Nursing,Fairview Court,3298.77, 18-Dec-2018
1209,Revenue,CAHD,South Glos Users in South Glos Homes,Permanent Nursing,Fairview Court,632.64, 18-Dec-2018
1210,Revenue,CAHD,Bed Purchasing - South,Permanent Nursing,Fairview Court,3400.00, 18-Dec-2018
1211,Revenue,CAHD,South Glos Users in South Glos Homes,Permanent Nursing,Fairview Court,632.64, 18-Dec-2018
1212,Revenue,CAHD,South Glos Users in South Glos Homes,Permanent Nursing,Fairview Court,632.64, 18-Dec-2018
1213,Revenue,CAHD,South Glos Users in South Glos Homes,Permanent Nursing,Fairview Court,632.64, 18-Dec-2018
1214,Revenue,CAHD,Bed Purchasing - North,Permanent Nursing,Fairview Court,3721.24, 18-Dec-2018
1215,Revenue,CAHD,Bed Purchasing - South,Permanent Nursing,Fairview Court,3057.00, 18-Dec-2018
1216,Revenue,CAHD,South Glos Users in South Glos Homes,Permanent Nursing,Fairview Court,632.64, 18-Dec-2018
1217,Revenue,CAHD,Bed Purchasing - South,Permanent Nursing,Fairview Court,3721.24, 18-Dec-2018
1218,Revenue,CAHD,South Glos Users in South Glos Homes,Permanent Nursing,Fairview Court,632.64, 18-Dec-2018
1219,Revenue,CAHD,Bed Purchasing - South,Permanent Nursing,Fairview Court,3464.60, 18-Dec-2018
1220,Revenue,CAHD,South Glos Users in South Glos Homes,Permanent Nursing,Fairview Court,632.64, 18-Dec-2018
1221,Revenue,CAHD,Bed Purchasing - South,Permanent Nursing,Fairview Court,3464.60, 18-Dec-2018
1222,Revenue,CAHD,South Glos Users in South Glos Homes,Permanent Nursing,Fairview Court,632.64, 18-Dec-2018
1223,Revenue,CAHD,South Glos Users in South Glos Homes,Permanent Nursing,Fairview Court,632.64, 18-Dec-2018
1224,Revenue,CAHD,South Glos Users in South Glos Homes,Permanent Nursing,Fairview Court,632.64, 18-Dec-2018
1225,Revenue,CAHD,Bed purchasing - Elderly S117 - South,Permanent Residential,Fairview House,2219.20, 18-Dec-2018
1226,Revenue,CAHD,Bed Purchasing - South,Permanent Residential,Fairview House,2219.20, 18-Dec-2018
1227,Revenue,CAHD,Bed Purchasing - North,Permanent Residential,Fairview House,2780.00, 18-Dec-2018
1228,Revenue,CAHD,Bed Purchasing - Southmead Hospital,Permanent Residential,Fairview House,2780.00, 18-Dec-2018
1229,Revenue,CAHD,Bed Purchasing - Central,Respite Emergency - Residential,Fairview House,795.00, 18-Dec-2018
1230,Revenue,CAHD,Bed Purchasing - South,Permanent Residential,Fairview House,2219.20, 18-Dec-2018
1231,Revenue,CAHD,Bed Purchasing - South,Permanent Residential,Fairview House,2148.68, 18-Dec-2018
1232,Revenue,CAHD,Bed Purchasing - South,Permanent Residential,Fairview House,2157.48, 18-Dec-2018
1233,Revenue,CAHD,Bed Purchasing - South,Permanent Residential,Fairview House,2547.52, 18-Dec-2018
1234,Revenue,CAHD,Bed Purchasing - North,Permanent Residential,Faith House,2740.00, 18-Dec-2018
1235,Revenue,CAHD,Bed Purchasing - North,Permanent Residential,Faith House,2740.00, 18-Dec-2018
1236,Revenue,CAHD,Bed Purchasing - North,Respite Planned - Residential,Faith House,1490.00, 18-Dec-2018
1237,Revenue,CAHD,Bed Purchasing - Southmead Hospital,Permanent Residential,Faith House,2740.00, 18-Dec-2018
1238,Revenue,CAHD,Bed Purchasing - South,Permanent Residential,Faith House,2740.00, 18-Dec-2018
1239,Revenue,CAHD,Post 16 High Needs Placements,Other Private Contractors,Farleigh FEC-Frome Priory,24293.43, 24-Dec-2018
1240,Revenue,CAHD,Post 16 High Needs Placements,Other Private Contractors,Farleigh FEC-Frome Priory,21204.85, 24-Dec-2018
1241,Revenue,CAHD,Post 16 High Needs Placements,Other Private Contractors,Farleigh FEC-Frome Priory,22499.38, 24-Dec-2018
1242,Revenue,CAHD,Post 16 High Needs Placements,Other Private Contractors,Farleigh FEC-Frome Priory,22312.65, 24-Dec-2018
1243,Revenue,CAHD,Bed Purchasing - Central,Permanent Nursing,Festival House,2983.44, 18-Dec-2018
1244,Revenue,CAHD,Bed Purchasing - North,Permanent Nursing,Field House Care Home,2164.36, 18-Dec-2018
1245,Revenue,CAHD,Bed Purchasing - North,Permanent Nursing,Field House Care Home,3440.00, 18-Dec-2018
1246,Revenue,CAHD,South Glos Users in South Glos Homes,Permanent Nursing,Field House Care Home,632.64, 18-Dec-2018
1247,Revenue,CAHD,Bed Purchasing - North,Permanent Nursing,Field House Care Home,3440.00, 18-Dec-2018
1248,Revenue,CAHD,Bed Purchasing - North,Permanent Nursing,Field House Care Home,3323.84, 18-Dec-2018
1249,Revenue,CAHD,Bed Purchasing - North,Permanent Nursing,Field House Care Home,3505.36, 18-Dec-2018
1250,Revenue,CAHD,Bed Purchasing - North,Permanent Nursing,Field House Care Home,3342.32, 18-Dec-2018
1251,Revenue,CAHD,Bed Purchasing - North,Respite Planned - Nursing,Field House Care Home,3342.32, 18-Dec-2018
1252,Revenue,CAHD,Bed Purchasing - North,Permanent Nursing,Field House Care Home,3342.32, 18-Dec-2018
1253,Revenue,CAHD,Bed Purchasing - North,Permanent Nursing,Field House Care Home,2164.36, 18-Dec-2018
1254,Revenue,CAHD,South Glos Users in South Glos Homes,Permanent Nursing,Field House Care Home,632.64, 18-Dec-2018
1255,Revenue,CAHD,South Glos Users in South Glos Homes,Permanent Nursing,Field House Care Home,1717.17, 18-Dec-2018
1256,Revenue,CAHD,South Glos Users in South Glos Homes,Permanent Nursing,Field House Care Home,632.64, 18-Dec-2018
1257,Revenue,CAHD,Bed Purchasing - North,Permanent Nursing,Field House Care Home,2164.36, 18-Dec-2018
1258,Revenue,CAHD,Bed Purchasing - North,Permanent Nursing,Field House Care Home,3423.84, 18-Dec-2018
1259,Revenue,CAHD,Bed Purchasing - North,Permanent Nursing,Field House Care Home,3423.84, 18-Dec-2018
1260,Revenue,CAHD,Bed Purchasing - Central,Permanent Residential,Fieldview,3400.00, 18-Dec-2018
1261,Revenue,CAHD,Bed Purchasing - North,Permanent Residential,Fieldview,2890.28, 18-Dec-2018
1262,Revenue,CAHD,Bed Purchasing - North,Permanent Residential,Fieldview,3668.40, 18-Dec-2018
1263,Revenue,CAHD,MH Purchasing - Younger,Permanent Nursing,Fieldview,5367.68, 18-Dec-2018
1264,Revenue,CAHD,Bed Purchasing - South,Permanent Residential,Fig House,2890.28, 18-Dec-2018
1265,Revenue,CAHD,Statemented Support Payments to OLAs,Other L.A.'s - General,Filton Avenue Primary School,1131.20, 21-Dec-2018
1266,Revenue,CAHD,Statemented Support Payments to OLAs,Other L.A.'s - General,Filton Avenue Primary School,1331.66, 21-Dec-2018
1267,Revenue,CAHD,CSC - Agency Fostering,Foster Parent Allowances,Five Rivers Child Care Limited,3336.60, 10-Dec-2018
1268,Revenue,CAHD,CSC - Agency Fostering,Foster Parent Allowances,Five Rivers Child Care Limited,3336.60, 10-Dec-2018
1269,Revenue,CAHD,CSC - Agency Fostering,Foster Parent Allowances,Five Rivers Child Care Limited,3938.57, 10-Dec-2018
1270,Revenue,CAHD,CSC - Agency Fostering,Foster Parent Allowances,Five Rivers Child Care Limited,3404.70, 10-Dec-2018
1271,Revenue,CAHD,CSC - Agency Fostering,Foster Parent Allowances,Five Rivers Child Care Limited,3518.19, 28-Dec-2018
1272,Revenue,CAHD,CSC - Agency Fostering,Foster Parent Allowances,Five Rivers Child Care Limited,3447.82, 28-Dec-2018
1273,Revenue,CAHD,CSC - Agency Fostering,Foster Parent Allowances,Five Rivers Child Care Limited,3447.82, 28-Dec-2018
1274,Revenue,CAHD,CSC - Agency Fostering,Foster Parent Allowances,Five Rivers Child Care Limited,4069.86, 28-Dec-2018
1275,Revenue,CAHD,CSC - Agency Fostering,Foster Parent Allowances,Five Rivers Child Care Limited,4291.29, 28-Dec-2018
1276,Revenue,CAHD,Training - Adult Services,Training Expenses,Focal Point UK,462.10, 12-Dec-2018
1277,Revenue,CAHD,CSC - Agency Fostering,Foster Parent Allowances,Foster Care Associates Limited,4131.68, 17-Dec-2018
1278,Revenue,CAHD,CSC - Asylum Seekers - Unaccompanied,Foster Parent Allowances,Foster Care Associates Limited,2406.22, 17-Dec-2018
1279,Revenue,CAHD,CSC - Agency Fostering,Foster Parent Allowances,Foster Care Associates Limited,819.00, 14-Dec-2018
1280,Revenue,CAHD,Homecare - Central,Other Small Contracts,Fourways Care Limited,249.66, 12-Dec-2018
1281,Revenue,CAHD,Home Care - Elderly - South,Other Small Contracts,Fourways Care Limited,1007.70, 12-Dec-2018
1282,Revenue,CAHD,Home Care - Elderly - North,Other Small Contracts,Fourways Care Limited,10069.62, 12-Dec-2018
1283,Revenue,CAHD,Homecare - Central,Other Small Contracts,Fourways Care Limited,197.10, 12-Dec-2018
1284,Revenue,CAHD,Home Care - Elderly - South,Other Small Contracts,Fourways Care Limited,897.72, 12-Dec-2018
1285,Revenue,CAHD,Home Care - Elderly - North,Other Small Contracts,Fourways Care Limited,9745.50, 12-Dec-2018
1286,Revenue,CAHD,Homecare - Central,Other Small Contracts,Fourways Care Limited,232.14, 19-Dec-2018
1287,Revenue,CAHD,Home Care - Elderly - South,Other Small Contracts,Fourways Care Limited,902.10, 19-Dec-2018
1288,Revenue,CAHD,Home Care - Elderly - North,Other Small Contracts,Fourways Care Limited,9640.38, 19-Dec-2018
1289,Revenue,CAHD,Homecare - Central,Other Small Contracts,Fourways Care Limited,236.52, 27-Dec-2018
1290,Revenue,CAHD,Home Care - Elderly - South,Other Small Contracts,Fourways Care Limited,894.72, 27-Dec-2018
1291,Revenue,CAHD,Home Care - Elderly - North,Other Small Contracts,Fourways Care Limited,9911.94, 27-Dec-2018
1292,Revenue,CAHD,Pathway 1 - Re-Ablement Home Care,Other Small Contracts,Fourways Care Limited,34734.00, 05-Dec-2018
1293,Revenue,CAHD,Supporting People Programme,Grants to Voluntary Bodies,Freeways Trust Limited,5989.85, 28-Dec-2018
1294,Revenue,CAHD,Freeways,Permanent Residential,Freeways Trust Limited,3748.60, 07-Dec-2018
1295,Revenue,CAHD,Freeways,Permanent Residential,Freeways Trust Limited,2410.80, 07-Dec-2018
1296,Revenue,CAHD,Freeways,Permanent Residential,Freeways Trust Limited,2410.80, 07-Dec-2018
1297,Revenue,CAHD,Freeways,Permanent Residential,Freeways Trust Limited,3507.76, 07-Dec-2018
1298,Revenue,CAHD,Freeways,Permanent Residential,Freeways Trust Limited,2410.80, 07-Dec-2018
1299,Revenue,CAHD,Freeways,Permanent Residential,Freeways Trust Limited,3553.44, 07-Dec-2018
1300,Revenue,CAHD,Freeways,Permanent Residential,Freeways Trust Limited,2674.68, 07-Dec-2018
1301,Revenue,CAHD,Freeways,Permanent Residential,Freeways Trust Limited,3719.68, 07-Dec-2018
1302,Revenue,CAHD,Freeways,Permanent Residential,Freeways Trust Limited,2267.40, 07-Dec-2018
1303,Revenue,CAHD,Freeways,Permanent Residential,Freeways Trust Limited,2847.12, 07-Dec-2018
1304,Revenue,CAHD,Freeways,Respite Planned - Residential,Freeways Trust Limited,2819.80, 07-Dec-2018
1305,Revenue,CAHD,Freeways,Respite Planned - Residential,Freeways Trust Limited,3183.32, 07-Dec-2018
1306,Revenue,CAHD,Freeways,Respite Planned - Residential,Freeways Trust Limited,2410.80, 07-Dec-2018
1307,Revenue,CAHD,Freeways,Respite Planned - Residential,Freeways Trust Limited,2565.20, 07-Dec-2018
1308,Revenue,CAHD,Freeways,Respite Planned - Residential,Freeways Trust Limited,3165.20, 07-Dec-2018
1309,Revenue,CAHD,Freeways,Respite Planned - Residential,Freeways Trust Limited,1740.67, 07-Dec-2018
1310,Revenue,CAHD,Freeways,Respite Planned - Residential,Freeways Trust Limited,549.69, 07-Dec-2018
1311,Revenue,CAHD,Home Care - Elderly - North,Supported Living,Freeways Trust Ltd,825.80, 18-Dec-2018
1312,Revenue,CAHD,Bed purchasing - S28A Under 65 - South,Permanent Residential,Freeways Trust Ltd,3795.56, 18-Dec-2018
1313,Revenue,CAHD,Bed Purchasing - North,Permanent Residential,Freeways Trust Ltd,3675.20, 18-Dec-2018
1314,Revenue,CAHD,Bed Purchasing - South,Permanent Residential,Freeways Trust Ltd,3897.84, 18-Dec-2018
1315,Revenue,CAHD,Bed Purchasing - North,Permanent Residential,Freeways Trust Ltd,2943.20, 18-Dec-2018
1316,Revenue,CAHD,Bed Purchasing - South,Permanent Residential,Freeways Trust Ltd,3101.48, 18-Dec-2018
1317,Revenue,CAHD,Bed Purchasing - North,Permanent Residential,Freeways Trust Ltd,3250.60, 18-Dec-2018
1318,Revenue,CAHD,Bed Purchasing - North,Permanent Residential,Freeways Trust Ltd,3890.76, 18-Dec-2018
1319,Revenue,CAHD,18-25 Year Olds,Permanent Residential,Freeways Trust Ltd,3594.20, 18-Dec-2018
1320,Revenue,CAHD,Section 117 Placements MH Younger,Permanent Residential,Freeways Trust Ltd,8152.00, 18-Dec-2018
1321,Revenue,CAHD,Section 117 Placements MH Younger,Permanent Residential,Freeways Trust Ltd,3260.80, 18-Dec-2018
1322,Revenue,CAHD,Home Care - Elderly - South,Day Care / Social Activities,Frenchay Beckspool Building,801.44, 18-Dec-2018
1323,Revenue,CAHD,Home Care - Elderly - South,Day Care / Social Activities,Frenchay Beckspool Building,801.44, 18-Dec-2018
1324,Revenue,CAHD,Homecare - Central,Day Care / Social Activities,Frenchay Beckspool Building,673.20, 18-Dec-2018
1325,Revenue,CAHD,Home Care - Elderly - South,Day Care / Social Activities,Frenchay Beckspool Building,880.40, 18-Dec-2018
1326,Revenue,CAHD,Home Care - Elderly - South,Day Care / Social Activities,Frenchay Beckspool Building,880.40, 18-Dec-2018
1327,Revenue,CAHD,Home Care - Elderly - South,Day Care / Social Activities,Frenchay Beckspool Building,625.12, 18-Dec-2018
1328,Revenue,CAHD,Home Care - Elderly - South,Day Care / Social Activities,Frenchay Beckspool Building,625.12, 18-Dec-2018
1329,Revenue,CAHD,CSC - Vinney Green Secure Unit,R & M by Departments,Frenchay Forestry Christmas Trees,539.50, 28-Dec-2018
1330,Revenue,CAHD,Bed Purchasing - North,Permanent Nursing,Frenchay Park Nursing Home,7650.00, 18-Dec-2018
1331,Revenue,CAHD,Bed Purchasing - North,Permanent Nursing,Frenchay Park Nursing Home,3400.00, 18-Dec-2018
1332,Revenue,CAHD,Bed Purchasing - North,Permanent Nursing,Frenchay Park Nursing Home,3260.80, 18-Dec-2018
1333,Revenue,CAHD,CSC - Social Work Team - NORTH,Agency Staff (Admin/Support Staff) Pay,Frontline Staffing Ltd,1731.23, 03-Dec-2018
1334,Revenue,CAHD,CSC - Social Work Team - NORTH,Agency Staff (Admin/Support Staff) Pay,Frontline Staffing Ltd,1871.60, 03-Dec-2018
1335,Revenue,CAHD,CSC - Social Work Team - SOUTH,Agency Staff (Admin/Support Staff) Pay,Frontline Staffing Ltd,1871.60, 12-Dec-2018
1336,Revenue,CAHD,CSC - Social Work Team - SOUTH,Agency Staff (Admin/Support Staff) Pay,Frontline Staffing Ltd,1871.60, 12-Dec-2018
1337,Revenue,CAHD,CSC - Social Work Team - NORTH,Agency Staff (Admin/Support Staff) Pay,Frontline Staffing Ltd,1731.23, 10-Dec-2018
1338,Revenue,CAHD,CSC - Social Work Team - NORTH,Agency Staff (Admin/Support Staff) Pay,Frontline Staffing Ltd,1602.56, 11-Dec-2018
1339,Revenue,CAHD,CSC - Social Work Team - NORTH,Agency Staff (Admin/Support Staff) Pay,Frontline Staffing Ltd,1052.78, 12-Dec-2018
1340,Revenue,CAHD,CSC - Social Work Team - SOUTH,Agency Staff (Admin/Support Staff) Pay,Frontline Staffing Ltd,1871.60, 12-Dec-2018
1341,Revenue,CAHD,CSC - Social Work Team - NORTH,Agency Staff (Admin/Support Staff) Pay,Frontline Staffing Ltd,1871.60, 17-Dec-2018
1342,Revenue,CAHD,CSC - Social Work Team - NORTH,Agency Staff (Admin/Support Staff) Pay,Frontline Staffing Ltd,1637.65, 18-Dec-2018
1343,Revenue,CAHD,CSC - Social Work Team - SOUTH,Agency Staff (Admin/Support Staff) Pay,Frontline Staffing Ltd,1473.89, 18-Dec-2018
1344,Revenue,CAHD,CSC - Social Work Team - SOUTH,Agency Staff (Admin/Support Staff) Pay,Frontline Staffing Ltd,1871.60, 18-Dec-2018
1345,Revenue,CAHD,CSC - Social Work Team - SOUTH,Agency Staff (Admin/Support Staff) Pay,Frontline Staffing Ltd,1871.60, 19-Dec-2018
1346,Revenue,CAHD,CSC - Social Work Team - NORTH,Agency Staff (Admin/Support Staff) Pay,Frontline Staffing Ltd,1356.91, 21-Dec-2018
1347,Revenue,CAHD,CSC - Social Work Team - SOUTH,Agency Staff (Admin/Support Staff) Pay,Frontline Staffing Ltd,1871.60, 27-Dec-2018
1348,Revenue,CAHD,CSC - Social Work Team - SOUTH,Agency Staff (Admin/Support Staff) Pay,Frontline Staffing Ltd,1918.39, 27-Dec-2018
1349,Revenue,CAHD,CSC - Social Work Team - NORTH,Agency Staff (Admin/Support Staff) Pay,Frontline Staffing Ltd,1871.60, 27-Dec-2018
1350,Revenue,CAHD,Bed Purchasing - South,Permanent Nursing,Fshc  1St Floor,2670.96, 18-Dec-2018
1351,Revenue,CAHD,South Glos Users in South Glos Homes,Permanent Nursing,Fshc  1St Floor,632.64, 18-Dec-2018
1352,Revenue,CAHD,Bed Purchasing - South,Permanent Nursing,Fshc  1St Floor,2324.64, 18-Dec-2018
1353,Revenue,CAHD,Bed Purchasing - South,Permanent Nursing,Fshc  1St Floor,2310.44, 18-Dec-2018
1354,Revenue,CAHD,South Glos Users in South Glos Homes,Permanent Nursing,Fshc  1St Floor,632.64, 18-Dec-2018
1355,Revenue,CAHD,Bed Purchasing - Southmead Hospital,Permanent Nursing,Fshc  1St Floor,2310.44, 18-Dec-2018
1356,Revenue,CAHD,South Glos Users in South Glos Homes,Permanent Nursing,Fshc  1St Floor,632.64, 18-Dec-2018
1357,Revenue,CAHD,Bed Purchasing - South,Permanent Residential,Fshc  1St Floor,2404.84, 18-Dec-2018
1358,Revenue,CAHD,Bed Purchasing - South,Permanent Nursing,Fshc  1St Floor,2560.00, 18-Dec-2018
1359,Revenue,CAHD,South Glos Users in South Glos Homes,Permanent Nursing,Fshc  1St Floor,632.64, 18-Dec-2018
1360,Revenue,CAHD,South Glos Users in South Glos Homes,Permanent Nursing,Fshc  1St Floor,632.64, 18-Dec-2018
1361,Revenue,CAHD,Bed Purchasing - North,Permanent Nursing,Fshc  1St Floor,2824.00, 18-Dec-2018
1362,Revenue,CAHD,Bed Purchasing - Southmead Hospital,Permanent Nursing,Fshc  1St Floor,1942.86, 18-Dec-2018
1363,Revenue,CAHD,Bed Purchasing - Southmead Hospital,Permanent Nursing,Fshc  1St Floor,3200.00, 18-Dec-2018
1364,Revenue,CAHD,Bed Purchasing - Southmead Hospital,Permanent Nursing,Fshc  1St Floor,1485.71, 18-Dec-2018
1365,Revenue,CAHD,Bed Purchasing - Southmead Hospital,Fees & Charges Income - General,Fshc  1St Floor,591.86, 18-Dec-2018
1366,Revenue,CAHD,Bed Purchasing - South,Permanent Nursing,Fshc  1St Floor,2600.00, 18-Dec-2018
1367,Revenue,CAHD,South Glos Users in South Glos Homes,Permanent Nursing,Fshc  1St Floor,632.64, 18-Dec-2018
1368,Revenue,CAHD,South Glos Users in South Glos Homes,Permanent Nursing,Fshc  1St Floor,632.64, 18-Dec-2018
1369,Revenue,CAHD,South Glos Users in South Glos Homes,Permanent Nursing,Fshc  1St Floor,632.64, 18-Dec-2018
1370,Revenue,CAHD,Bed Purchasing - South,Permanent Nursing,Fshc  1St Floor,2824.00, 18-Dec-2018
1371,Revenue,CAHD,Bed Purchasing - South,Permanent Nursing,Fshc  1St Floor,2404.84, 18-Dec-2018
1372,Revenue,CAHD,South Glos Users in South Glos Homes,Permanent Nursing,Fshc  1St Floor,632.64, 18-Dec-2018
1373,Revenue,CAHD,South Glos Users in South Glos Homes,Permanent Nursing,Fshc  1St Floor,1329.00, 18-Dec-2018
1374,Revenue,CAHD,Bed Purchasing - South,Permanent Nursing,Fshc  1St Floor,2560.00, 18-Dec-2018
1375,Revenue,CAHD,South Glos Users in South Glos Homes,Permanent Nursing,Fshc  1St Floor,632.64, 18-Dec-2018
1376,Revenue,CAHD,Bed Purchasing - South,Permanent Nursing,Fshc  1St Floor,2663.20, 18-Dec-2018
1377,Revenue,CAHD,South Glos Users in South Glos Homes,Permanent Nursing,Fshc  1St Floor,632.64, 18-Dec-2018
1378,Revenue,CAHD,Bed Purchasing - South,Respite Planned - Nursing,Fshc  1St Floor,840.00, 18-Dec-2018
1379,Revenue,CAHD,South Glos Users in South Glos Homes,Permanent Nursing,Fshc  1St Floor,632.64, 18-Dec-2018
1380,Revenue,CAHD,South Glos Users in South Glos Homes,Permanent Nursing,Fshc  1St Floor,632.64, 18-Dec-2018
1381,Revenue,CAHD,South Glos Users in South Glos Homes,Permanent Nursing,Fshc  1St Floor,632.64, 18-Dec-2018
1382,Revenue,CAHD,South Glos Users in South Glos Homes,Permanent Nursing,Fshc  1St Floor,632.64, 18-Dec-2018
1383,Revenue,CAHD,South Glos Users in South Glos Homes,Permanent Nursing,Fshc  1St Floor,632.64, 18-Dec-2018
1384,Revenue,CAHD,South Glos Users in South Glos Homes,Permanent Nursing,Fshc  1St Floor,632.64, 18-Dec-2018
1385,Revenue,CAHD,Bed Purchasing - South,Permanent Nursing,Fshc  1St Floor,2800.00, 18-Dec-2018
1386,Revenue,CAHD,Bed Purchasing - South,Permanent Nursing,Fshc  1St Floor,2324.64, 18-Dec-2018
1387,Revenue,CAHD,South Glos Users in South Glos Homes,Permanent Nursing,Fshc  1St Floor,632.64, 18-Dec-2018
1388,Revenue,CAHD,Bed Purchasing - South,Permanent Nursing,Fshc  1St Floor,2404.84, 18-Dec-2018
1389,Revenue,CAHD,South Glos Users in South Glos Homes,Permanent Nursing,Fshc  1St Floor,632.64, 18-Dec-2018
1390,Revenue,CAHD,Bed Purchasing - South,Permanent Nursing,Fshc  1St Floor,2310.44, 18-Dec-2018
1391,Revenue,CAHD,South Glos Users in South Glos Homes,Permanent Nursing,Fshc  1St Floor,632.64, 18-Dec-2018
1392,Revenue,CAHD,Bed Purchasing - South,Permanent Nursing,Fshc  1St Floor,2310.44, 18-Dec-2018
1393,Revenue,CAHD,South Glos Users in South Glos Homes,Permanent Nursing,Fshc  1St Floor,632.64, 18-Dec-2018
1394,Revenue,CAHD,Bed Purchasing - South,Permanent Nursing,Fshc  1St Floor,2310.44, 18-Dec-2018
1395,Revenue,CAHD,South Glos Users in South Glos Homes,Permanent Nursing,Fshc  1St Floor,632.64, 18-Dec-2018
1396,Revenue,CAHD,Bed Purchasing - South,Permanent Nursing,Fshc  1St Floor,3072.00, 18-Dec-2018
1397,Revenue,CAHD,South Glos Users in South Glos Homes,Permanent Nursing,Fshc  1St Floor,632.64, 18-Dec-2018
1398,Revenue,CAHD,Bed Purchasing - South,Permanent Nursing,Fshc  1St Floor,2324.64, 18-Dec-2018
1399,Revenue,CAHD,South Glos Users in South Glos Homes,Permanent Nursing,Fshc  1St Floor,632.64, 18-Dec-2018
1400,Revenue,CAHD,Bed Purchasing - South,Permanent Nursing,Fshc  1St Floor,2560.00, 18-Dec-2018
1401,Revenue,CAHD,South Glos Users in South Glos Homes,Permanent Nursing,Fshc  1St Floor,632.64, 18-Dec-2018
1402,Revenue,CAHD,Bed Purchasing - South,Permanent Nursing,Fshc  1St Floor,2600.00, 18-Dec-2018
1403,Revenue,CAHD,South Glos Users in South Glos Homes,Permanent Nursing,Fshc  1St Floor,632.64, 18-Dec-2018
1404,Revenue,CAHD,South Glos Users in South Glos Homes,Permanent Nursing,Fshc  1St Floor,1174.90, 18-Dec-2018
1405,Revenue,CAHD,South Glos Users in South Glos Homes,Permanent Nursing,Fshc  1St Floor,753.10, 18-Dec-2018
1406,Revenue,CAHD,Bed Purchasing - South,Permanent Nursing,Fshc  1St Floor,2445.60, 18-Dec-2018
1407,Revenue,CAHD,Bed Purchasing - South,Permanent Nursing,Fshc  1St Floor,3097.76, 18-Dec-2018
1408,Revenue,CAHD,South Glos Users in South Glos Homes,Permanent Nursing,Fshc  1St Floor,632.64, 18-Dec-2018
1409,Revenue,CAHD,Bed Purchasing - South,Permanent Nursing,Fshc  1St Floor,2404.84, 18-Dec-2018
1410,Revenue,CAHD,South Glos Users in South Glos Homes,Permanent Nursing,Fshc  1St Floor,632.64, 18-Dec-2018
1411,Revenue,CAHD,Bed Purchasing - South,Permanent Nursing,Fshc  1St Floor,2864.24, 18-Dec-2018
1412,Revenue,CAHD,Bed Purchasing - North,Permanent Residential,Fshc  1St Floor,2824.00, 18-Dec-2018
1413,Revenue,CAHD,South Glos Users in South Glos Homes,Permanent Nursing,Fshc  1St Floor,632.64, 18-Dec-2018
1414,Revenue,CAHD,Bed Purchasing - Central,Permanent Nursing,Fshc  1St Floor,2310.44, 18-Dec-2018
1415,Revenue,CAHD,South Glos Users in South Glos Homes,Permanent Nursing,Fshc  1St Floor,632.64, 18-Dec-2018
1416,Revenue,CAHD,Bed Purchasing - Central,Permanent Nursing,Fshc  1St Floor,2339.64, 18-Dec-2018
1417,Revenue,CAHD,South Glos Users in South Glos Homes,Permanent Nursing,Fshc  1St Floor,632.64, 18-Dec-2018
1418,Revenue,CAHD,Bed Purchasing - North,Permanent Nursing,Fshc  1St Floor,2339.64, 18-Dec-2018
1419,Revenue,CAHD,South Glos Users in South Glos Homes,Permanent Nursing,Fshc  1St Floor,632.64, 18-Dec-2018
1420,Revenue,CAHD,Bed Purchasing - Central,Permanent Nursing,Fshc  1St Floor,2339.64, 18-Dec-2018
1421,Revenue,CAHD,South Glos Users in South Glos Homes,Permanent Nursing,Fshc  1St Floor,632.64, 18-Dec-2018
1422,Revenue,CAHD,South Glos Users in South Glos Homes,Permanent Nursing,Fshc  1St Floor,632.64, 18-Dec-2018
1423,Revenue,CAHD,Bed Purchasing - Central,Permanent Residential,Fshc  1St Floor,2700.00, 18-Dec-2018
1424,Revenue,CAHD,Bed Purchasing - Central,Permanent Residential,Fshc  1St Floor,2700.00, 18-Dec-2018
1425,Revenue,CAHD,Bed Purchasing - North,Permanent Nursing,Fshc  1St Floor,2310.44, 18-Dec-2018
1426,Revenue,CAHD,South Glos Users in South Glos Homes,Permanent Nursing,Fshc  1St Floor,632.64, 18-Dec-2018
1427,Revenue,CAHD,Bed Purchasing - Central,Permanent Residential,Fshc  1St Floor,2148.68, 18-Dec-2018
1428,Revenue,CAHD,South Glos Users in South Glos Homes,Permanent Nursing,Fshc  1St Floor,632.64, 18-Dec-2018
1429,Revenue,CAHD,South Glos Users in South Glos Homes,Permanent Nursing,Fshc  1St Floor,632.64, 18-Dec-2018
1430,Revenue,CAHD,Bed Purchasing - North,Permanent Residential,Fshc  1St Floor,2832.84, 18-Dec-2018
1431,Revenue,CAHD,Bed Purchasing - South,Permanent Residential,Fshc  1St Floor,2751.32, 18-Dec-2018
1432,Revenue,CAHD,Bed Purchasing - North,Permanent Nursing,Fshc  1St Floor,2339.64, 18-Dec-2018
1433,Revenue,CAHD,South Glos Users in South Glos Homes,Permanent Nursing,Fshc  1St Floor,632.64, 18-Dec-2018
1434,Revenue,CAHD,Bed Purchasing - Central,Permanent Nursing,Fshc  1St Floor,2311.20, 18-Dec-2018
1435,Revenue,CAHD,South Glos Users in South Glos Homes,Permanent Nursing,Fshc  1St Floor,632.64, 18-Dec-2018
1436,Revenue,CAHD,Bed Purchasing - Central,Permanent Nursing,Fshc  1St Floor,2310.44, 18-Dec-2018
1437,Revenue,CAHD,South Glos Users in South Glos Homes,Permanent Nursing,Fshc  1St Floor,632.64, 18-Dec-2018
1438,Revenue,CAHD,Bed Purchasing - North,Permanent Nursing,Fshc  1St Floor,2310.44, 18-Dec-2018
1439,Revenue,CAHD,South Glos Users in South Glos Homes,Permanent Nursing,Fshc  1St Floor,632.64, 18-Dec-2018
1440,Revenue,CAHD,Bed Purchasing - North,Permanent Nursing,Fshc  1St Floor,2310.44, 18-Dec-2018
1441,Revenue,CAHD,South Glos Users in South Glos Homes,Permanent Nursing,Fshc  1St Floor,632.64, 18-Dec-2018
1442,Revenue,CAHD,Bed Purchasing - Central,Permanent Residential,Fshc  1St Floor,2700.00, 18-Dec-2018
1443,Revenue,CAHD,Bed Purchasing - North,Permanent Nursing,Fshc  1St Floor,2339.64, 18-Dec-2018
1444,Revenue,CAHD,South Glos Users in South Glos Homes,Permanent Nursing,Fshc  1St Floor,632.64, 18-Dec-2018
1445,Revenue,CAHD,Bed Purchasing - North,Permanent Nursing,Fshc  1St Floor,2339.64, 18-Dec-2018
1446,Revenue,CAHD,South Glos Users in South Glos Homes,Permanent Nursing,Fshc  1St Floor,632.64, 18-Dec-2018
1447,Revenue,CAHD,Bed Purchasing - North,Permanent Nursing,Fshc  1St Floor,2310.44, 18-Dec-2018
1448,Revenue,CAHD,South Glos Users in South Glos Homes,Permanent Nursing,Fshc  1St Floor,632.64, 18-Dec-2018
1449,Revenue,CAHD,South Glos Users in South Glos Homes,Permanent Nursing,Fshc  1St Floor,632.64, 18-Dec-2018
1450,Revenue,CAHD,South Glos Users in South Glos Homes,Permanent Nursing,Fshc  1St Floor,632.64, 18-Dec-2018
1451,Revenue,CAHD,Bed Purchasing - North,Permanent Nursing,Fshc  1St Floor,2382.00, 18-Dec-2018
1452,Revenue,CAHD,South Glos Users in South Glos Homes,Permanent Nursing,Fshc  1St Floor,632.64, 18-Dec-2018
1453,Revenue,CAHD,South Glos Users in South Glos Homes,Permanent Nursing,Fshc  1St Floor,632.64, 18-Dec-2018
1454,Revenue,CAHD,South Glos Users in South Glos Homes,Permanent Nursing,Fshc  1St Floor,2666.13, 18-Dec-2018
1455,Revenue,CAHD,Bed Purchasing - North,Permanent Residential,Fshc  1St Floor,2382.00, 18-Dec-2018
1456,Revenue,CAHD,South Glos Users in South Glos Homes,Permanent Nursing,Fshc  1St Floor,632.64, 18-Dec-2018
1457,Revenue,CAHD,Bed Purchasing - North,Permanent Nursing,Fshc  1St Floor,2310.44, 18-Dec-2018
1458,Revenue,CAHD,South Glos Users in South Glos Homes,Permanent Nursing,Fshc  1St Floor,664.50, 18-Dec-2018
1459,Revenue,CAHD,South Glos Users in South Glos Homes,Permanent Nursing,Fshc  1St Floor,632.64, 18-Dec-2018
1460,Revenue,CAHD,South Glos Users in South Glos Homes,Permanent Nursing,Fshc  1St Floor,632.64, 18-Dec-2018
1461,Revenue,CAHD,Bed Purchasing - Central,Respite Planned - Nursing,Fshc  1St Floor,1073.06, 18-Dec-2018
1462,Revenue,CAHD,South Glos Users in South Glos Homes,Permanent Nursing,Fshc  1St Floor,632.64, 18-Dec-2018
1463,Revenue,CAHD,Bed Purchasing - Central,Permanent Nursing,Fshc  1St Floor,2310.44, 18-Dec-2018
1464,Revenue,CAHD,South Glos Users in South Glos Homes,Permanent Nursing,Fshc  1St Floor,632.64, 18-Dec-2018
1465,Revenue,CAHD,South Glos Users in South Glos Homes,Permanent Nursing,Fshc  1St Floor,632.64, 18-Dec-2018
1466,Revenue,CAHD,South Glos Users in South Glos Homes,Permanent Nursing,Fshc  1St Floor,632.64, 18-Dec-2018
1467,Revenue,CAHD,Bed Purchasing - North,Permanent Nursing,Fshc  1St Floor,2310.44, 18-Dec-2018
1468,Revenue,CAHD,South Glos Users in South Glos Homes,Permanent Nursing,Fshc  1St Floor,632.64, 18-Dec-2018
1469,Revenue,CAHD,South Glos Users in South Glos Homes,Permanent Nursing,Fshc  1St Floor,632.64, 18-Dec-2018
1470,Revenue,CAHD,South Glos Users in South Glos Homes,Permanent Nursing,Fshc  1St Floor,632.64, 18-Dec-2018
1471,Revenue,CAHD,Bed Purchasing - North,Permanent Nursing,Fshc  1St Floor,2380.00, 18-Dec-2018
1472,Revenue,CAHD,South Glos Users in South Glos Homes,Permanent Nursing,Fshc  1St Floor,632.64, 18-Dec-2018
1473,Revenue,CAHD,Bed Purchasing - North,Permanent Nursing,Fshc  1St Floor,2310.44, 18-Dec-2018
1474,Revenue,CAHD,South Glos Users in South Glos Homes,Permanent Nursing,Fshc  1St Floor,632.64, 18-Dec-2018
1475,Revenue,CAHD,Bed Purchasing - North,Permanent Nursing,Fshc  1St Floor,2310.44, 18-Dec-2018
1476,Revenue,CAHD,South Glos Users in South Glos Homes,Permanent Nursing,Fshc  1St Floor,632.64, 18-Dec-2018
1477,Revenue,CAHD,Bed Purchasing - Central,Permanent Nursing,Fshc  1St Floor,2310.44, 18-Dec-2018
1478,Revenue,CAHD,South Glos Users in South Glos Homes,Permanent Nursing,Fshc  1St Floor,632.64, 18-Dec-2018
1479,Revenue,CAHD,Bed Purchasing - North,Permanent Nursing,Fshc  1St Floor,2380.96, 18-Dec-2018
1480,Revenue,CAHD,South Glos Users in South Glos Homes,Permanent Nursing,Fshc  1St Floor,632.64, 18-Dec-2018
1481,Revenue,CAHD,South Glos Users in South Glos Homes,Permanent Nursing,Fshc  1St Floor,632.64, 18-Dec-2018
1482,Revenue,CAHD,Bed Purchasing - North,Permanent Nursing,Fshc  1St Floor,2270.32, 18-Dec-2018
1483,Revenue,CAHD,South Glos Users in South Glos Homes,Permanent Nursing,Fshc  1St Floor,632.64, 18-Dec-2018
1484,Revenue,CAHD,Bed Purchasing - North,Permanent Nursing,Fshc  1St Floor,2380.96, 18-Dec-2018
1485,Revenue,CAHD,South Glos Users in South Glos Homes,Permanent Nursing,Fshc  1St Floor,632.64, 18-Dec-2018
1486,Revenue,CAHD,Bed Purchasing - Central,Permanent Nursing,Fshc  1St Floor,2427.84, 18-Dec-2018
1487,Revenue,CAHD,South Glos Users in South Glos Homes,Permanent Nursing,Fshc  1St Floor,632.64, 18-Dec-2018
1488,Revenue,CAHD,Bed Purchasing - North,Permanent Nursing,Fshc  1St Floor,2310.44, 18-Dec-2018
1489,Revenue,CAHD,South Glos Users in South Glos Homes,Permanent Nursing,Fshc  1St Floor,632.64, 18-Dec-2018
1490,Revenue,CAHD,Bed Purchasing - North,Permanent Nursing,Fshc  1St Floor,2310.44, 18-Dec-2018
1491,Revenue,CAHD,South Glos Users in South Glos Homes,Permanent Nursing,Fshc  1St Floor,632.64, 18-Dec-2018
1492,Revenue,CAHD,Bed Purchasing - Central,Permanent Nursing,Fshc  1St Floor,3158.92, 18-Dec-2018
1493,Revenue,CAHD,South Glos Users in South Glos Homes,Permanent Nursing,Fshc  1St Floor,632.64, 18-Dec-2018
1494,Revenue,CAHD,South Glos Users in South Glos Homes,Permanent Nursing,Fshc  1St Floor,632.64, 18-Dec-2018
1495,Revenue,CAHD,South Glos Users in South Glos Homes,Permanent Nursing,Fshc  1St Floor,632.64, 18-Dec-2018
1496,Revenue,CAHD,South Glos Users in South Glos Homes,Permanent Nursing,Fshc  1St Floor,632.64, 18-Dec-2018
1497,Revenue,CAHD,Bed Purchasing - North,Permanent Nursing,Fshc  1St Floor,2323.12, 18-Dec-2018
1498,Revenue,CAHD,South Glos Users in South Glos Homes,Permanent Nursing,Fshc  1St Floor,632.64, 18-Dec-2018
1499,Revenue,CAHD,South Glos Users in South Glos Homes,Permanent Nursing,Fshc  1St Floor,632.64, 18-Dec-2018
1500,Revenue,CAHD,Bed Purchasing - Central,Permanent Nursing,Fshc  1St Floor,2667.36, 18-Dec-2018
1501,Revenue,CAHD,South Glos Users in South Glos Homes,Permanent Nursing,Fshc  1St Floor,632.64, 18-Dec-2018
1502,Revenue,CAHD,Bed Purchasing - Central,Permanent Nursing,Fshc  1St Floor,1945.71, 18-Dec-2018
1503,Revenue,CAHD,Bed Purchasing - Central,Permanent Nursing,Fshc  1St Floor,921.65, 18-Dec-2018
1504,Revenue,CAHD,Bed Purchasing - Central,Permanent Nursing,Fshc  1St Floor,2927.36, 18-Dec-2018
1505,Revenue,CAHD,South Glos Users in South Glos Homes,Permanent Nursing,Fshc  1St Floor,632.64, 18-Dec-2018
1506,Revenue,CAHD,South Glos Users in South Glos Homes,Permanent Nursing,Fshc  1St Floor,632.64, 18-Dec-2018
1507,Revenue,CAHD,Bed Purchasing - North,Permanent Nursing,Fshc  1St Floor,2323.12, 18-Dec-2018
1508,Revenue,CAHD,South Glos Users in South Glos Homes,Permanent Nursing,Fshc  1St Floor,632.64, 18-Dec-2018
1509,Revenue,CAHD,South Glos Users in South Glos Homes,Permanent Nursing,Fshc  1St Floor,632.64, 18-Dec-2018
1510,Revenue,CAHD,Bed Purchasing - Central,Respite Planned - Nursing,Fshc  1St Floor,2526.92, 18-Dec-2018
1511,Revenue,CAHD,South Glos Users in South Glos Homes,Permanent Nursing,Fshc  1St Floor,632.64, 18-Dec-2018
1512,Revenue,CAHD,South Glos Users in South Glos Homes,Permanent Nursing,Fshc  1St Floor,632.64, 18-Dec-2018
1513,Revenue,CAHD,Bed Purchasing - Central,Permanent Nursing,Fshc  1St Floor,2547.52, 18-Dec-2018
1514,Revenue,CAHD,South Glos Users in South Glos Homes,Permanent Nursing,Fshc  1St Floor,632.64, 18-Dec-2018
1515,Revenue,CAHD,South Glos Users in South Glos Homes,Permanent Nursing,Fshc  1St Floor,632.64, 18-Dec-2018
1516,Revenue,CAHD,Bed Purchasing - North,Permanent Nursing,Fshc  1St Floor,4184.20, 18-Dec-2018
1517,Revenue,CAHD,Bed Purchasing - North,Permanent Nursing,Fshc  1St Floor,3347.36, 18-Dec-2018
1518,Revenue,CAHD,Bed Purchasing - Central,Respite Emergency - Residential,Fshc  1St Floor,3600.00, 18-Dec-2018
1519,Revenue,CAHD,Bed Purchasing - Central,Respite Emergency - Residential,Fshc  1St Floor,1671.43, 18-Dec-2018
1520,Revenue,CAHD,Bed Purchasing - Southmead Hospital,Respite Planned - Nursing,Fshc  1St Floor,2755.41, 18-Dec-2018
1521,Revenue,CAHD,Bed Purchasing - North,Permanent Nursing,Fshc  1St Floor,2380.96, 18-Dec-2018
1522,Revenue,CAHD,South Glos Users in South Glos Homes,Permanent Nursing,Fshc  1St Floor,632.64, 18-Dec-2018
1523,Revenue,CAHD,Bed Purchasing - Central,Permanent Nursing,Fshc  1St Floor,2967.36, 18-Dec-2018
1524,Revenue,CAHD,South Glos Users in South Glos Homes,Permanent Nursing,Fshc  1St Floor,632.64, 18-Dec-2018
1525,Revenue,CAHD,South Glos Users in South Glos Homes,Permanent Nursing,Fshc  1St Floor,632.64, 18-Dec-2018
1526,Revenue,CAHD,Bed Purchasing - North,Permanent Nursing,Fshc  1St Floor,2767.76, 18-Dec-2018
1527,Revenue,CAHD,South Glos Users in South Glos Homes,Permanent Nursing,Fshc  1St Floor,632.64, 18-Dec-2018
1528,Revenue,CAHD,South Glos Users in South Glos Homes,Permanent Nursing,Fshc  1St Floor,632.64, 18-Dec-2018
1529,Revenue,CAHD,Bed Purchasing - Central,Permanent Nursing,Fshc  1St Floor,3158.92, 18-Dec-2018
1530,Revenue,CAHD,South Glos Users in South Glos Homes,Permanent Nursing,Fshc  1St Floor,632.64, 18-Dec-2018
1531,Revenue,CAHD,South Glos Users in South Glos Homes,Permanent Nursing,Fshc  1St Floor,632.64, 18-Dec-2018
1532,Revenue,CAHD,Bed Purchasing - North,Permanent Nursing,Fshc  1St Floor,2456.52, 18-Dec-2018
1533,Revenue,CAHD,South Glos Users in South Glos Homes,Permanent Nursing,Fshc  1St Floor,632.64, 18-Dec-2018
1534,Revenue,CAHD,Bed Purchasing - South,Permanent Nursing,Fshc  1St Floor,2554.80, 18-Dec-2018
1535,Revenue,CAHD,South Glos Users in South Glos Homes,Permanent Nursing,Fshc  1St Floor,632.64, 18-Dec-2018
1536,Revenue,CAHD,Bed Purchasing - Central,Permanent Nursing,Fshc  1St Floor,2380.96, 18-Dec-2018
1537,Revenue,CAHD,South Glos Users in South Glos Homes,Permanent Nursing,Fshc  1St Floor,632.64, 18-Dec-2018
1538,Revenue,CAHD,Bed Purchasing - South,Permanent Nursing,Fshc  1St Floor,2477.40, 18-Dec-2018
1539,Revenue,CAHD,South Glos Users in South Glos Homes,Permanent Nursing,Fshc  1St Floor,632.64, 18-Dec-2018
1540,Revenue,CAHD,Bed Purchasing - South,Permanent Nursing,Fshc  1St Floor,3167.36, 18-Dec-2018
1541,Revenue,CAHD,South Glos Users in South Glos Homes,Permanent Nursing,Fshc  1St Floor,632.64, 18-Dec-2018
1542,Revenue,CAHD,Bed Purchasing - South,Permanent Nursing,Fshc  1St Floor,2547.52, 18-Dec-2018
1543,Revenue,CAHD,South Glos Users in South Glos Homes,Permanent Nursing,Fshc  1St Floor,632.64, 18-Dec-2018
1544,Revenue,CAHD,Bed Purchasing - South,Permanent Nursing,Fshc  1St Floor,2310.44, 18-Dec-2018
1545,Revenue,CAHD,South Glos Users in South Glos Homes,Permanent Nursing,Fshc  1St Floor,632.64, 18-Dec-2018
1546,Revenue,CAHD,South Glos Users in South Glos Homes,Permanent Nursing,Fshc  1St Floor,632.64, 18-Dec-2018
1547,Revenue,CAHD,Bed Purchasing - South,Permanent Nursing,Fshc  1St Floor,2445.60, 18-Dec-2018
1548,Revenue,CAHD,South Glos Users in South Glos Homes,Permanent Nursing,Fshc  1St Floor,632.64, 18-Dec-2018
1549,Revenue,CAHD,South Glos Users in South Glos Homes,Permanent Nursing,Fshc  1St Floor,632.64, 18-Dec-2018
1550,Revenue,CAHD,Bed Purchasing - South,Permanent Residential,Fshc  1St Floor,2600.00, 18-Dec-2018
1551,Revenue,CAHD,Bed Purchasing - South,Fees & Charges Income - General,Fshc  1St Floor,2477.01, 18-Dec-2018
1552,Revenue,CAHD,Bed Purchasing - South,Fees & Charges Income - General,Fshc  1St Floor,1479.64, 18-Dec-2018
1553,Revenue,CAHD,South Glos Users in South Glos Homes,Permanent Nursing,Fshc  1St Floor,632.64, 18-Dec-2018
1554,Revenue,CAHD,South Glos Users in South Glos Homes,Permanent Nursing,Fshc  1St Floor,632.64, 18-Dec-2018
1555,Revenue,CAHD,Bed Purchasing - South,Permanent Residential,Fshc  1St Floor,2343.72, 18-Dec-2018
1556,Revenue,CAHD,Bed Purchasing - South,Permanent Residential,Fshc  1St Floor,2400.00, 18-Dec-2018
1557,Revenue,CAHD,South Glos Users in South Glos Homes,Permanent Nursing,Fshc  1St Floor,632.64, 18-Dec-2018
1558,Revenue,CAHD,Bed Purchasing - South,Permanent Residential,Fshc  1St Floor,2180.68, 18-Dec-2018
1559,Revenue,CAHD,Bed Purchasing - South,Permanent Nursing,Fshc  1St Floor,2380.96, 18-Dec-2018
1560,Revenue,CAHD,South Glos Users in South Glos Homes,Permanent Nursing,Fshc  1St Floor,632.64, 18-Dec-2018
1561,Revenue,CAHD,Bed Purchasing - South,Permanent Nursing,Fshc  1St Floor,2310.44, 18-Dec-2018
1562,Revenue,CAHD,South Glos Users in South Glos Homes,Permanent Nursing,Fshc  1St Floor,632.64, 18-Dec-2018
1563,Revenue,CAHD,Bed Purchasing - South,Permanent Nursing,Fshc  1St Floor,2683.84, 18-Dec-2018
1564,Revenue,CAHD,South Glos Users in South Glos Homes,Permanent Nursing,Fshc  1St Floor,632.64, 18-Dec-2018
1565,Revenue,CAHD,Bed Purchasing - South,Permanent Nursing,Fshc  1St Floor,2310.44, 18-Dec-2018
1566,Revenue,CAHD,South Glos Users in South Glos Homes,Permanent Nursing,Fshc  1St Floor,632.64, 18-Dec-2018
1567,Revenue,CAHD,Bed Purchasing - South,Permanent Residential,Fshc  1St Floor,2223.84, 18-Dec-2018
1568,Revenue,CAHD,Bed Purchasing - South,Permanent Nursing,Fshc  1St Floor,2233.76, 18-Dec-2018
1569,Revenue,CAHD,Bed purchasing - Elderly S117 - South,Permanent Nursing,Fshc  1St Floor,2233.76, 18-Dec-2018
1570,Revenue,CAHD,Bed Purchasing - South,Permanent Nursing,Fshc  1St Floor,3509.64, 18-Dec-2018
1571,Revenue,CAHD,Bed Purchasing - North,Permanent Nursing,Fshc  1St Floor,2233.76, 18-Dec-2018
1572,Revenue,CAHD,Bed Purchasing - North,Permanent Nursing,Fshc  1St Floor,3668.40, 18-Dec-2018
1573,Revenue,CAHD,Bed Purchasing - North,Permanent Nursing,Fshc  1St Floor,3158.92, 18-Dec-2018
1574,Revenue,CAHD,Bed Purchasing - North,Permanent Nursing,Fshc  1St Floor,2233.76, 18-Dec-2018
1575,Revenue,CAHD,Bed Purchasing - South,Permanent Nursing,Fshc  1St Floor,2233.76, 18-Dec-2018
1576,Revenue,CAHD,Bed Purchasing - South,Permanent Residential,Fshc  1St Floor,3656.28, 18-Dec-2018
1577,Revenue,CAHD,South Glos Users in South Glos Homes,Permanent Nursing,Fshc  1St Floor,1513.82, 18-Dec-2018
1578,Revenue,CAHD,South Glos Users in South Glos Homes,Permanent Nursing,Fshc  1St Floor,632.64, 18-Dec-2018
1579,Revenue,CAHD,Bed Purchasing - North,Permanent Nursing,Fshc  1St Floor,2235.88, 18-Dec-2018
1580,Revenue,CAHD,Bed Purchasing - Central,Permanent Residential,Fshc  1St Floor,900.51, 18-Dec-2018
1581,Revenue,CAHD,Bed Purchasing - Central,Permanent Residential,Fshc  1St Floor,1391.69, 18-Dec-2018
1582,Revenue,CAHD,Bed Purchasing - Central,Permanent Nursing,Fshc  1St Floor,4076.00, 18-Dec-2018
1583,Revenue,CAHD,Bed Purchasing - North,Permanent Nursing,Fshc  1St Floor,2309.04, 18-Dec-2018
1584,Revenue,CAHD,South Glos Users in South Glos Homes,Permanent Nursing,Fshc  1St Floor,1461.90, 18-Dec-2018
1585,Revenue,CAHD,Bed Purchasing - North,Permanent Residential,Fshc  1St Floor,1890.36, 18-Dec-2018
1586,Revenue,CAHD,Bed Purchasing - Southmead Hospital,Permanent Nursing,Fshc  1St Floor,2595.52, 18-Dec-2018
1587,Revenue,CAHD,CSC - Agency Fostering,Foster Parent Allowances,Fusion Fostering Ltd,4626.97, 12-Dec-2018
1588,Revenue,CAHD,CSC - Asylum Seekers - Unaccompanied,Adults - Family Support,Fusion Independence Limited,1071.43, 04-Dec-2018
1589,Revenue,CAHD,CSC - Care Leavers Independent Living,Independent Living,Fusion Independence Limited,6420.00, 11-Dec-2018
1590,Revenue,CAHD,CSC - Asylum Seekers - Unaccompanied,Adults - Family Support,Fusion Independence Limited,3214.28, 11-Dec-2018
1591,Revenue,CAHD,CSC - Asylum Seekers - Unaccompanied,Adults - Family Support,Fusion Independence Limited,3321.43, 14-Dec-2018
1592,Revenue,CAHD,CSC - Care Leavers Independent Living,Independent Living,Fusion Independence Limited,17714.28, 14-Dec-2018
1593,Revenue,CAHD,CSC - Corporate Parenting Manager,Agency Staff (Admin/Support Staff) Pay,Gatenby Sanderson Limited,2900.00, 03-Dec-2018
1594,Revenue,CAHD,CSC - Corporate Parenting Manager,Agency Staff (Admin/Support Staff) Pay,Gatenby Sanderson Limited,2320.00, 04-Dec-2018
1595,Revenue,CAHD,CSC - Corporate Parenting Manager,Agency Staff (Admin/Support Staff) Pay,Gatenby Sanderson Limited,2610.00, 17-Dec-2018
1596,Revenue,CAHD,CSC - Corporate Parenting Manager,Agency Staff (Admin/Support Staff) Pay,Gatenby Sanderson Limited,2900.00, 17-Dec-2018
1597,Revenue,CAHD,Alexandra Way,Premises Maintenance by Contractor,Geoff Lewis Flooring Limited,480.00, 20-Dec-2018
1598,Revenue,CAHD,Alexandra Way,Premises Maintenance by Contractor,Individual,1850.00, 12-Dec-2018
1599,Revenue,CAHD,Bed Purchasing - South,Permanent Residential,Gladstone House,5859.20, 18-Dec-2018
1600,Revenue,CAHD,Jointly Funded H&SC Packages,Permanent Residential,Gladstone House,765.60, 18-Dec-2018
1601,Revenue,CAHD,MH Purchasing - Younger,Permanent Residential,Gladstone House,3062.40, 18-Dec-2018
1602,Revenue,CAHD,Bed Purchasing - North,Permanent Residential,Glan Y Felin,6643.96, 18-Dec-2018
1603,Revenue,CAHD,Bed Purchasing - South,Permanent Residential,Glasallt Fawr,44362.86, 18-Dec-2018
1604,Revenue,CAHD,Bed Purchasing - South,Permanent Residential,Glasallt Fawr,5219.16, 18-Dec-2018
1605,Revenue,CAHD,Bed Purchasing - South,Fees & Charges Income - General,Glasallt Fawr,2767.82, 18-Dec-2018
1606,Revenue,CAHD,Bed Purchasing - North,Permanent Nursing,Glebe House Nursing Home,3578.28, 18-Dec-2018
1607,Revenue,CAHD,South Glos Users in South Glos Homes,Permanent Nursing,Glebe House Nursing Home,632.64, 18-Dec-2018
1608,Revenue,CAHD,South Glos Users in South Glos Homes,Permanent Nursing,Glebe House Nursing Home,632.64, 18-Dec-2018
1609,Revenue,CAHD,South Glos Users in South Glos Homes,Permanent Nursing,Glebe House Nursing Home,632.64, 18-Dec-2018
1610,Revenue,CAHD,Bed Purchasing - North,Permanent Nursing,Glebe House Nursing Home,3789.28, 18-Dec-2018
1611,Revenue,CAHD,South Glos Users in South Glos Homes,Permanent Nursing,Glebe House Nursing Home,632.64, 18-Dec-2018
1612,Revenue,CAHD,South Glos Users in South Glos Homes,Permanent Nursing,Glebe House Nursing Home,632.64, 18-Dec-2018
1613,Revenue,CAHD,South Glos Users in South Glos Homes,Permanent Nursing,Glebe House Nursing Home,632.64, 18-Dec-2018
1614,Revenue,CAHD,South Glos Users in South Glos Homes,Permanent Nursing,Glebe House Nursing Home,632.64, 18-Dec-2018
1615,Revenue,CAHD,Bed Purchasing - North,Permanent Residential,Glebe House Nursing Home,3696.32, 18-Dec-2018
1616,Revenue,CAHD,Bed Purchasing - North,Permanent Residential,Glebe House Nursing Home,3744.00, 18-Dec-2018
1617,Revenue,CAHD,South Glos Users in South Glos Homes,Permanent Nursing,Glebe House Nursing Home,632.64, 18-Dec-2018
1618,Revenue,CAHD,South Glos Users in South Glos Homes,Permanent Nursing,Glebe House Nursing Home,632.64, 18-Dec-2018
1619,Revenue,CAHD,Bed Purchasing - North,Permanent Nursing,Glebe House Nursing Home,3953.72, 18-Dec-2018
1620,Revenue,CAHD,South Glos Users in South Glos Homes,Permanent Nursing,Glebe House Nursing Home,632.64, 18-Dec-2018
1621,Revenue,CAHD,South Glos Users in South Glos Homes,Permanent Nursing,Glebe House Nursing Home,632.64, 18-Dec-2018
1622,Revenue,CAHD,South Glos Users in South Glos Homes,Permanent Nursing,Glebe House Nursing Home,632.64, 18-Dec-2018
1623,Revenue,CAHD,Bed Purchasing - North,Permanent Nursing,Glebe House Nursing Home,3867.36, 18-Dec-2018
1624,Revenue,CAHD,South Glos Users in South Glos Homes,Permanent Nursing,Glebe House Nursing Home,632.64, 18-Dec-2018
1625,Revenue,CAHD,South Glos Users in South Glos Homes,Permanent Nursing,Glebe House Nursing Home,632.64, 18-Dec-2018
1626,Revenue,CAHD,South Glos Users in South Glos Homes,Permanent Nursing,Glebe House Nursing Home,632.64, 18-Dec-2018
1627,Revenue,CAHD,Bed Purchasing - North,Permanent Nursing,Glebe House Nursing Home,3420.00, 18-Dec-2018
1628,Revenue,CAHD,South Glos Users in South Glos Homes,Permanent Nursing,Glebe House Nursing Home,632.64, 18-Dec-2018
1629,Revenue,CAHD,Bed Purchasing - North,Permanent Nursing,Glenview,3224.00, 18-Dec-2018
1630,Revenue,CAHD,Bed Purchasing - South,Respite Planned - Nursing,Glenview,706.00, 18-Dec-2018
1631,Revenue,CAHD,Bed Purchasing - Elderly S117- North,Permanent Nursing,Glenview,3224.00, 18-Dec-2018
1632,Revenue,CAHD,Bed Purchasing - Elderly S117- North,Permanent Nursing,Glenview,23817.86, 18-Dec-2018
1633,Revenue,CAHD,Bed Purchasing - Elderly S117- North,Permanent Nursing,Glenview,1532.14, 18-Dec-2018
1634,Revenue,CAHD,Bed Purchasing - North,Permanent Nursing,Glenview,3224.00, 18-Dec-2018
1635,Revenue,CAHD,Bed Purchasing - North,Permanent Nursing,Glenview,3108.86, 18-Dec-2018
1636,Revenue,CAHD,Bed Purchasing - South,Permanent Nursing,Glenview,3900.00, 18-Dec-2018
1637,Revenue,CAHD,Bed Purchasing - South,Permanent Residential,Goldcare House,4625.52, 18-Dec-2018
1638,Revenue,CAHD,Bed Purchasing - Southmead Hospital,Fees & Charges Income - General,Gordena Care Home,533.00, 18-Dec-2018
1639,Revenue,CAHD,Bed Purchasing - South,Permanent Residential,Gordena Care Home,2635.96, 18-Dec-2018
1640,Revenue,CAHD,Bed Purchasing - South,Permanent Residential,Gordena Care Home,3752.80, 18-Dec-2018
1641,Revenue,CAHD,Bed Purchasing - South,Permanent Residential,Gordena Care Home,3764.24, 18-Dec-2018
1642,Revenue,CAHD,Bed Purchasing - South,Permanent Residential,Gordena Care Limited,4918.60, 18-Dec-2018
1643,Revenue,CAHD,Bed purchasing - S28A Under 65 - South,Permanent Residential,Gordena Care Limited,4783.60, 18-Dec-2018
1644,Revenue,CAHD,Bed Purchasing - North,Permanent Residential,Gordena Care Limited,4985.60, 18-Dec-2018
1645,Revenue,CAHD,South Glos Users in South Glos Homes,Permanent Nursing,Gracefields Nursing Home,632.64, 18-Dec-2018
1646,Revenue,CAHD,South Glos Users in South Glos Homes,Permanent Nursing,Gracefields Nursing Home,632.64, 18-Dec-2018
1647,Revenue,CAHD,Bed Purchasing - South,Permanent Nursing,Gracefields Nursing Home,3707.36, 18-Dec-2018
1648,Revenue,CAHD,South Glos Users in South Glos Homes,Permanent Nursing,Gracefields Nursing Home,632.64, 18-Dec-2018
1649,Revenue,CAHD,South Glos Users in South Glos Homes,Permanent Nursing,Gracefields Nursing Home,632.64, 18-Dec-2018
1650,Revenue,CAHD,Bed Purchasing - South,Permanent Nursing,Gracefields Nursing Home,3566.52, 18-Dec-2018
1651,Revenue,CAHD,South Glos Users in South Glos Homes,Permanent Nursing,Gracefields Nursing Home,632.64, 18-Dec-2018
1652,Revenue,CAHD,South Glos Users in South Glos Homes,Permanent Nursing,Gracefields Nursing Home,632.64, 18-Dec-2018
1653,Revenue,CAHD,Bed Purchasing - Southmead Hospital,Permanent Nursing,Gracefields Nursing Home,3567.36, 18-Dec-2018
1654,Revenue,CAHD,Bed Purchasing - Southmead Hospital,Permanent Nursing,Gracefields Nursing Home,3439.95, 18-Dec-2018
1655,Revenue,CAHD,Bed Purchasing - Southmead Hospital,Fees & Charges Income - General,Gracefields Nursing Home,512.94, 18-Dec-2018
1656,Revenue,CAHD,Bed purchasing - Elderly S117 - South,Permanent Nursing,Gracefields Nursing Home,2492.16, 18-Dec-2018
1657,Revenue,CAHD,South Glos Users in South Glos Homes,Permanent Nursing,Gracefields Nursing Home,632.64, 18-Dec-2018
1658,Revenue,CAHD,Bed Purchasing - South,Permanent Nursing,Gracefields Nursing Home,3668.40, 18-Dec-2018
1659,Revenue,CAHD,South Glos Users in South Glos Homes,Permanent Nursing,Gracefields Nursing Home,632.64, 18-Dec-2018
1660,Revenue,CAHD,Bed Purchasing - South,Permanent Nursing,Gracefields Nursing Home,3153.52, 18-Dec-2018
1661,Revenue,CAHD,South Glos Users in South Glos Homes,Permanent Nursing,Gracefields Nursing Home,632.64, 18-Dec-2018
1662,Revenue,CAHD,South Glos Users in South Glos Homes,Permanent Nursing,Gracefields Nursing Home,632.64, 18-Dec-2018
1663,Revenue,CAHD,Bed Purchasing - South,Permanent Nursing,Gracefields Nursing Home,3464.60, 18-Dec-2018
1664,Revenue,CAHD,South Glos Users in South Glos Homes,Permanent Nursing,Gracefields Nursing Home,632.64, 18-Dec-2018
1665,Revenue,CAHD,South Glos Users in South Glos Homes,Permanent Nursing,Gracefields Nursing Home,632.64, 18-Dec-2018
1666,Revenue,CAHD,South Glos Users in South Glos Homes,Permanent Nursing,Gracefields Nursing Home,632.64, 18-Dec-2018
1667,Revenue,CAHD,Bed Purchasing - Central,Permanent Nursing,Gracefields Nursing Home,3567.36, 18-Dec-2018
1668,Revenue,CAHD,South Glos Users in South Glos Homes,Permanent Nursing,Gracefields Nursing Home,632.64, 18-Dec-2018
1669,Revenue,CAHD,South Glos Users in South Glos Homes,Permanent Nursing,Gracefields Nursing Home,632.64, 18-Dec-2018
1670,Revenue,CAHD,Bed Purchasing - South,Permanent Nursing,Gracefields Nursing Home,3567.36, 18-Dec-2018
1671,Revenue,CAHD,South Glos Users in South Glos Homes,Permanent Nursing,Gracefields Nursing Home,632.64, 18-Dec-2018
1672,Revenue,CAHD,South Glos Users in South Glos Homes,Permanent Nursing,Gracefields Nursing Home,632.64, 18-Dec-2018
1673,Revenue,CAHD,Bed Purchasing - South,Permanent Nursing,Gracefields Nursing Home,3566.52, 18-Dec-2018
1674,Revenue,CAHD,South Glos Users in South Glos Homes,Permanent Nursing,Gracefields Nursing Home,632.64, 18-Dec-2018
1675,Revenue,CAHD,Bed Purchasing - South,Permanent Nursing,Gracefields Nursing Home,17685.90, 18-Dec-2018
1676,Revenue,CAHD,Bed Purchasing - South,Permanent Nursing,Gracefields Nursing Home,3487.36, 18-Dec-2018
1677,Revenue,CAHD,South Glos Users in South Glos Homes,Permanent Nursing,Gracefields Nursing Home,632.64, 18-Dec-2018
1678,Revenue,CAHD,Bed Purchasing - South,Fees & Charges Income - General,Gracefields Nursing Home,2801.46, 18-Dec-2018
1679,Revenue,CAHD,Bed Purchasing - South,Permanent Nursing,Gracefields Nursing Home,3129.76, 18-Dec-2018
1680,Revenue,CAHD,South Glos Users in South Glos Homes,Permanent Nursing,Gracefields Nursing Home,632.64, 18-Dec-2018
1681,Revenue,CAHD,South Glos Users in South Glos Homes,Permanent Nursing,Gracefields Nursing Home,632.64, 18-Dec-2018
1682,Revenue,CAHD,South Glos Users in South Glos Homes,Permanent Nursing,Gracefields Nursing Home,632.64, 18-Dec-2018
1683,Revenue,CAHD,South Glos Users in South Glos Homes,Permanent Nursing,Gracefields Nursing Home,632.64, 18-Dec-2018
1684,Revenue,CAHD,Bed Purchasing - South,Permanent Nursing,Gracefields Nursing Home,3153.52, 18-Dec-2018
1685,Revenue,CAHD,South Glos Users in South Glos Homes,Permanent Nursing,Gracefields Nursing Home,632.64, 18-Dec-2018
1686,Revenue,CAHD,Bed Purchasing - South,Permanent Nursing,Gracefields Nursing Home,3026.56, 18-Dec-2018
1687,Revenue,CAHD,South Glos Users in South Glos Homes,Permanent Nursing,Gracefields Nursing Home,632.64, 18-Dec-2018
1688,Revenue,CAHD,South Glos Users in South Glos Homes,Permanent Nursing,Gracefields Nursing Home,632.64, 18-Dec-2018
1689,Revenue,CAHD,South Glos Users in South Glos Homes,Permanent Nursing,Gracefields Nursing Home,632.64, 18-Dec-2018
1690,Revenue,CAHD,South Glos Users in South Glos Homes,Permanent Nursing,Gracefields Nursing Home,632.64, 18-Dec-2018
1691,Revenue,CAHD,South Glos Users in South Glos Homes,Permanent Nursing,Gracefields Nursing Home,632.64, 18-Dec-2018
1692,Revenue,CAHD,South Glos Users in South Glos Homes,Permanent Nursing,Gracefields Nursing Home,632.64, 18-Dec-2018
1693,Revenue,CAHD,South Glos Users in South Glos Homes,Permanent Nursing,Gracefields Nursing Home,632.64, 18-Dec-2018
1694,Revenue,CAHD,South Glos Users in South Glos Homes,Permanent Nursing,Gracefields Nursing Home,632.64, 18-Dec-2018
1695,Revenue,CAHD,South Glos Users in South Glos Homes,Permanent Nursing,Gracefields Nursing Home,632.64, 18-Dec-2018
1696,Revenue,CAHD,Bed Purchasing - South,Permanent Nursing,Gracefields Nursing Home,632.64, 18-Dec-2018
1697,Revenue,CAHD,South Glos Users in South Glos Homes,Permanent Nursing,Gracefields Nursing Home,632.64, 18-Dec-2018
1698,Revenue,CAHD,Bed Purchasing - South,Permanent Nursing,Gracefields Nursing Home,3400.00, 18-Dec-2018
1699,Revenue,CAHD,South Glos Users in South Glos Homes,Permanent Nursing,Gracefields Nursing Home,632.64, 18-Dec-2018
1700,Revenue,CAHD,Bed Purchasing - South,Permanent Nursing,Gracefields Nursing Home,3567.36, 18-Dec-2018
1701,Revenue,CAHD,Bed Purchasing - South,Fees & Charges Income - General,Gracefields Nursing Home,3311.26, 18-Dec-2018
1702,Revenue,CAHD,Bed Purchasing - South,Fees & Charges Income - General,Gracefields Nursing Home,1636.20, 18-Dec-2018
1703,Revenue,CAHD,Bed Purchasing - South,Permanent Nursing,Gracefields Nursing Home,2492.16, 18-Dec-2018
1704,Revenue,CAHD,South Glos Users in South Glos Homes,Permanent Nursing,Gracefields Nursing Home,632.64, 18-Dec-2018
1705,Revenue,CAHD,Bed Purchasing - South,Permanent Nursing,Gracefields Nursing Home,3464.60, 18-Dec-2018
1706,Revenue,CAHD,South Glos Users in South Glos Homes,Permanent Nursing,Gracefields Nursing Home,632.64, 18-Dec-2018
1707,Revenue,CAHD,South Glos Users in South Glos Homes,Permanent Nursing,Gracefields Nursing Home,632.64, 18-Dec-2018
1708,Revenue,CAHD,South Glos Users in South Glos Homes,Permanent Nursing,Gracefields Nursing Home,632.64, 18-Dec-2018
1709,Revenue,CAHD,South Glos Users in South Glos Homes,Permanent Nursing,Gracefields Nursing Home,3118.01, 18-Dec-2018
1710,Revenue,CAHD,Bed Purchasing - South,Permanent Nursing,Gracefields Nursing Home,3567.36, 18-Dec-2018
1711,Revenue,CAHD,South Glos Users in South Glos Homes,Permanent Nursing,Gracefields Nursing Home,632.64, 18-Dec-2018
1712,Revenue,CAHD,South Glos Users in South Glos Homes,Permanent Nursing,Gracefields Nursing Home,632.64, 18-Dec-2018
1713,Revenue,CAHD,Bed Purchasing - South,Permanent Nursing,Gracefields Nursing Home,3336.20, 18-Dec-2018
1714,Revenue,CAHD,South Glos Users in South Glos Homes,Permanent Nursing,Gracefields Nursing Home,632.64, 18-Dec-2018
1715,Revenue,CAHD,Academy Resource Base Funding,Other Public Bodies,Greenshaw Learning Trust T/A Yate Academy,1013.74, 27-Dec-2018
1716,Revenue,CAHD,Academy Resource Base Funding,Other Public Bodies,Greenshaw Learning Trust T/A Yate Academy,1013.74, 27-Dec-2018
1717,Revenue,CAHD,Academy Resource Base Funding,Other Public Bodies,Greenshaw Learning Trust T/A Yate Academy,1540.83, 27-Dec-2018
1718,Revenue,CAHD,Academy Resource Base Funding,Other Public Bodies,Greenshaw Learning Trust T/A Yate Academy,1175.88, 27-Dec-2018
1719,Revenue,CAHD,Academy Resource Base Funding,Other Public Bodies,Greenshaw Learning Trust T/A Yate Academy,648.71, 27-Dec-2018
1720,Revenue,CAHD,Academy Resource Base Funding,Other Public Bodies,Greenshaw Learning Trust T/A Yate Academy,1702.96, 27-Dec-2018
1721,Revenue,CAHD,Academy Resource Base Funding,Other Public Bodies,Greenshaw Learning Trust T/A Yate Academy,1540.83, 27-Dec-2018
1722,Revenue,CAHD,Statemented Support Academies,Schools Funding,Greenshaw Learning Trust T/A Yate Academy,694.91, 21-Dec-2018
1723,Revenue,CAHD,Statemented Support Academies,Schools Funding,Greenshaw Learning Trust T/A Yate Academy,1213.74, 21-Dec-2018
1724,Revenue,CAHD,Statemented Support Academies,Schools Funding,Greenshaw Learning Trust T/A Yate Academy,848.20, 21-Dec-2018
1725,Revenue,CAHD,Statemented Support Academies,Schools Funding,Greenshaw Learning Trust T/A Yate Academy,1461.37, 21-Dec-2018
1726,Revenue,CAHD,Statemented Support Academies,Schools Funding,Greenshaw Learning Trust T/A Yate Academy,1461.37, 21-Dec-2018
1727,Revenue,CAHD,Statemented Support Academies,Schools Funding,Greenshaw Learning Trust T/A Yate Academy,1213.74, 21-Dec-2018
1728,Revenue,CAHD,Statemented Support Academies,Schools Funding,Greenshaw Learning Trust T/A Yate Academy,1213.74, 21-Dec-2018
1729,Revenue,CAHD,Statemented Support Academies,Schools Funding,Greenshaw Learning Trust T/A Yate Academy,977.91, 21-Dec-2018
1730,Revenue,CAHD,Statemented Support Academies,Schools Funding,Greenshaw Learning Trust T/A Yate Academy,942.53, 21-Dec-2018
1731,Revenue,CAHD,Statemented Support Academies,Schools Funding,Greenshaw Learning Trust T/A Yate Academy,883.58, 21-Dec-2018
1732,Revenue,CAHD,Statemented Support Academies,Schools Funding,Greenshaw Learning Trust T/A Yate Academy,966.12, 21-Dec-2018
1733,Revenue,CAHD,Statemented Support Academies,Schools Funding,Greenshaw Learning Trust T/A Yate Academy,1001.49, 21-Dec-2018
1734,Revenue,CAHD,Statemented Support Academies,Schools Funding,Greenshaw Learning Trust T/A Yate Academy,765.66, 21-Dec-2018
1735,Revenue,CAHD,Statemented Support Academies,Schools Funding,Greenshaw Learning Trust T/A Yate Academy,694.91, 21-Dec-2018
1736,Revenue,CAHD,Bed Purchasing - North,Permanent Residential,Greensleeves,2075.40, 18-Dec-2018
1737,Revenue,CAHD,Bed Purchasing - South,Permanent Residential,Gwendoline House,2613.96, 18-Dec-2018
1738,Revenue,CAHD,Bed Purchasing - South,Permanent Residential,Gwendoline House,2415.44, 18-Dec-2018
1739,Revenue,CAHD,Supporting People Programme,Grants to Voluntary Bodies,Habinteg Housing Association,678.00, 28-Dec-2018
1740,Revenue,CAHD,Social Lettings Agency,Fees - General,Individual,13.13, 27-Dec-2018
1741,Revenue,CAHD,Social Lettings Agency,Other Supplies & Services,Individual,577.72, 27-Dec-2018
1742,Revenue,CAHD,CSC - Residential Placements,Permanent Residential,Hampshire County Council,31000.00, 05-Dec-2018
1743,Revenue,CAHD,CSC - Family Placement Team,Software Support & Maintenance,Hands Free Computing Ltd,1076.40, 04-Dec-2018
1744,Revenue,CAHD,Early Years Inclusion Fund,Other Public Bodies,Hanham Toddlers Pre School,1650.00, 03-Dec-2018
1745,Revenue,CAHD,Early Years Inclusion Fund,Other Public Bodies,Hanham Toddlers Pre School,2000.00, 03-Dec-2018
1746,Revenue,CAHD,Home Care - Elderly - North,Other Supplies & Services,Hanover Housing Association,795.99, 03-Dec-2018
1747,Revenue,CAHD,Home Care - Elderly - North,Other Supplies & Services,Hanover Housing Association,1219.72, 03-Dec-2018
1748,Revenue,CAHD,Home Care - Elderly - North,Other Supplies & Services,HAS Technology Limited T/A CM2000,10302.61, 12-Dec-2018
1749,Revenue,CAHD,Bed Purchasing - North,Permanent Nursing,Hazelwood Gardens Nursing Home,2658.04, 18-Dec-2018
1750,Revenue,CAHD,Bed Purchasing - North,Permanent Nursing,Hazelwood Gardens Nursing Home,2288.56, 18-Dec-2018
1751,Revenue,CAHD,Bed Purchasing - Central,Permanent Residential,Hc-One Ltd,2181.00, 18-Dec-2018
1752,Revenue,CAHD,Bed Purchasing - North,Permanent Nursing,Hc-One Ltd,2816.28, 18-Dec-2018
1753,Revenue,CAHD,Bed Purchasing - North,Permanent Nursing,Hc-One Ltd,2156.56, 18-Dec-2018
1754,Revenue,CAHD,Bed Purchasing - Central,Permanent Residential,Hc-One Ltd,2224.52, 18-Dec-2018
1755,Revenue,CAHD,Bed Purchasing - Central,Permanent Residential,Hc-One Ltd,2313.72, 18-Dec-2018
1756,Revenue,CAHD,Bed Purchasing - Central,Permanent Residential,Hc-One Ltd,1487.39, 18-Dec-2018
1757,Revenue,CAHD,Bed Purchasing - Central,Permanent Nursing,Hc-One Ltd,2267.32, 18-Dec-2018
1758,Revenue,CAHD,Bed Purchasing - North,Permanent Nursing,Hc-One Ltd,2171.08, 18-Dec-2018
1759,Revenue,CAHD,Bed Purchasing - North,Respite Planned - Residential,Hc-One Ltd,647.01, 18-Dec-2018
1760,Revenue,CAHD,Bed Purchasing - Central,Permanent Residential,Hc-One Ltd,2224.52, 18-Dec-2018
1761,Revenue,CAHD,Bed Purchasing - North,Permanent Nursing,Head Office,2412.88, 18-Dec-2018
1762,Revenue,CAHD,CSC - Residential Placements,Permanent Residential,Headway Adolescent Resources Limited,13600.00, 20-Dec-2018
1763,Revenue,CAHD,Homecare - Central,Day Care / Social Activities,Headway Bristol,903.64, 19-Dec-2018
1764,Revenue,CAHD,Homecare - Central,Other Small Contracts,Headway Bristol,396.72, 19-Dec-2018
1765,Revenue,CAHD,Home Care - Elderly - South,Day Care / Social Activities,Headway Bristol,132.24, 19-Dec-2018
1766,Revenue,CAHD,Home Care - Elderly - South,Other Small Contracts,Headway Bristol,396.72, 19-Dec-2018
1767,Revenue,CAHD,Home Care - Elderly - North,Day Care / Social Activities,Headway Bristol,66.12, 19-Dec-2018
1768,Revenue,CAHD,Home Care - Elderly - North,Other Small Contracts,Headway Bristol,66.12, 19-Dec-2018
1769,Revenue,CAHD,Younger MH non-res purchasing,Day Care / Social Activities,Headway Bristol,88.16, 19-Dec-2018
1770,Revenue,CAHD,Homecare - Central,Day Care / Social Activities,Headway Bristol,749.36, 28-Dec-2018
1771,Revenue,CAHD,Homecare - Central,Other Small Contracts,Headway Bristol,595.08, 28-Dec-2018
1772,Revenue,CAHD,Home Care - Elderly - South,Day Care / Social Activities,Headway Bristol,330.60, 28-Dec-2018
1773,Revenue,CAHD,Home Care - Elderly - South,Other Small Contracts,Headway Bristol,330.60, 28-Dec-2018
1774,Revenue,CAHD,Home Care - Elderly - North,Day Care / Social Activities,Headway Bristol,66.12, 28-Dec-2018
1775,Revenue,CAHD,Younger MH non-res purchasing,Day Care / Social Activities,Headway Bristol,88.16, 28-Dec-2018
1776,Revenue,CAHD,Homecare - Central,Other Small Contracts,Helping Hands Homecare,100.54, 07-Dec-2018
1777,Revenue,CAHD,Home Care - Elderly - South,Other Small Contracts,Helping Hands Homecare,461.57, 07-Dec-2018
1778,Revenue,CAHD,Home Care - Elderly - North,Other Small Contracts,Helping Hands Homecare,2160.81, 07-Dec-2018
1779,Revenue,CAHD,Homecare - Central,Other Small Contracts,Helping Hands Homecare,118.82, 07-Dec-2018
1780,Revenue,CAHD,Home Care - Elderly - South,Other Small Contracts,Helping Hands Homecare,598.67, 07-Dec-2018
1781,Revenue,CAHD,Home Care - Elderly - North,Other Small Contracts,Helping Hands Homecare,2620.25, 07-Dec-2018
1782,Revenue,CAHD,Homecare - Central,Other Small Contracts,Helping Hands Homecare,118.82, 07-Dec-2018
1783,Revenue,CAHD,Home Care - Elderly - South,Other Small Contracts,Helping Hands Homecare,598.67, 07-Dec-2018
1784,Revenue,CAHD,Home Care - Elderly - North,Other Small Contracts,Helping Hands Homecare,2561.25, 07-Dec-2018
1785,Revenue,CAHD,Homecare - Central,Other Small Contracts,Helping Hands Homecare,1394.82, 21-Dec-2018
1786,Revenue,CAHD,Home Care - Elderly - South,Other Small Contracts,Helping Hands Homecare,516.41, 21-Dec-2018
1787,Revenue,CAHD,Home Care - Elderly - North,Other Small Contracts,Helping Hands Homecare,1293.33, 21-Dec-2018
1788,Revenue,CAHD,Homecare - Central,Other Small Contracts,Helping Hands Homecare,1403.08, 21-Dec-2018
1789,Revenue,CAHD,Home Care - Elderly - South,Other Small Contracts,Helping Hands Homecare,575.82, 21-Dec-2018
1790,Revenue,CAHD,Home Care - Elderly - North,Other Small Contracts,Helping Hands Homecare,1300.56, 21-Dec-2018
1791,Revenue,CAHD,School Improvement and Support,Training Expenses,Herefordshire Council,3000.00, 24-Dec-2018
1792,Revenue,CAHD,S117 Placements PCT,Permanent Residential,Hesley Hall,19258.12, 18-Dec-2018
1793,Revenue,CAHD,Bed Purchasing - Central,Permanent Residential,High Border Lodge,2092.00, 18-Dec-2018
1794,Revenue,CAHD,Bed Purchasing - Central,Fees & Charges Income - General,High Border Lodge,822.60, 18-Dec-2018
1795,Revenue,CAHD,Bed Purchasing - North,Permanent Residential,High Border Lodge,2039.72, 18-Dec-2018
1796,Revenue,CAHD,CSC - Care Leavers Support Costs,Xmas / Birthday Allowances,High Street Vouchers Ltd T/A Park Retail Ltd,3430.00, 03-Dec-2018
1797,Revenue,CAHD,18-25 Year Olds,Supported Living,Hillcairnie House,3406.32, 18-Dec-2018
1798,Revenue,CAHD,Home Care - Elderly - South,Supported Living,Hillcairnie House,4195.52, 18-Dec-2018
1799,Revenue,CAHD,Home Care - Elderly - South,Supported Living,Hillcairnie House,2517.76, 18-Dec-2018
1800,Revenue,CAHD,Home Care - Elderly - North,Supported Living,Hillcairnie House,2517.76, 18-Dec-2018
1801,Revenue,CAHD,Home Care - Elderly - South,Supported Living,Hillcairnie House,4195.52, 18-Dec-2018
1802,Revenue,CAHD,Home Care - Elderly - South,Supported Living,Hillcairnie House,2517.76, 18-Dec-2018
1803,Revenue,CAHD,CSC - Residential Placements,Permanent Residential,Hillcrest Children`s Services Ltd,19200.00, 13-Dec-2018
1804,Revenue,CAHD,CSC - Residential Placements,Permanent Residential,Hillcrest Children`s Services Ltd,19840.00, 21-Dec-2018
1805,Revenue,CAHD,18-25 Year Olds,Permanent Residential,Hilltop Residential Home,8603.72, 18-Dec-2018
1806,Revenue,CAHD,Jointly Funded H&SC Packages,Permanent Residential,Hilltop Residential Home,5463.12, 18-Dec-2018
1807,Revenue,CAHD,Bed Purchasing - North,Permanent Residential,Holly Tree Cottage,8331.28, 18-Dec-2018
1808,Revenue,CAHD,Jointly Funded H&SC Packages,Permanent Residential,Holly Tree Cottage,2517.28, 18-Dec-2018
1809,Revenue,CAHD,Bed Purchasing - Central,Permanent Nursing,Holly Villa,2102.68, 18-Dec-2018
1810,Revenue,CAHD,Bed Purchasing - North,Permanent Residential,Holmleigh Care Homes Ltd,4666.12, 18-Dec-2018
1811,Revenue,CAHD,Bed Purchasing - Central,Permanent Residential,Holmleigh Care Homes Ltd,8694.92, 18-Dec-2018
1812,Revenue,CAHD,Jointly Funded H&SC Packages,Permanent Residential,Holmleigh Care Homes Ltd,4720.00, 18-Dec-2018
1813,Revenue,CAHD,Bed Purchasing - South,Permanent Residential,Holmleigh Care Homes Ltd,4457.24, 18-Dec-2018
1814,Revenue,CAHD,Jointly Funded H&SC Packages,Permanent Residential,Holmleigh Care Homes Ltd,1276.96, 18-Dec-2018
1815,Revenue,CAHD,Homecare - Central,Supported Living,Home Farm Trust Ltd  5-6 Brook Office Pa,2111.48, 18-Dec-2018
1816,Revenue,CAHD,Home Care - Elderly - South,Supported Living,Home Farm Trust Ltd  5-6 Brook Office Pa,4151.60, 18-Dec-2018
1817,Revenue,CAHD,18-25 Year Olds,Permanent Residential,Home From Home Care Ltd,11822.76, 18-Dec-2018
1818,Revenue,CAHD,Supporting People Programme,Grants to Voluntary Bodies,Housing 21,975.00, 28-Dec-2018
1819,Revenue,CAHD,Supporting People Programme,Grants to Voluntary Bodies,Housing 21,643.00, 28-Dec-2018
1820,Revenue,CAHD,Extra Care Housing,Private & Voluntary Home Care,Housing 21,37678.33, 14-Dec-2018
1821,Revenue,CAHD,Extra Care Housing,Private & Voluntary Home Care,Housing 21,37311.84, 06-Dec-2018
1822,Revenue,CAHD,Hospital Tuition,Other Private Contractors,Huntercombe Hospital Maidenhead,1320.00, 18-Dec-2018
1823,Revenue,CAHD,Hospital Tuition,Other Private Contractors,Huntercombe Hospital Maidenhead,1155.00, 18-Dec-2018
1824,Revenue,CAHD,Hospital Tuition,Other Private Contractors,Huntercombe Hospital Maidenhead,990.00, 18-Dec-2018
1825,Revenue,CAHD,Bed Purchasing - South,Permanent Nursing,Hydon Hill,6286.84, 18-Dec-2018
1826,Revenue,CAHD,Statemented Support Payments to OLAs,Other L.A.'s - General,IKB Academy,553.41, 21-Dec-2018
1827,Revenue,CAHD,Virtual School for Looked After Children,Software Support & Maintenance,Impact Mentoring,525.00, 14-Dec-2018
1828,Revenue,CAHD,SEN High Needs - Not at School Base,Other Private Contractors,Impact Mentoring,1575.00, 07-Dec-2018
1829,Revenue,CAHD,Tobacco Control,Other Supplies & Services,Intermedical,2342.00, 21-Dec-2018
1830,Revenue,CAHD,Childrens - Safeguarding Board,Training Expenses,In-Trac Training & Consultancy Limited,750.00, 05-Dec-2018
1831,Revenue,CAHD,Social Lettings Agency,Fees - General,Individual,12.22, 11-Dec-2018
1832,Revenue,CAHD,Social Lettings Agency,Other Supplies & Services,Individual,690.32, 11-Dec-2018
1833,Revenue,CAHD,Social Lettings Agency,Fees - General,Individual,7.90, 28-Dec-2018
1834,Revenue,CAHD,Social Lettings Agency,Other Supplies & Services,Individual,609.24, 28-Dec-2018
1835,Revenue,CAHD,Homelessness Contingency,Other Supplies & Services,JC Property Investments,969.23, 10-Dec-2018
1836,Revenue,CAHD,CSC - Ofsted Work,Consultants Fees,Jo Hope,5750.00, 06-Dec-2018
1837,Revenue,CAHD,CSC - Ofsted Work,Consultants Fees,Jo Hope,3600.00, 21-Dec-2018
1838,Revenue,CAHD,Training - Adult Services,Training Expenses,Individual,527.00, 24-Dec-2018
1839,Revenue,CAHD,Social Lettings Agency,Fees - General,Individual,12.93, 14-Dec-2018
1840,Revenue,CAHD,Social Lettings Agency,Other Supplies & Services,Individual,730.35, 14-Dec-2018
1841,Revenue,CAHD,Training - Adult Services,Training Expenses,Jonathan Coles,640.00, 07-Dec-2018
1842,Revenue,CAHD,Bed Purchasing - South,Permanent Residential,Jonen House,4226.52, 18-Dec-2018
1843,Revenue,CAHD,CSC - No Recourse For Public Funds,"Provisions (Food, etc)",Joyce Soyemi,650.00, 28-Dec-2018
1844,Revenue,CAHD,Virtual School for Looked After Children,Consultants Fees,Judith Mee Education,3200.00, 20-Dec-2018
1845,Revenue,CAHD,Post 16 High Needs Placements,Other Private Contractors,Julian & Shani Payne T/A Peopleton Brook Farm,2328.00, 12-Dec-2018
1846,Revenue,CAHD,Bed Purchasing - Elderly S117- North,Permanent Residential,Kahala Court,2853.20, 18-Dec-2018
1847,Revenue,CAHD,Schools Specific Grant Income,Other Supplies & Services,Kate Cairns Associates Ltd,1800.00, 28-Dec-2018
1848,Revenue,CAHD,CSC - Adoption Support Fund,Post Adoption,Individual,636.00, 17-Dec-2018
1849,Revenue,CAHD,CSC - Adoption Support Fund,Post Adoption,Individual,594.00, 17-Dec-2018
1850,Revenue,CAHD,CSC - Adoption Support Fund,Post Adoption,Individual,577.50, 17-Dec-2018
1851,Revenue,CAHD,Statemented Support Payments to OLAs,Other L.A.'s - General,Katharine Lady Berkeley School,529.83, 21-Dec-2018
1852,Revenue,CAHD,Statemented Support Payments to OLAs,Other L.A.'s - General,Katharine Lady Berkeley School,647.74, 21-Dec-2018
1853,Revenue,CAHD,Statemented Support Payments to OLAs,Other L.A.'s - General,Katharine Lady Berkeley School,624.16, 21-Dec-2018
1854,Revenue,CAHD,CSC - LAC Placements,Personal Needs of Clients,Individual,1584.30, 10-Dec-2018
1855,Revenue,CAHD,CAHA - Complaints and FOI,Complaints External Expenses,Individual,521.18, 17-Dec-2018
1856,Revenue,CAHD,Homecare - Central,Other Small Contracts,Kensington Community Care,1005.40, 12-Dec-2018
